Workbook

Sheet B.test
A1: Data | B1: x | D1: Binomial test. Data | G1: Data | H1: x | I1: y | J1: Sign | L1: Sign test (+): x > y. Data
A2: 1 | D2: p | E2: 0.5 | G2: 1 | H2: 18 | I2: 11 | J2: =IF(H2>I2, "+", "") -> + | L2: p | M2: 0.5
A3: 2 | B3: + | D3: X | E3: =COUNTIF(B:B,"+") -> 15 | G3: 2 | H3: 22 | I3: 12 | J3: + | L3: X | M3: =COUNTIF(J:J,"+") -> 10
A4: 3 | B4: + | D4: N | E4: =COUNT(A:A) -> 20 | G4: 3 | H4: 25 | I4: 35 | L4: N | M4: =COUNT(G:G) -> 15
A5: 4 | B5: + | D5: P | E5: =E3/E4 -> 0.75 | G5: 4 | H5: 12 | I5: 22 | L5: P | M5: =M3/M4 -> 0.6666666667
A6: 5 | B6: + | D6: Significance level | E6: 0.05 | G6: 5 | H6: 22 | I6: 18 | J6: + | L6: Significance level | M6: 0.05
A7: 6 | B7: + | D7: Lower probability | E7: =IF(E3=0,0,BINOMDIST(E3,E4,E2,1)) -> 0.9940910339 | G7: 6 | H7: 31 | I7: 23 | J7: + | L7: Lower probability | M7: =IF(M3=0,0,BINOMDIST(M3,M4,M2,1)) -> 0.9407653809
A8: 7 | B8: + | D8: Lower critical value | E8: =CRITBINOM(E4,E2,E6) -> 6 | G8: 7 | H8: 32 | I8: 24 | J8: + | L8: Lower critical value | M8: =CRITBINOM(M4,M2,M6) -> 4
A9: 8 | B9: + | D9: Lower significance | E9: =IF(E7<E6,"S. (H1)", "NS (H0)") -> NS (H0) | G9: 8 | H9: 22 | I9: 22 | L9: Lower significance | M9: =IF(M7<M6,"S. (H1)", "NS (H0)") -> NS (H0)
A10: 9 | B10: + | D10: Upper probability | E10: =IF(E3=0,1,1-BINOMDIST(E3-1,E4,E2,1)) -> 0.02069473267 | G10: 9 | H10: 25 | I10: 19 | J10: + | L10: Upper probability | M10: =IF(M3=0,1,1-BINOMDIST(M3-1,M4,M2,1)) -> 0.1508789062
A11: 10 | B11: + | D11: Upper critical value | E11: =CRITBINOM(E4,E2,1-E6) -> 14 | G11: 10 | H11: 18 | I11: 12 | J11: + | L11: Upper critical value | M11: =CRITBINOM(M4,M2,1-M6) -> 11
A12: 11 | B12: + | D12: Upper significance | E12: =IF(E10<E6,"S. (H1)", "NS (H0)") -> S. (H1) | G12: 11 | H12: 20 | I12: 33 | L12: Upper significance | M12: =IF(M10<M6,"S. (H1)", "NS (H0)") -> NS (H0)
A13: 12 | B13: + | D13: Two-tailed probability | E13: =2*MIN(E7,E10) -> 0.04138946533 | G13: 12 | H13: 30 | I13: 25 | J13: + | L13: Two-tailed probability | M13: =2*MIN(M7,M10) -> 0.3017578125
A14: 13 | B14: + | D14: Two-tailed critical value | E14: =CRITBINOM(E4,E2,1-E6/2) -> 14 | G14: 13 | H14: 29 | I14: 22 | J14: + | L14: Two-tailed critical value | M14: =CRITBINOM(M4,M2,1-M6/2) -> 11
A15: 14 | B15: + | D15: Two-tailed significance | E15: =IF(E13<E6,"S. (H1)", "NS (H0)") -> S. (H1) | G15: 14 | H15: 27 | I15: 21 | J15: + | L15: Two-tailed significance | M15: =IF(M13<M6,"S. (H1)", "NS (H0)") -> NS (H0)
A16: 15 | B16: + | G16: 15 | H16: 25 | I16: 40
A17: 16 | B17: +
A18: 17 | D18: Frequency test. Result
A19: 18 | D19: p | E19: 0.1
A20: 19 | D20: X | E20: 4
A21: 20 | D21: N | E21: 20
D22: P | E22: =E20/E21 -> 0.2
D23: Significance level | E23: 0.05
D24: Lower probability | E24: =IF(E20=0,0,BINOMDIST(E20,E21,E19,1)) -> 0.9568255047
D25: Lower critical value | E25: =CRITBINOM(E21,E19,E23) -> 0
D26: Lower significance | E26: =IF(E24<E23,"S. (H1)", "NS (H0)") -> NS (H0)
D27: Upper probability | E27: =IF(E20=0,1,1-BINOMDIST(E20-1,E21,E19,1)) -> 0.1329533234
D28: Upper critical value | E28: =CRITBINOM(E21,E19,1-E23) -> 4
D29: Upper significance | E29: =IF(E27<E23,"S. (H1)", "NS (H0)") -> NS (H0)
D30: Two-tailed probability | E30: =2*MIN(E24,E27) -> 0.2659066469
D31: Two-tailed critical value | E31: =CRITBINOM(E21,E19,1-E23/2) -> 5
D32: Two-tailed significance | E32: =IF(E30<E23,"S. (H1)", "NS (H0)") -> NS (H0)

Sheet B.central
A1: n | B1: p | C1: q | D1: max | Z1: x | AA1: n | AB1: p | AC1: Bin | AD1: Lower p. | AE1: Upper p.
A2: 10 | B2: 0.5 | C2: =1-B2 -> 0.5 | D2: =A2*B2-C2 -> 4.5 | Z2: 0 | AA2: 3 | AB2: 0.5 | AC2: =bint(Z2,AA2,AB2,0) -> 0.125 | AD2: =bint(Z2,AA2,AB2,1) -> 0.125 | AE2: =bint(Z2,AA2,AB2,2) -> 1
A3: 50 | B3: 0.5 | C3: 0.5 | D3: 24.5 | Z3: 1 | AA3: 3 | AB3: 0.5 | AC3: =bint(Z3,AA3,AB3,0) -> 0.375 | AD3: =bint(Z3,AA3,AB3,1) -> 0.5 | AE3: =bint(Z3,AA3,AB3,2) -> 0.875
A4: 100 | B4: 0.5 | C4: 0.5 | D4: 49.5 | Z4: 2 | AA4: 3 | AB4: 0.5 | AC4: =bint(Z4,AA4,AB4,0) -> 0.375 | AD4: =bint(Z4,AA4,AB4,1) -> 0.875 | AE4: =bint(Z4,AA4,AB4,2) -> 0.5
A5: 100 | B5: 0.2 | C5: 0.8 | D5: 19.2 | Z5: 3 | AA5: 3 | AB5: 0.5 | AC5: =bint(Z5,AA5,AB5,0) -> 0.125 | AD5: =bint(Z5,AA5,AB5,1) -> 1 | AE5: =bint(Z5,AA5,AB5,2) -> 0.125
A6: 100 | B6: 0.8 | C6: 0.2 | D6: 79.8
A7: 100 | B7: 0.7 | C7: 0.3 | D7: 69.7 | Z7: x | AA7: n | AB7: p | AC7: Bin | AD7: Lower p. | AE7: Upper p.
A8: 100 | B8: 0.01 | C8: 0.99 | D8: 0.01 | Z8: 0 | AA8: 2 | AB8: 0.5 | AC8: =bint(Z8,AA8,AB8,0) -> 0.25 | AD8: =bint(Z8,AA8,AB8,1) -> 0.25 | AE8: =bint(Z8,AA8,AB8,2) -> 1
A9: 100 | B9: 0.1 | C9: 0.9 | D9: 9.1 | Z9: 1 | AA9: 2 | AB9: 0.5 | AC9: =bint(Z9,AA9,AB9,0) -> 0.5 | AD9: =bint(Z9,AA9,AB9,1) -> 0.75 | AE9: =bint(Z9,AA9,AB9,2) -> 0.75
A10: 95 | B10: 0.05 | C10: 0.95 | D10: 3.8 | M10: =bint(6,10,0.5,3) -> 0.65625
AL11: L | AM11: U
A12: x | B12: n | C12: p | D12: Bin | E12: Lower p. | F12: Upper p. | G12: Central.p | H12: Central.U | J12: x | K12: n | L12: p | M12: Bin | N12: Lower p. | O12: Upper p. | R12: x | S12: n | T12: p | U12: Bin | V12: Lower p. | W12: Upper p. | X12: Central p | Z12: x | AA12: n | AB12: p | AC12: Bin | AD12: Lower p. | AE12: Upper p. | AF12: Central.p | AH12: c | AI12: n | AJ12: p | AK12: Bin | AL12: Lower p. | AM12: Upper p. | AN12: Central p
A13: 0 | B13: 10 | C13: 0.5 | D13: =bint(A13,B13,C13,0) -> 0.0009765625 | E13: =bint(A13,B13,C13,1) -> 0.0009765625 | F13: =bint(A13,B13,C13,2) -> 1 | G13: =bint(A13,B13,C13,3) -> 1 | H13: =binU(A13,B13,C13,3) -> 1 | J13: 0 | K13: 20 | L13: 0.5 | M13: =bint(J13,K13,L13,0) -> 9.536743164e-07 | N13: =bint(J13,K13,L13,1) -> 9.536743164e-07 | O13: =bint(J13,K13,L13,2) -> 1 | R13: 0 | S13: 50 | T13: 0.5 | U13: =bint(R13,S13,T13,0) -> 8.881784197e-16 | V13: =bint(R13,S13,T13,1) -> 8.881784197e-16 | W13: =bint(R13,S13,T13,2) -> 1 | X13: =bint(R13,S13,T13,3) -> 1 | Z13: 0 | AA13: 100 | AB13: 0.5 | AC13: =bint(Z13,AA13,AB13,0) -> 7.888609052e-31 | AD13: =bint(Z13,AA13,AB13,1) -> 7.888609052e-31 | AE13: =bint(Z13,AA13,AB13,2) -> 1 | AF13: =bint(Z13,AA13,AB13,3) -> 1 | AH13: 0 | AI13: 100 | AJ13: 0.2 | AK13: =bint(AH13,AI13,AJ13,0) -> 2.037035976e-10 | AL13: =bint(AH13,AI13,AJ13,1) -> 2.037035976e-10 | AM13: =bint(AH13,AI13,AJ13,2) -> 1 | AN13: =bint(AH13,AI13,AJ13,3) -> 1
A14: 1 | B14: 10 | C14: 0.5 | D14: =bint(A14,B14,C14,0) -> 0.009765625 | E14: =bint(A14,B14,C14,1) -> 0.0107421875 | F14: =bint(A14,B14,C14,2) -> 0.9990234375 | G14: =bint(A14,B14,C14,3) -> 0.998046875 | H14: =binU(A14,B14,C14,3) -> 0.998046875 | J14: 1 | K14: 20 | L14: 0.5 | M14: =bint(J14,K14,L14,0) -> 1.907348633e-05 | N14: =bint(J14,K14,L14,1) -> 2.002716064e-05 | O14: =bint(J14,K14,L14,2) -> 0.9999990463 | R14: 1 | S14: 50 | T14: 0.5 | U14: =bint(R14,S14,T14,0) -> 4.440892099e-14 | V14: =bint(R14,S14,T14,1) -> 4.52970994e-14 | W14: =bint(R14,S14,T14,2) -> 1 | X14: =bint(R14,S14,T14,3) -> 1 | Z14: 1 | AA14: 100 | AB14: 0.5 | AC14: =bint(Z14,AA14,AB14,0) -> 7.888609052e-29 | AD14: =bint(Z14,AA14,AB14,1) -> 7.967495143e-29 | AE14: =bint(Z14,AA14,AB14,2) -> 1 | AF14: =bint(Z14,AA14,AB14,3) -> 1 | AH14: 1 | AI14: 100 | AJ14: 0.2 | AK14: =bint(AH14,AI14,AJ14,0) -> 5.092589941e-09 | AL14: =bint(AH14,AI14,AJ14,1) -> 5.296293538e-09 | AM14: =bint(AH14,AI14,AJ14,2) -> 0.9999999998 | AN14: =bint(AH14,AI14,AJ14,3) -> 0.9999999998
A15: 2 | B15: 10 | C15: 0.5 | D15: =bint(A15,B15,C15,0) -> 0.0439453125 | E15: =bint(A15,B15,C15,1) -> 0.0546875 | F15: =bint(A15,B15,C15,2) -> 0.9892578125 | G15: =bint(A15,B15,C15,3) -> 0.978515625 | H15: =binU(A15,B15,C15,3) -> 0.978515625 | J15: 2 | K15: 20 | L15: 0.5 | M15: =bint(J15,K15,L15,0) -> 0.0001811981201 | N15: =bint(J15,K15,L15,1) -> 0.0002012252808 | O15: =bint(J15,K15,L15,2) -> 0.9999799728 | R15: 2 | S15: 50 | T15: 0.5 | U15: =bint(R15,S15,T15,0) -> 1.088018564e-12 | V15: =bint(R15,S15,T15,1) -> 1.133315664e-12 | W15: =bint(R15,S15,T15,2) -> 1 | X15: =bint(R15,S15,T15,3) -> 1 | Z15: 2 | AA15: 100 | AB15: 0.5 | AC15: =bint(Z15,AA15,AB15,0) -> 3.904861481e-27 | AD15: =bint(Z15,AA15,AB15,1) -> 3.984536432e-27 | AE15: =bint(Z15,AA15,AB15,2) -> 1 | AF15: =bint(Z15,AA15,AB15,3) -> 1 | AH15: 2 | AI15: 100 | AJ15: 0.2 | AK15: =bint(AH15,AI15,AJ15,0) -> 6.302080052e-08 | AL15: =bint(AH15,AI15,AJ15,1) -> 6.831709406e-08 | AM15: =bint(AH15,AI15,AJ15,2) -> 0.9999999947 | AN15: =bint(AH15,AI15,AJ15,3) -> 0.9999999947
A16: 3 | B16: 10 | C16: 0.5 | D16: =bint(A16,B16,C16,0) -> 0.1171875 | E16: =bint(A16,B16,C16,1) -> 0.171875 | F16: =bint(A16,B16,C16,2) -> 0.9453125 | G16: =bint(A16,B16,C16,3) -> 0.890625 | H16: =binU(A16,B16,C16,3) -> 0.890625 | J16: 3 | K16: 20 | L16: 0.5 | M16: =bint(J16,K16,L16,0) -> 0.001087188721 | N16: =bint(J16,K16,L16,1) -> 0.001288414001 | O16: =bint(J16,K16,L16,2) -> 0.9997987747 | R16: 3 | S16: 50 | T16: 0.5 | U16: =bint(R16,S16,T16,0) -> 1.740829703e-11 | V16: =bint(R16,S16,T16,1) -> 1.854161269e-11 | W16: =bint(R16,S16,T16,2) -> 1 | X16: =bint(R16,S16,T16,3) -> 1 | Z16: 3 | AA16: 100 | AB16: 0.5 | AC16: =bint(Z16,AA16,AB16,0) -> 1.275588084e-25 | AD16: =bint(Z16,AA16,AB16,1) -> 1.315433448e-25 | AE16: =bint(Z16,AA16,AB16,2) -> 1 | AF16: =bint(Z16,AA16,AB16,3) -> 1 | AH16: 3 | AI16: 100 | AJ16: 0.2 | AK16: =bint(AH16,AI16,AJ16,0) -> 5.146698709e-07 | AL16: =bint(AH16,AI16,AJ16,1) -> 5.82986965e-07 | AM16: =bint(AH16,AI16,AJ16,2) -> 0.9999999317 | AN16: =bint(AH16,AI16,AJ16,3) -> 0.9999994869
A17: 4 | B17: 10 | C17: 0.5 | D17: =bint(A17,B17,C17,0) -> 0.205078125 | E17: =bint(A17,B17,C17,1) -> 0.376953125 | F17: =bint(A17,B17,C17,2) -> 0.828125 | G17: =bint(A17,B17,C17,3) -> 0.65625 | H17: =binU(A17,B17,C17,3) -> 0.65625 | J17: 4 | K17: 20 | L17: 0.5 | M17: =bint(J17,K17,L17,0) -> 0.004620552063 | N17: =bint(J17,K17,L17,1) -> 0.005908966064 | O17: =bint(J17,K17,L17,2) -> 0.998711586 | R17: 4 | S17: 50 | T17: 0.5 | U17: =bint(R17,S17,T17,0) -> 2.045474901e-10 | V17: =bint(R17,S17,T17,1) -> 2.230891027e-10 | W17: =bint(R17,S17,T17,2) -> 1 | X17: =bint(R17,S17,T17,3) -> 1 | Z17: 4 | AA17: 100 | AB17: 0.5 | AC17: =bint(Z17,AA17,AB17,0) -> 3.093301103e-24 | AD17: =bint(Z17,AA17,AB17,1) -> 3.224844448e-24 | AE17: =bint(Z17,AA17,AB17,2) -> 1 | AF17: =bint(Z17,AA17,AB17,3) -> 1 | AH17: 4 | AI17: 100 | AJ17: 0.2 | AK17: =bint(AH17,AI17,AJ17,0) -> 3.120186092e-06 | AL17: =bint(AH17,AI17,AJ17,1) -> 3.703173057e-06 | AM17: =bint(AH17,AI17,AJ17,2) -> 0.999999417 | AN17: =bint(AH17,AI17,AJ17,3) -> 0.9999958086
A18: 5 | B18: 10 | C18: 0.5 | D18: =bint(A18,B18,C18,0) -> 0.24609375 | E18: =bint(A18,B18,C18,1) -> 0.623046875 | F18: =bint(A18,B18,C18,2) -> 0.623046875 | G18: =bint(A18,B18,C18,3) -> 0.24609375 | H18: =binU(A18,B18,C18,3) -> 0.24609375 | J18: 5 | K18: 20 | L18: 0.5 | M18: =bint(J18,K18,L18,0) -> 0.0147857666 | N18: =bint(J18,K18,L18,1) -> 0.02069473267 | O18: =bint(J18,K18,L18,2) -> 0.9940910339 | R18: 5 | S18: 50 | T18: 0.5 | U18: =bint(R18,S18,T18,0) -> 1.881836909e-09 | V18: =bint(R18,S18,T18,1) -> 2.104926011e-09 | W18: =bint(R18,S18,T18,2) -> 0.9999999998 | X18: =bint(R18,S18,T18,3) -> 0.9999999998 | Z18: 5 | AA18: 100 | AB18: 0.5 | AC18: =bint(Z18,AA18,AB18,0) -> 5.939138118e-23 | AD18: =bint(Z18,AA18,AB18,1) -> 6.261622563e-23 | AE18: =bint(Z18,AA18,AB18,2) -> 1 | AF18: =bint(Z18,AA18,AB18,3) -> 1 | AH18: 5 | AI18: 100 | AJ18: 0.2 | AK18: =bint(AH18,AI18,AJ18,0) -> 1.497689324e-05 | AL18: =bint(AH18,AI18,AJ18,1) -> 1.86800663e-05 | AM18: =bint(AH18,AI18,AJ18,2) -> 0.9999962968 | AN18: =bint(AH18,AI18,AJ18,3) -> 0.999986613
A19: 6 | B19: 10 | C19: 0.5 | D19: =bint(A19,B19,C19,0) -> 0.205078125 | E19: =bint(A19,B19,C19,1) -> 0.828125 | F19: =bint(A19,B19,C19,2) -> 0.376953125 | G19: =bint(A19,B19,C19,3) -> 0.65625 | H19: =binU(A19,B19,C19,3) -> 0.65625 | J19: 6 | K19: 20 | L19: 0.5 | M19: =bint(J19,K19,L19,0) -> 0.0369644165 | N19: =bint(J19,K19,L19,1) -> 0.05765914917 | O19: =bint(J19,K19,L19,2) -> 0.9793052673 | R19: 6 | S19: 50 | T19: 0.5 | U19: =bint(R19,S19,T19,0) -> 1.411377681e-08 | V19: =bint(R19,S19,T19,1) -> 1.621870283e-08 | W19: =bint(R19,S19,T19,2) -> 0.9999999979 | X19: =bint(R19,S19,T19,3) -> 0.9999999979 | Z19: 6 | AA19: 100 | AB19: 0.5 | AC19: =bint(Z19,AA19,AB19,0) -> 9.403635353e-22 | AD19: =bint(Z19,AA19,AB19,1) -> 1.002979761e-21 | AE19: =bint(Z19,AA19,AB19,2) -> 1 | AF19: =bint(Z19,AA19,AB19,3) -> 1 | AH19: 6 | AI19: 100 | AJ19: 0.2 | AK19: =bint(AH19,AI19,AJ19,0) -> 5.928353575e-05 | AL19: =bint(AH19,AI19,AJ19,1) -> 7.796360205e-05 | AM19: =bint(AH19,AI19,AJ19,2) -> 0.9999813199 | AN19: =bint(AH19,AI19,AJ19,3) -> 0.9999194682
A20: 7 | B20: 10 | C20: 0.5 | D20: =bint(A20,B20,C20,0) -> 0.1171875 | E20: =bint(A20,B20,C20,1) -> 0.9453125 | F20: =bint(A20,B20,C20,2) -> 0.171875 | G20: =bint(A20,B20,C20,3) -> 0.890625 | H20: =binU(A20,B20,C20,3) -> 0.890625 | J20: 7 | K20: 20 | L20: 0.5 | M20: =bint(J20,K20,L20,0) -> 0.07392883301 | N20: =bint(J20,K20,L20,1) -> 0.1315879822 | O20: =bint(J20,K20,L20,2) -> 0.9423408508 | R20: 7 | S20: 50 | T20: 0.5 | U20: =bint(R20,S20,T20,0) -> 8.871516854e-08 | V20: =bint(R20,S20,T20,1) -> 1.049338714e-07 | W20: =bint(R20,S20,T20,2) -> 0.9999999838 | X20: =bint(R20,S20,T20,3) -> 0.9999999838 | Z20: 7 | AA20: 100 | AB20: 0.5 | AC20: =bint(Z20,AA20,AB20,0) -> 1.26277389e-20 | AD20: =bint(Z20,AA20,AB20,1) -> 1.363071866e-20 | AE20: =bint(Z20,AA20,AB20,2) -> 1 | AF20: =bint(Z20,AA20,AB20,3) -> 1 | AH20: 7 | AI20: 100 | AJ20: 0.2 | AK20: =bint(AH20,AI20,AJ20,0) -> 0.0001990232986 | AL20: =bint(AH20,AI20,AJ20,1) -> 0.0002769869007 | AM20: =bint(AH20,AI20,AJ20,2) -> 0.9999220364 | AN20: =bint(AH20,AI20,AJ20,3) -> 0.9995859492
A21: 8 | B21: 10 | C21: 0.5 | D21: =bint(A21,B21,C21,0) -> 0.0439453125 | E21: =bint(A21,B21,C21,1) -> 0.9892578125 | F21: =bint(A21,B21,C21,2) -> 0.0546875 | G21: =bint(A21,B21,C21,3) -> 0.978515625 | H21: =binU(A21,B21,C21,3) -> 0.978515625 | J21: 8 | K21: 20 | L21: 0.5 | M21: =bint(J21,K21,L21,0) -> 0.1201343536 | N21: =bint(J21,K21,L21,1) -> 0.2517223358 | O21: =bint(J21,K21,L21,2) -> 0.8684120178 | R21: 8 | S21: 50 | T21: 0.5 | U21: =bint(R21,S21,T21,0) -> 4.768440309e-07 | V21: =bint(R21,S21,T21,1) -> 5.817779023e-07 | W21: =bint(R21,S21,T21,2) -> 0.9999998951 | X21: =bint(R21,S21,T21,3) -> 0.9999997901 | Z21: 8 | AA21: 100 | AB21: 0.5 | AC21: =bint(Z21,AA21,AB21,0) -> 1.467974647e-19 | AD21: =bint(Z21,AA21,AB21,1) -> 1.604281834e-19 | AE21: =bint(Z21,AA21,AB21,2) -> 1 | AF21: =bint(Z21,AA21,AB21,3) -> 1 | AH21: 8 | AI21: 100 | AJ21: 0.2 | AK21: =bint(AH21,AI21,AJ21,0) -> 0.0005784114616 | AL21: =bint(AH21,AI21,AJ21,1) -> 0.0008553983622 | AM21: =bint(AH21,AI21,AJ21,2) -> 0.9997230131 | AN21: =bint(AH21,AI21,AJ21,3) -> 0.9989861295
A22: 9 | B22: 10 | C22: 0.5 | D22: =bint(A22,B22,C22,0) -> 0.009765625 | E22: =bint(A22,B22,C22,1) -> 0.9990234375 | F22: =bint(A22,B22,C22,2) -> 0.0107421875 | G22: =bint(A22,B22,C22,3) -> 0.998046875 | H22: =binU(A22,B22,C22,3) -> 0.998046875 | J22: 9 | K22: 20 | L22: 0.5 | M22: =bint(J22,K22,L22,0) -> 0.1601791382 | N22: =bint(J22,K22,L22,1) -> 0.411901474 | O22: =bint(J22,K22,L22,2) -> 0.7482776642 | R22: 9 | S22: 50 | T22: 0.5 | U22: =bint(R22,S22,T22,0) -> 2.225272144e-06 | V22: =bint(R22,S22,T22,1) -> 2.807050047e-06 | W22: =bint(R22,S22,T22,2) -> 0.9999994182 | X22: =bint(R22,S22,T22,3) -> 0.9999988364 | Z22: 9 | AA22: 100 | AB22: 0.5 | AC22: =bint(Z22,AA22,AB22,0) -> 1.500596306e-18 | AD22: =bint(Z22,AA22,AB22,1) -> 1.66102449e-18 | AE22: =bint(Z22,AA22,AB22,2) -> 1 | AF22: =bint(Z22,AA22,AB22,3) -> 1 | AH22: 9 | AI22: 100 | AJ22: 0.2 | AK22: =bint(AH22,AI22,AJ22,0) -> 0.001478162624 | AL22: =bint(AH22,AI22,AJ22,1) -> 0.002333560986 | AM22: =bint(AH22,AI22,AJ22,2) -> 0.9991446016 | AN22: =bint(AH22,AI22,AJ22,3) -> 0.9975941611
A23: 10 | B23: 10 | C23: 0.5 | D23: =bint(A23,B23,C23,0) -> 0.0009765625 | E23: =bint(A23,B23,C23,1) -> 1 | F23: =bint(A23,B23,C23,2) -> 0.0009765625 | G23: =bint(A23,B23,C23,3) -> 1 | H23: =binU(A23,B23,C23,3) -> 1 | J23: 10 | K23: 20 | L23: 0.5 | M23: =bint(J23,K23,L23,0) -> 0.176197052 | N23: =bint(J23,K23,L23,1) -> 0.588098526 | O23: =bint(J23,K23,L23,2) -> 0.588098526 | R23: 10 | S23: 50 | T23: 0.5 | U23: =bint(R23,S23,T23,0) -> 9.123615792e-06 | V23: =bint(R23,S23,T23,1) -> 1.193066584e-05 | W23: =bint(R23,S23,T23,2) -> 0.9999971929 | X23: =bint(R23,S23,T23,3) -> 0.9999943859 | Z23: 10 | AA23: 100 | AB23: 0.5 | AC23: =bint(Z23,AA23,AB23,0) -> 1.365542639e-17 | AD23: =bint(Z23,AA23,AB23,1) -> 1.531645088e-17 | AE23: =bint(Z23,AA23,AB23,2) -> 1 | AF23: =bint(Z23,AA23,AB23,3) -> 1 | AH23: 10 | AI23: 100 | AJ23: 0.2 | AK23: =bint(AH23,AI23,AJ23,0) -> 0.00336281997 | AL23: =bint(AH23,AI23,AJ23,1) -> 0.005696380956 | AM23: =bint(AH23,AI23,AJ23,2) -> 0.997666439 | AN23: =bint(AH23,AI23,AJ23,3) -> 0.9916071035
J24: 11 | K24: 20 | L24: 0.5 | M24: =bint(J24,K24,L24,0) -> 0.1601791382 | N24: =bint(J24,K24,L24,1) -> 0.7482776642 | O24: =bint(J24,K24,L24,2) -> 0.411901474 | R24: 11 | S24: 50 | T24: 0.5 | U24: =bint(R24,S24,T24,0) -> 3.31767847e-05 | V24: =bint(R24,S24,T24,1) -> 4.510745054e-05 | W24: =bint(R24,S24,T24,2) -> 0.9999880693 | X24: =bint(R24,S24,T24,3) -> 0.9999761387 | Z24: 11 | AA24: 100 | AB24: 0.5 | AC24: =bint(Z24,AA24,AB24,0) -> 1.117262159e-16 | AD24: =bint(Z24,AA24,AB24,1) -> 1.270426668e-16 | AE24: =bint(Z24,AA24,AB24,2) -> 1 | AF24: =bint(Z24,AA24,AB24,3) -> 1 | AH24: 11 | AI24: 100 | AJ24: 0.2 | AK24: =bint(AH24,AI24,AJ24,0) -> 0.006878495392 | AL24: =bint(AH24,AI24,AJ24,1) -> 0.01257487635 | AM24: =bint(AH24,AI24,AJ24,2) -> 0.994303619 | AN24: =bint(AH24,AI24,AJ24,3) -> 0.9830546403
A25: x | B25: n | C25: p | D25: Bin | E25: Lower p. | F25: Upper p. | G25: Central.p | H25: Central.U | J25: 12 | K25: 20 | L25: 0.5 | M25: =bint(J25,K25,L25,0) -> 0.1201343536 | N25: =bint(J25,K25,L25,1) -> 0.8684120178 | O25: =bint(J25,K25,L25,2) -> 0.2517223358 | R25: 12 | S25: 50 | T25: 0.5 | U25: =bint(R25,S25,T25,0) -> 0.0001078245503 | V25: =bint(R25,S25,T25,1) -> 0.0001529320008 | W25: =bint(R25,S25,T25,2) -> 0.9999548925 | X25: =bint(R25,S25,T25,3) -> 0.9999097851 | Z25: 12 | AA25: 100 | AB25: 0.5 | AC25: =bint(Z25,AA25,AB25,0) -> 8.286361012e-16 | AD25: =bint(Z25,AA25,AB25,1) -> 9.55678768e-16 | AE25: =bint(Z25,AA25,AB25,2) -> 1 | AF25: =bint(Z25,AA25,AB25,3) -> 1 | AH25: 12 | AI25: 100 | AJ25: 0.2 | AK25: =bint(AH25,AI25,AJ25,0) -> 0.01275387687 | AL25: =bint(AH25,AI25,AJ25,1) -> 0.02532875322 | AM25: =bint(AH25,AI25,AJ25,2) -> 0.9874251237 | AN25: =bint(AH25,AI25,AJ25,3) -> 0.9674049169
A26: 0 | B26: 40 | C26: 0.5 | D26: =bint(A26,B26,C26,0) -> 9.094947018e-13 | E26: =bint(A26,B26,C26,1) -> 9.094947018e-13 | F26: =bint(A26,B26,C26,2) -> 1 | G26: =bint(A26,B26,C26,3) -> 1 | H26: =binU(A26,B26,C26,3) -> 1 | J26: 13 | K26: 20 | L26: 0.5 | M26: =bint(J26,K26,L26,0) -> 0.07392883301 | N26: =bint(J26,K26,L26,1) -> 0.9423408508 | O26: =bint(J26,K26,L26,2) -> 0.1315879822 | R26: 13 | S26: 50 | T26: 0.5 | U26: =bint(R26,S26,T26,0) -> 0.0003151794546 | V26: =bint(R26,S26,T26,1) -> 0.0004681114554 | W26: =bint(R26,S26,T26,2) -> 0.999847068 | X26: =bint(R26,S26,T26,3) -> 0.999694136 | Z26: 13 | AA26: 100 | AB26: 0.5 | AC26: =bint(Z26,AA26,AB26,0) -> 5.609228993e-15 | AD26: =bint(Z26,AA26,AB26,1) -> 6.564907761e-15 | AE26: =bint(Z26,AA26,AB26,2) -> 1 | AF26: =bint(Z26,AA26,AB26,3) -> 1 | AH26: 13 | AI26: 100 | AJ26: 0.2 | AK26: =bint(AH26,AI26,AJ26,0) -> 0.02158348394 | AL26: =bint(AH26,AI26,AJ26,1) -> 0.04691223716 | AM26: =bint(AH26,AI26,AJ26,2) -> 0.9746712468 | AN26: =bint(AH26,AI26,AJ26,3) -> 0.9405196171
A27: 1 | B27: 40 | C27: 0.5 | D27: =bint(A27,B27,C27,0) -> 3.637978807e-11 | E27: =bint(A27,B27,C27,1) -> 3.728928277e-11 | F27: =bint(A27,B27,C27,2) -> 1 | G27: =bint(A27,B27,C27,3) -> 1 | H27: =binU(A27,B27,C27,3) -> 1 | J27: 14 | K27: 20 | L27: 0.5 | M27: =bint(J27,K27,L27,0) -> 0.0369644165 | N27: =bint(J27,K27,L27,1) -> 0.9793052673 | O27: =bint(J27,K27,L27,2) -> 0.05765914917 | R27: 14 | S27: 50 | T27: 0.5 | U27: =bint(R27,S27,T27,0) -> 0.0008329742729 | V27: =bint(R27,S27,T27,1) -> 0.001301085728 | W27: =bint(R27,S27,T27,2) -> 0.9995318885 | X27: =bint(R27,S27,T27,3) -> 0.9990637771 | Z27: 14 | AA27: 100 | AB27: 0.5 | AC27: =bint(Z27,AA27,AB27,0) -> 3.48573516e-14 | AD27: =bint(Z27,AA27,AB27,1) -> 4.142225936e-14 | AE27: =bint(Z27,AA27,AB27,2) -> 1 | AF27: =bint(Z27,AA27,AB27,3) -> 1 | AH27: 14 | AI27: 100 | AJ27: 0.2 | AK27: =bint(AH27,AI27,AJ27,0) -> 0.03353148398 | AL27: =bint(AH27,AI27,AJ27,1) -> 0.08044372114 | AM27: =bint(AH27,AI27,AJ27,2) -> 0.9530877628 | AN27: =bint(AH27,AI27,AJ27,3) -> 0.8656123782
A28: 2 | B28: 40 | C28: 0.5 | D28: =bint(A28,B28,C28,0) -> 7.094058674e-10 | E28: =bint(A28,B28,C28,1) -> 7.466951502e-10 | F28: =bint(A28,B28,C28,2) -> 1 | G28: =bint(A28,B28,C28,3) -> 1 | H28: =binU(A28,B28,C28,3) -> 0.9999999999 | J28: 15 | K28: 20 | L28: 0.5 | M28: =bint(J28,K28,L28,0) -> 0.0147857666 | N28: =bint(J28,K28,L28,1) -> 0.9940910339 | O28: =bint(J28,K28,L28,2) -> 0.02069473267 | R28: 15 | S28: 50 | T28: 0.5 | U28: =bint(R28,S28,T28,0) -> 0.001999138255 | V28: =bint(R28,S28,T28,1) -> 0.003300223983 | W28: =bint(R28,S28,T28,2) -> 0.9986989143 | X28: =bint(R28,S28,T28,3) -> 0.9973978285 | Z28: 15 | AA28: 100 | AB28: 0.5 | AC28: =bint(Z28,AA28,AB28,0) -> 1.998488158e-13 | AD28: =bint(Z28,AA28,AB28,1) -> 2.412710752e-13 | AE28: =bint(Z28,AA28,AB28,2) -> 1 | AF28: =bint(Z28,AA28,AB28,3) -> 1 | AH28: 15 | AI28: 100 | AJ28: 0.2 | AK28: =bint(AH28,AI28,AJ28,0) -> 0.0480617937 | AL28: =bint(AH28,AI28,AJ28,1) -> 0.1285055148 | AM28: =bint(AH28,AI28,AJ28,2) -> 0.9195562789 | AN28: =bint(AH28,AI28,AJ28,3) -> 0.7882030615
A29: 3 | B29: 40 | C29: 0.5 | D29: =bint(A29,B29,C29,0) -> 8.985807654e-09 | E29: =bint(A29,B29,C29,1) -> 9.732502804e-09 | F29: =bint(A29,B29,C29,2) -> 0.9999999993 | G29: =bint(A29,B29,C29,3) -> 0.9999999993 | H29: =binU(A29,B29,C29,3) -> 0.9999999985 | J29: 16 | K29: 20 | L29: 0.5 | M29: =bint(J29,K29,L29,0) -> 0.004620552063 | N29: =bint(J29,K29,L29,1) -> 0.998711586 | O29: =bint(J29,K29,L29,2) -> 0.005908966064 | R29: 16 | S29: 50 | T29: 0.5 | U29: =bint(R29,S29,T29,0) -> 0.004373114933 | V29: =bint(R29,S29,T29,1) -> 0.007673338916 | W29: =bint(R29,S29,T29,2) -> 0.996699776 | X29: =bint(R29,S29,T29,3) -> 0.993399552 | Z29: 16 | AA29: 100 | AB29: 0.5 | AC29: =bint(Z29,AA29,AB29,0) -> 1.061696834e-12 | AD29: =bint(Z29,AA29,AB29,1) -> 1.302967909e-12 | AE29: =bint(Z29,AA29,AB29,2) -> 1 | AF29: =bint(Z29,AA29,AB29,3) -> 1 | AH29: 16 | AI29: 100 | AJ29: 0.2 | AK29: =bint(AH29,AI29,AJ29,0) -> 0.06383206976 | AL29: =bint(AH29,AI29,AJ29,1) -> 0.1923375846 | AM29: =bint(AH29,AI29,AJ29,2) -> 0.8714944852 | AN29: =bint(AH29,AI29,AJ29,3) -> 0.6824072774
A30: 4 | B30: 40 | C30: 0.5 | D30: =bint(A30,B30,C30,0) -> 8.31187208e-08 | E30: =bint(A30,B30,C30,1) -> 9.28512236e-08 | F30: =bint(A30,B30,C30,2) -> 0.9999999903 | G30: =bint(A30,B30,C30,3) -> 0.9999999903 | H30: =binU(A30,B30,C30,3) -> 0.9999999805 | J30: 17 | K30: 20 | L30: 0.5 | M30: =bint(J30,K30,L30,0) -> 0.001087188721 | N30: =bint(J30,K30,L30,1) -> 0.9997987747 | O30: =bint(J30,K30,L30,2) -> 0.001288414001 | R30: 17 | S30: 50 | T30: 0.5 | U30: =bint(R30,S30,T30,0) -> 0.008746229866 | V30: =bint(R30,S30,T30,1) -> 0.01641956878 | W30: =bint(R30,S30,T30,2) -> 0.9923266611 | X30: =bint(R30,S30,T30,3) -> 0.9846533222 | Z30: 17 | AA30: 100 | AB30: 0.5 | AC30: =bint(Z30,AA30,AB30,0) -> 5.246031416e-12 | AD30: =bint(Z30,AA30,AB30,1) -> 6.548999325e-12 | AE30: =bint(Z30,AA30,AB30,2) -> 1 | AF30: =bint(Z30,AA30,AB30,3) -> 1 | AH30: 17 | AI30: 100 | AJ30: 0.2 | AK30: =bint(AH30,AI30,AJ30,0) -> 0.07885138029 | AL30: =bint(AH30,AI30,AJ30,1) -> 0.2711889649 | AM30: =bint(AH30,AI30,AJ30,2) -> 0.8076624154 | AN30: =bint(AH30,AI30,AJ30,3) -> 0.5465951677
A31: 5 | B31: 40 | C31: 0.5 | D31: =bint(A31,B31,C31,0) -> 5.984547897e-07 | E31: =bint(A31,B31,C31,1) -> 6.913060133e-07 | F31: =bint(A31,B31,C31,2) -> 0.9999999071 | G31: =bint(A31,B31,C31,3) -> 0.9999998143 | H31: =binU(A31,B31,C31,3) -> 0.9999998143 | J31: 18 | K31: 20 | L31: 0.5 | M31: =bint(J31,K31,L31,0) -> 0.0001811981201 | N31: =bint(J31,K31,L31,1) -> 0.9999799728 | O31: =bint(J31,K31,L31,2) -> 0.0002012252808 | R31: 18 | S31: 50 | T31: 0.5 | U31: =bint(R31,S31,T31,0) -> 0.01603475475 | V31: =bint(R31,S31,T31,1) -> 0.03245432354 | W31: =bint(R31,S31,T31,2) -> 0.9835804312 | X31: =bint(R31,S31,T31,3) -> 0.9671608624 | Z31: 18 | AA31: 100 | AB31: 0.5 | AC31: =bint(Z31,AA31,AB31,0) -> 2.419003375e-11 | AD31: =bint(Z31,AA31,AB31,1) -> 3.073903308e-11 | AE31: =bint(Z31,AA31,AB31,2) -> 1 | AF31: =bint(Z31,AA31,AB31,3) -> 1 | AH31: 18 | AI31: 100 | AJ31: 0.2 | AK31: =bint(AH31,AI31,AJ31,0) -> 0.09089811895 | AL31: =bint(AH31,AI31,AJ31,1) -> 0.3620870838 | AM31: =bint(AH31,AI31,AJ31,2) -> 0.7288110351 | AN31: =bint(AH31,AI31,AJ31,3) -> 0.3828442531
A32: 6 | B32: 40 | C32: 0.5 | D32: =bint(A32,B32,C32,0) -> 3.490986273e-06 | E32: =bint(A32,B32,C32,1) -> 4.182292287e-06 | F32: =bint(A32,B32,C32,2) -> 0.9999993087 | G32: =bint(A32,B32,C32,3) -> 0.9999986174 | H32: =binU(A32,B32,C32,3) -> 0.9999986174 | J32: 19 | K32: 20 | L32: 0.5 | M32: =bint(J32,K32,L32,0) -> 1.907348633e-05 | N32: =bint(J32,K32,L32,1) -> 0.9999990463 | O32: =bint(J32,K32,L32,2) -> 2.002716064e-05 | R32: 19 | S32: 50 | T32: 0.5 | U32: =bint(R32,S32,T32,0) -> 0.02700590274 | V32: =bint(R32,S32,T32,1) -> 0.05946022628 | W32: =bint(R32,S32,T32,2) -> 0.9675456765 | X32: =bint(R32,S32,T32,3) -> 0.9350913529 | Z32: 19 | AA32: 100 | AB32: 0.5 | AC32: =bint(Z32,AA32,AB32,0) -> 1.04399093e-10 | AD32: =bint(Z32,AA32,AB32,1) -> 1.351381261e-10 | AE32: =bint(Z32,AA32,AB32,2) -> 1 | AF32: =bint(Z32,AA32,AB32,3) -> 1 | AH32: 19 | AI32: 100 | AJ32: 0.2 | AK32: =bint(AH32,AI32,AJ32,0) -> 0.09807428623 | AL32: =bint(AH32,AI32,AJ32,1) -> 0.4601613701 | AM32: =bint(AH32,AI32,AJ32,2) -> 0.6379129162 | AN32: =bint(AH32,AI32,AJ32,3) -> 0.197374501
A33: 7 | B33: 40 | C33: 0.5 | D33: =bint(A33,B33,C33,0) -> 1.695621904e-05 | E33: =bint(A33,B33,C33,1) -> 2.113851133e-05 | F33: =bint(A33,B33,C33,2) -> 0.9999958177 | G33: =bint(A33,B33,C33,3) -> 0.9999916354 | H33: =binU(A33,B33,C33,3) -> 0.9999916354 | J33: 20 | K33: 20 | L33: 0.5 | M33: =bint(J33,K33,L33,0) -> 9.536743164e-07 | N33: =bint(J33,K33,L33,1) -> 1 | O33: =bint(J33,K33,L33,2) -> 9.536743164e-07 | R33: 20 | S33: 50 | T33: 0.5 | U33: =bint(R33,S33,T33,0) -> 0.04185914925 | V33: =bint(R33,S33,T33,1) -> 0.1013193755 | W33: =bint(R33,S33,T33,2) -> 0.9405397737 | X33: =bint(R33,S33,T33,3) -> 0.8810795474 | Z33: 20 | AA33: 100 | AB33: 0.5 | AC33: =bint(Z33,AA33,AB33,0) -> 4.228163268e-10 | AD33: =bint(Z33,AA33,AB33,1) -> 5.579544529e-10 | AE33: =bint(Z33,AA33,AB33,2) -> 0.9999999999 | AF33: =bint(Z33,AA33,AB33,3) -> 0.9999999999 | AH33: 20 | AI33: 100 | AJ33: 0.2 | AK33: =bint(AH33,AI33,AJ33,0) -> 0.09930021481 | AL33: =bint(AH33,AI33,AJ33,1) -> 0.5594615849 | AM33: =bint(AH33,AI33,AJ33,2) -> 0.5398386299 | AN33: =bint(AH33,AI33,AJ33,3) -> 0.09930021481
A34: 8 | B34: 40 | C34: 0.5 | D34: =bint(A34,B34,C34,0) -> 6.994440355e-05 | E34: =bint(A34,B34,C34,1) -> 9.108291488e-05 | F34: =bint(A34,B34,C34,2) -> 0.9999788615 | G34: =bint(A34,B34,C34,3) -> 0.999957723 | H34: =binU(A34,B34,C34,3) -> 0.999957723 | R34: 21 | S34: 50 | T34: 0.5 | U34: =bint(R34,S34,T34,0) -> 0.05979878465 | V34: =bint(R34,S34,T34,1) -> 0.1611181602 | W34: =bint(R34,S34,T34,2) -> 0.8986806245 | X34: =bint(R34,S34,T34,3) -> 0.7973612489 | Z34: 21 | AA34: 100 | AB34: 0.5 | AC34: =bint(Z34,AA34,AB34,0) -> 1.610728864e-09 | AD34: =bint(Z34,AA34,AB34,1) -> 2.168683317e-09 | AE34: =bint(Z34,AA34,AB34,2) -> 0.9999999994 | AF34: =bint(Z34,AA34,AB34,3) -> 0.9999999994 | AH34: 21 | AI34: 100 | AJ34: 0.2 | AK34: =bint(AH34,AI34,AJ34,0) -> 0.09457163315 | AL34: =bint(AH34,AI34,AJ34,1) -> 0.654033218 | AM34: =bint(AH34,AI34,AJ34,2) -> 0.4405384151 | AN34: =bint(AH34,AI34,AJ34,3) -> 0.2919461342
A35: 9 | B35: 40 | C35: 0.5 | D35: =bint(A35,B35,C35,0) -> 0.0002486912126 | E35: =bint(A35,B35,C35,1) -> 0.0003397741275 | F35: =bint(A35,B35,C35,2) -> 0.9999089171 | G35: =bint(A35,B35,C35,3) -> 0.9998178342 | H35: =binU(A35,B35,C35,3) -> 0.9998178342 | R35: 22 | S35: 50 | T35: 0.5 | U35: =bint(R35,S35,T35,0) -> 0.07882567067 | V35: =bint(R35,S35,T35,1) -> 0.2399438308 | W35: =bint(R35,S35,T35,2) -> 0.8388818398 | X35: =bint(R35,S35,T35,3) -> 0.6777636796 | Z35: 22 | AA35: 100 | AB35: 0.5 | AC35: =bint(Z35,AA35,AB35,0) -> 5.78398092e-09 | AD35: =bint(Z35,AA35,AB35,1) -> 7.952664237e-09 | AE35: =bint(Z35,AA35,AB35,2) -> 0.9999999978 | AF35: =bint(Z35,AA35,AB35,3) -> 0.9999999978 | AH35: 22 | AI35: 100 | AJ35: 0.2 | AK35: =bint(AH35,AI35,AJ35,0) -> 0.08489953431 | AL35: =bint(AH35,AI35,AJ35,1) -> 0.7389327523 | AM35: =bint(AH35,AI35,AJ35,2) -> 0.345966782 | AN35: =bint(AH35,AI35,AJ35,3) -> 0.4677437874
A36: 10 | B36: 40 | C36: 0.5 | D36: =bint(A36,B36,C36,0) -> 0.0007709427591 | E36: =bint(A36,B36,C36,1) -> 0.001110716887 | F36: =bint(A36,B36,C36,2) -> 0.9996602259 | G36: =bint(A36,B36,C36,3) -> 0.9993204517 | H36: =binU(A36,B36,C36,3) -> 0.9993204517 | J36: x | K36: n | L36: p | M36: Bin | N36: Lower p. | O36: Upper p. | P36: Central.p | R36: 23 | S36: 50 | T36: 0.5 | U36: =bint(R36,S36,T36,0) -> 0.09596168603 | V36: =bint(R36,S36,T36,1) -> 0.3359055169 | W36: =bint(R36,S36,T36,2) -> 0.7600561692 | X36: =bint(R36,S36,T36,3) -> 0.5201123383 | Z36: 23 | AA36: 100 | AB36: 0.5 | AC36: =bint(Z36,AA36,AB36,0) -> 1.961523964e-08 | AD36: =bint(Z36,AA36,AB36,1) -> 2.756790388e-08 | AE36: =bint(Z36,AA36,AB36,2) -> 0.999999992 | AF36: =bint(Z36,AA36,AB36,3) -> 0.999999992 | AH36: 23 | AI36: 100 | AJ36: 0.2 | AK36: =bint(AH36,AI36,AJ36,0) -> 0.07198003996 | AL36: =bint(AH36,AI36,AJ36,1) -> 0.8109127923 | AM36: =bint(AH36,AI36,AJ36,2) -> 0.2610672477 | AN36: =bint(AH36,AI36,AJ36,3) -> 0.6185752077
A37: 11 | B37: 40 | C37: 0.5 | D37: =bint(A37,B37,C37,0) -> 0.002102571161 | E37: =bint(A37,B37,C37,1) -> 0.003213288048 | F37: =bint(A37,B37,C37,2) -> 0.9988892831 | G37: =bint(A37,B37,C37,3) -> 0.9977785662 | H37: =binU(A37,B37,C37,3) -> 0.9977785662 | J37: 0 | K37: 10 | L37: 0.2 | M37: =binomt(J37,K37,L37,0) -> 0.1073741824 | N37: =binomt(J37,K37,L37,1) -> 0.1073741824 | O37: =binomt(J37,K37,L37,2) -> 1 | P37: =bint(J37,K37,L37,3) -> 0.8791261184 | R37: 24 | S37: 50 | T37: 0.5 | U37: =bint(R37,S37,T37,0) -> 0.1079568968 | V37: =bint(R37,S37,T37,1) -> 0.4438624137 | W37: =bint(R37,S37,T37,2) -> 0.6640944831 | X37: =bint(R37,S37,T37,3) -> 0.3281889662 | Z37: 24 | AA37: 100 | AB37: 0.5 | AC37: =bint(Z37,AA37,AB37,0) -> 6.293222719e-08 | AD37: =bint(Z37,AA37,AB37,1) -> 9.050013107e-08 | AE37: =bint(Z37,AA37,AB37,2) -> 0.9999999724 | AF37: =bint(Z37,AA37,AB37,3) -> 0.9999999724 | AH37: 24 | AI37: 100 | AJ37: 0.2 | AK37: =bint(AH37,AI37,AJ37,0) -> 0.05773399038 | AL37: =bint(AH37,AI37,AJ37,1) -> 0.8686467827 | AM37: =bint(AH37,AI37,AJ37,2) -> 0.1890872077 | AN37: =bint(AH37,AI37,AJ37,3) -> 0.7401412678
A38: 12 | B38: 40 | C38: 0.5 | D38: =bint(A38,B38,C38,0) -> 0.00508121364 | E38: =bint(A38,B38,C38,1) -> 0.008294501687 | F38: =bint(A38,B38,C38,2) -> 0.996786712 | G38: =bint(A38,B38,C38,3) -> 0.9935734239 | H38: =binU(A38,B38,C38,3) -> 0.9935734239 | J38: 1 | K38: 10 | L38: 0.2 | M38: =binomt(J38,K38,L38,0) -> 0.268435456 | N38: =binomt(J38,K38,L38,1) -> 0.3758096384 | O38: =binomt(J38,K38,L38,2) -> 0.8926258176 | P38: =bint(J38,K38,L38,3) -> 0.570425344 | R38: 25 | S38: 50 | T38: 0.5 | U38: =bint(R38,S38,T38,0) -> 0.1122751727 | V38: =bint(R38,S38,T38,1) -> 0.5561375863 | W38: =bint(R38,S38,T38,2) -> 0.5561375863 | X38: =bint(R38,S38,T38,3) -> 0.1122751727 | Z38: 25 | AA38: 100 | AB38: 0.5 | AC38: =bint(Z38,AA38,AB38,0) -> 1.913139706e-07 | AD38: =bint(Z38,AA38,AB38,1) -> 2.818141017e-07 | AE38: =bint(Z38,AA38,AB38,2) -> 0.9999999095 | AF38: =bint(Z38,AA38,AB38,3) -> 0.999999819 | AH38: 25 | AI38: 100 | AJ38: 0.2 | AK38: =bint(AH38,AI38,AJ38,0) -> 0.04387783269 | AL38: =bint(AH38,AI38,AJ38,1) -> 0.9125246154 | AM38: =bint(AH38,AI38,AJ38,2) -> 0.1313532173 | AN38: =bint(AH38,AI38,AJ38,3) -> 0.8320808942
A39: 13 | B39: 40 | C39: 0.5 | D39: =bint(A39,B39,C39,0) -> 0.01094415245 | E39: =bint(A39,B39,C39,1) -> 0.01923865414 | F39: =bint(A39,B39,C39,2) -> 0.9917054983 | G39: =bint(A39,B39,C39,3) -> 0.9834109966 | H39: =binU(A39,B39,C39,3) -> 0.9834109966 | J39: 2 | K39: 10 | L39: 0.2 | M39: =binomt(J39,K39,L39,0) -> 0.301989888 | N39: =binomt(J39,K39,L39,1) -> 0.6777995264 | O39: =binomt(J39,K39,L39,2) -> 0.6241903616 | P39: =bint(J39,K39,L39,3) -> 0.301989888 | R39: 26 | S39: 50 | T39: 0.5 | U39: =bint(R39,S39,T39,0) -> 0.1079568968 | V39: =bint(R39,S39,T39,1) -> 0.6640944831 | W39: =bint(R39,S39,T39,2) -> 0.4438624137 | X39: =bint(R39,S39,T39,3) -> 0.3281889662 | Z39: 26 | AA39: 100 | AB39: 0.5 | AC39: =bint(Z39,AA39,AB39,0) -> 5.51867223e-07 | AD39: =bint(Z39,AA39,AB39,1) -> 8.336813247e-07 | AE39: =bint(Z39,AA39,AB39,2) -> 0.9999997182 | AF39: =bint(Z39,AA39,AB39,3) -> 0.9999994364 | AH39: 26 | AI39: 100 | AJ39: 0.2 | AK39: =bint(AH39,AI39,AJ39,0) -> 0.0316426678 | AL39: =bint(AH39,AI39,AJ39,1) -> 0.9441672832 | AM39: =bint(AH39,AI39,AJ39,2) -> 0.08747538464 | AN39: =bint(AH39,AI39,AJ39,3) -> 0.897255046
A40: 14 | B40: 40 | C40: 0.5 | D40: =bint(A40,B40,C40,0) -> 0.02110657973 | E40: =bint(A40,B40,C40,1) -> 0.04034523388 | F40: =bint(A40,B40,C40,2) -> 0.9807613459 | G40: =bint(A40,B40,C40,3) -> 0.9615226917 | H40: =binU(A40,B40,C40,3) -> 0.9615226917 | J40: 3 | K40: 10 | L40: 0.2 | M40: =binomt(J40,K40,L40,0) -> 0.201326592 | N40: =binomt(J40,K40,L40,1) -> 0.8791261184 | O40: =binomt(J40,K40,L40,2) -> 0.3222004736 | P40: =bint(J40,K40,L40,3) -> 0.771751936 | R40: 27 | S40: 50 | T40: 0.5 | U40: =bint(R40,S40,T40,0) -> 0.09596168603 | V40: =bint(R40,S40,T40,1) -> 0.7600561692 | W40: =bint(R40,S40,T40,2) -> 0.3359055169 | X40: =bint(R40,S40,T40,3) -> 0.5201123383 | Z40: 27 | AA40: 100 | AB40: 0.5 | AC40: =bint(Z40,AA40,AB40,0) -> 1.512524982e-06 | AD40: =bint(Z40,AA40,AB40,1) -> 2.346206306e-06 | AE40: =bint(Z40,AA40,AB40,2) -> 0.9999991663 | AF40: =bint(Z40,AA40,AB40,3) -> 0.9999983326 | AH40: 27 | AI40: 100 | AJ40: 0.2 | AK40: =bint(AH40,AI40,AJ40,0) -> 0.0216810872 | AL40: =bint(AH40,AI40,AJ40,1) -> 0.9658483704 | AM40: =bint(AH40,AI40,AJ40,2) -> 0.05583271684 | AN40: =bint(AH40,AI40,AJ40,3) -> 0.9189361332
A41: 15 | B41: 40 | C41: 0.5 | D41: =bint(A41,B41,C41,0) -> 0.03658473821 | E41: =bint(A41,B41,C41,1) -> 0.07692997208 | F41: =bint(A41,B41,C41,2) -> 0.9596547661 | G41: =bint(A41,B41,C41,3) -> 0.9193095322 | H41: =binU(A41,B41,C41,3) -> 0.9193095322 | J41: 4 | K41: 10 | L41: 0.2 | M41: =binomt(J41,K41,L41,0) -> 0.088080384 | N41: =binomt(J41,K41,L41,1) -> 0.9672065024 | O41: =binomt(J41,K41,L41,2) -> 0.1208738816 | P41: =bint(J41,K41,L41,3) -> 0.9672065024 | R41: 28 | S41: 50 | T41: 0.5 | U41: =bint(R41,S41,T41,0) -> 0.07882567067 | V41: =bint(R41,S41,T41,1) -> 0.8388818398 | W41: =bint(R41,S41,T41,2) -> 0.2399438308 | X41: =bint(R41,S41,T41,3) -> 0.6777636796 | Z41: 28 | AA41: 100 | AB41: 0.5 | AC41: =bint(Z41,AA41,AB41,0) -> 3.943368702e-06 | AD41: =bint(Z41,AA41,AB41,1) -> 6.289575008e-06 | AE41: =bint(Z41,AA41,AB41,2) -> 0.9999976538 | AF41: =bint(Z41,AA41,AB41,3) -> 0.9999953076 | AH41: 28 | AI41: 100 | AJ41: 0.2 | AK41: =bint(AH41,AI41,AJ41,0) -> 0.01413142291 | AL41: =bint(AH41,AI41,AJ41,1) -> 0.9799797933 | AM41: =bint(AH41,AI41,AJ41,2) -> 0.03415162964 | AN41: =bint(AH41,AI41,AJ41,3) -> 0.95465104
A42: 16 | B42: 40 | C42: 0.5 | D42: =bint(A42,B42,C42,0) -> 0.05716365345 | E42: =bint(A42,B42,C42,1) -> 0.1340936255 | F42: =bint(A42,B42,C42,2) -> 0.9230700279 | G42: =bint(A42,B42,C42,3) -> 0.8461400558 | H42: =binU(A42,B42,C42,3) -> 0.8461400558 | J42: 5 | K42: 10 | L42: 0.2 | M42: =binomt(J42,K42,L42,0) -> 0.0264241152 | N42: =binomt(J42,K42,L42,1) -> 0.9936306176 | O42: =binomt(J42,K42,L42,2) -> 0.0327934976 | P42: =bint(J42,K42,L42,3) -> 0.9936306176 | R42: 29 | S42: 50 | T42: 0.5 | U42: =bint(R42,S42,T42,0) -> 0.05979878465 | V42: =bint(R42,S42,T42,1) -> 0.8986806245 | W42: =bint(R42,S42,T42,2) -> 0.1611181602 | X42: =bint(R42,S42,T42,3) -> 0.7973612489 | Z42: 29 | AA42: 100 | AB42: 0.5 | AC42: =bint(Z42,AA42,AB42,0) -> 9.790432639e-06 | AD42: =bint(Z42,AA42,AB42,1) -> 1.608000765e-05 | AE42: =bint(Z42,AA42,AB42,2) -> 0.9999937104 | AF42: =bint(Z42,AA42,AB42,3) -> 0.9999874209 | AH42: 29 | AI42: 100 | AJ42: 0.2 | AK42: =bint(AH42,AI42,AJ42,0) -> 0.008771228011 | AL42: =bint(AH42,AI42,AJ42,1) -> 0.9887510213 | AM42: =bint(AH42,AI42,AJ42,2) -> 0.02002020673 | AN42: =bint(AH42,AI42,AJ42,3) -> 0.9761761449
A43: 17 | B43: 40 | C43: 0.5 | D43: =bint(A43,B43,C43,0) -> 0.08070162839 | E43: =bint(A43,B43,C43,1) -> 0.2147952539 | F43: =bint(A43,B43,C43,2) -> 0.8659063745 | G43: =bint(A43,B43,C43,3) -> 0.7318127489 | H43: =binU(A43,B43,C43,3) -> 0.7318127489 | J43: 6 | K43: 10 | L43: 0.2 | M43: =binomt(J43,K43,L43,0) -> 0.005505024 | N43: =binomt(J43,K43,L43,1) -> 0.9991356416 | O43: =binomt(J43,K43,L43,2) -> 0.0063693824 | P43: =bint(J43,K43,L43,3) -> 0.9991356416 | R43: 30 | S43: 50 | T43: 0.5 | U43: =bint(R43,S43,T43,0) -> 0.04185914925 | V43: =bint(R43,S43,T43,1) -> 0.9405397737 | W43: =bint(R43,S43,T43,2) -> 0.1013193755 | X43: =bint(R43,S43,T43,3) -> 0.8810795474 | Z43: 30 | AA43: 100 | AB43: 0.5 | AC43: =bint(Z43,AA43,AB43,0) -> 2.317069058e-05 | AD43: =bint(Z43,AA43,AB43,1) -> 3.925069823e-05 | AE43: =bint(Z43,AA43,AB43,2) -> 0.99998392 | AF43: =bint(Z43,AA43,AB43,3) -> 0.99996784 | AH43: 30 | AI43: 100 | AJ43: 0.2 | AK43: =bint(AH43,AI43,AJ43,0) -> 0.00518964324 | AL43: =bint(AH43,AI43,AJ43,1) -> 0.9939406645 | AM43: =bint(AH43,AI43,AJ43,2) -> 0.01124897872 | AN43: =bint(AH43,AI43,AJ43,3) -> 0.9882442836
A44: 18 | B44: 40 | C44: 0.5 | D44: =bint(A44,B44,C44,0) -> 0.1031187474 | E44: =bint(A44,B44,C44,1) -> 0.3179140013 | F44: =bint(A44,B44,C44,2) -> 0.7852047461 | G44: =bint(A44,B44,C44,3) -> 0.5704094922 | H44: =binU(A44,B44,C44,3) -> 0.5704094922 | J44: 7 | K44: 10 | L44: 0.2 | M44: =binomt(J44,K44,L44,0) -> 0.000786432 | N44: =binomt(J44,K44,L44,1) -> 0.9999220736 | O44: =binomt(J44,K44,L44,2) -> 0.0008643584 | P44: =bint(J44,K44,L44,3) -> 0.9999220736 | R44: 31 | S44: 50 | T44: 0.5 | U44: =bint(R44,S44,T44,0) -> 0.02700590274 | V44: =bint(R44,S44,T44,1) -> 0.9675456765 | W44: =bint(R44,S44,T44,2) -> 0.05946022628 | X44: =bint(R44,S44,T44,3) -> 0.9350913529 | Z44: 31 | AA44: 100 | AB44: 0.5 | AC44: =bint(Z44,AA44,AB44,0) -> 5.232091421e-05 | AD44: =bint(Z44,AA44,AB44,1) -> 9.157161244e-05 | AE44: =bint(Z44,AA44,AB44,2) -> 0.9999607493 | AF44: =bint(Z44,AA44,AB44,3) -> 0.9999214986 | AH44: 31 | AI44: 100 | AJ44: 0.2 | AK44: =bint(AH44,AI44,AJ44,0) -> 0.002929637313 | AL44: =bint(AH44,AI44,AJ44,1) -> 0.9968703018 | AM44: =bint(AH44,AI44,AJ44,2) -> 0.006059335481 | AN44: =bint(AH44,AI44,AJ44,3) -> 0.9945367408
A45: 19 | B45: 40 | C45: 0.5 | D45: =bint(A45,B45,C45,0) -> 0.1194006549 | E45: =bint(A45,B45,C45,1) -> 0.4373146562 | F45: =bint(A45,B45,C45,2) -> 0.6820859987 | G45: =bint(A45,B45,C45,3) -> 0.3641719974 | H45: =binU(A45,B45,C45,3) -> 0.3641719974 | J45: 8 | K45: 10 | L45: 0.2 | M45: =binomt(J45,K45,L45,0) -> 7.3728e-05 | N45: =binomt(J45,K45,L45,1) -> 0.9999958016 | O45: =binomt(J45,K45,L45,2) -> 7.79264e-05 | P45: =bint(J45,K45,L45,3) -> 0.9999958016 | R45: 32 | S45: 50 | T45: 0.5 | U45: =bint(R45,S45,T45,0) -> 0.01603475475 | V45: =bint(R45,S45,T45,1) -> 0.9835804312 | W45: =bint(R45,S45,T45,2) -> 0.03245432354 | X45: =bint(R45,S45,T45,3) -> 0.9671608624 | Z45: 32 | AA45: 100 | AB45: 0.5 | AC45: =bint(Z45,AA45,AB45,0) -> 0.0001128169713 | AD45: =bint(Z45,AA45,AB45,1) -> 0.0002043885837 | AE45: =bint(Z45,AA45,AB45,2) -> 0.9999084284 | AF45: =bint(Z45,AA45,AB45,3) -> 0.9998168568 | AH45: 32 | AI45: 100 | AJ45: 0.2 | AK45: =bint(AH45,AI45,AJ45,0) -> 0.001579257614 | AL45: =bint(AH45,AI45,AJ45,1) -> 0.9984495594 | AM45: =bint(AH45,AI45,AJ45,2) -> 0.003129698168 | AN45: =bint(AH45,AI45,AJ45,3) -> 0.9961159985
A46: 20 | B46: 40 | C46: 0.5 | D46: =bint(A46,B46,C46,0) -> 0.1253706876 | E46: =bint(A46,B46,C46,1) -> 0.5626853438 | F46: =bint(A46,B46,C46,2) -> 0.5626853438 | G46: =bint(A46,B46,C46,3) -> 0.1253706876 | H46: =binU(A46,B46,C46,3) -> 0.1253706876 | J46: 9 | K46: 10 | L46: 0.2 | M46: =binomt(J46,K46,L46,0) -> 4.096e-06 | N46: =binomt(J46,K46,L46,1) -> 0.9999998976 | O46: =binomt(J46,K46,L46,2) -> 4.1984e-06 | P46: =bint(J46,K46,L46,3) -> 0.9999998976 | R46: 33 | S46: 50 | T46: 0.5 | U46: =bint(R46,S46,T46,0) -> 0.008746229866 | V46: =bint(R46,S46,T46,1) -> 0.9923266611 | W46: =bint(R46,S46,T46,2) -> 0.01641956878 | X46: =bint(R46,S46,T46,3) -> 0.9846533222 | Z46: 33 | AA46: 100 | AB46: 0.5 | AC46: =bint(Z46,AA46,AB46,0) -> 0.0002324713347 | AD46: =bint(Z46,AA46,AB46,1) -> 0.0004368599185 | AE46: =bint(Z46,AA46,AB46,2) -> 0.9997956114 | AF46: =bint(Z46,AA46,AB46,3) -> 0.9995912228 | AH46: 33 | AI46: 100 | AJ46: 0.2 | AK46: =bint(AH46,AI46,AJ46,0) -> 0.0008135569527 | AL46: =bint(AH46,AI46,AJ46,1) -> 0.9992631164 | AM46: =bint(AH46,AI46,AJ46,2) -> 0.001550440554 | AN46: =bint(AH46,AI46,AJ46,3) -> 0.998407718
A47: 21 | B47: 40 | C47: 0.5 | D47: =bint(A47,B47,C47,0) -> 0.1194006549 | E47: =bint(A47,B47,C47,1) -> 0.6820859987 | F47: =bint(A47,B47,C47,2) -> 0.4373146562 | G47: =bint(A47,B47,C47,3) -> 0.3641719974 | H47: =binU(A47,B47,C47,3) -> 0.3641719974 | J47: 10 | K47: 10 | L47: 0.2 | M47: =binomt(J47,K47,L47,0) -> 1.024e-07 | N47: =binomt(J47,K47,L47,1) -> 1 | O47: =binomt(J47,K47,L47,2) -> 1.024e-07 | P47: =bint(J47,K47,L47,3) -> 1 | R47: 34 | S47: 50 | T47: 0.5 | U47: =bint(R47,S47,T47,0) -> 0.004373114933 | V47: =bint(R47,S47,T47,1) -> 0.996699776 | W47: =bint(R47,S47,T47,2) -> 0.007673338916 | X47: =bint(R47,S47,T47,3) -> 0.993399552 | Z47: 34 | AA47: 100 | AB47: 0.5 | AC47: =bint(Z47,AA47,AB47,0) -> 0.0004581052773 | AD47: =bint(Z47,AA47,AB47,1) -> 0.0008949651957 | AE47: =bint(Z47,AA47,AB47,2) -> 0.9995631401 | AF47: =bint(Z47,AA47,AB47,3) -> 0.9991262802 | AH47: 34 | AI47: 100 | AJ47: 0.2 | AK47: =bint(AH47,AI47,AJ47,0) -> 0.0004007964399 | AL47: =bint(AH47,AI47,AJ47,1) -> 0.9996639128 | AM47: =bint(AH47,AI47,AJ47,2) -> 0.0007368836015 | AN47: =bint(AH47,AI47,AJ47,3) -> 0.9993869259
A48: 22 | B48: 40 | C48: 0.5 | D48: =bint(A48,B48,C48,0) -> 0.1031187474 | E48: =bint(A48,B48,C48,1) -> 0.7852047461 | F48: =bint(A48,B48,C48,2) -> 0.3179140013 | G48: =bint(A48,B48,C48,3) -> 0.5704094922 | H48: =binU(A48,B48,C48,3) -> 0.5704094922 | R48: 35 | S48: 50 | T48: 0.5 | U48: =bint(R48,S48,T48,0) -> 0.001999138255 | V48: =bint(R48,S48,T48,1) -> 0.9986989143 | W48: =bint(R48,S48,T48,2) -> 0.003300223983 | X48: =bint(R48,S48,T48,3) -> 0.9973978285 | Z48: 35 | AA48: 100 | AB48: 0.5 | AC48: =bint(Z48,AA48,AB48,0) -> 0.0008638556657 | AD48: =bint(Z48,AA48,AB48,1) -> 0.001758820861 | AE48: =bint(Z48,AA48,AB48,2) -> 0.9991050348 | AF48: =bint(Z48,AA48,AB48,3) -> 0.9982100696 | AH48: 35 | AI48: 100 | AJ48: 0.2 | AK48: =bint(AH48,AI48,AJ48,0) -> 0.0001889468931 | AL48: =bint(AH48,AI48,AJ48,1) -> 0.9998528597 | AM48: =bint(AH48,AI48,AJ48,2) -> 0.0003360871616 | AN48: =bint(AH48,AI48,AJ48,3) -> 0.9997748961
A49: 23 | B49: 40 | C49: 0.5 | D49: =bint(A49,B49,C49,0) -> 0.08070162839 | E49: =bint(A49,B49,C49,1) -> 0.8659063745 | F49: =bint(A49,B49,C49,2) -> 0.2147952539 | G49: =bint(A49,B49,C49,3) -> 0.7318127489 | H49: =binU(A49,B49,C49,3) -> 0.7318127489 | J49: x | K49: n | L49: p | M49: Bin | N49: Lower p. | O49: Upper p. | R49: 36 | S49: 50 | T49: 0.5 | U49: =bint(R49,S49,T49,0) -> 0.0008329742729 | V49: =bint(R49,S49,T49,1) -> 0.9995318885 | W49: =bint(R49,S49,T49,2) -> 0.001301085728 | X49: =bint(R49,S49,T49,3) -> 0.9990637771 | Z49: 36 | AA49: 100 | AB49: 0.5 | AC49: =bint(Z49,AA49,AB49,0) -> 0.001559739396 | AD49: =bint(Z49,AA49,AB49,1) -> 0.003318560258 | AE49: =bint(Z49,AA49,AB49,2) -> 0.9982411791 | AF49: =bint(Z49,AA49,AB49,3) -> 0.9964823583 | AH49: 36 | AI49: 100 | AJ49: 0.2 | AK49: =bint(AH49,AI49,AJ49,0) -> 8.528852814e-05 | AL49: =bint(AH49,AI49,AJ49,1) -> 0.9999381483 | AM49: =bint(AH49,AI49,AJ49,2) -> 0.0001471402685 | AN49: =bint(AH49,AI49,AJ49,3) -> 0.9998601847
A50: 24 | B50: 40 | C50: 0.5 | D50: =bint(A50,B50,C50,0) -> 0.05716365345 | E50: =bint(A50,B50,C50,1) -> 0.9230700279 | F50: =bint(A50,B50,C50,2) -> 0.1340936255 | G50: =bint(A50,B50,C50,3) -> 0.8461400558 | H50: =binU(A50,B50,C50,3) -> 0.7889764024 | J50: 0 | K50: 13 | L50: 0.5 | M50: =binomt(J50,K50,L50,0) -> 0.0001220703125 | N50: =binomt(J50,K50,L50,1) -> 0.0001220703125 | O50: =binomt(J50,K50,L50,2) -> 1 | R50: 37 | S50: 50 | T50: 0.5 | U50: =bint(R50,S50,T50,0) -> 0.0003151794546 | V50: =bint(R50,S50,T50,1) -> 0.999847068 | W50: =bint(R50,S50,T50,2) -> 0.0004681114554 | X50: =bint(R50,S50,T50,3) -> 0.999694136 | Z50: 37 | AA50: 100 | AB50: 0.5 | AC50: =bint(Z50,AA50,AB50,0) -> 0.002697927605 | AD50: =bint(Z50,AA50,AB50,1) -> 0.006016487863 | AE50: =bint(Z50,AA50,AB50,2) -> 0.9966814397 | AF50: =bint(Z50,AA50,AB50,3) -> 0.9933628795 | AH50: 37 | AI50: 100 | AJ50: 0.2 | AK50: =bint(AH50,AI50,AJ50,0) -> 3.688152568e-05 | AL50: =bint(AH50,AI50,AJ50,1) -> 0.9999750298 | AM50: =bint(AH50,AI50,AJ50,2) -> 6.18517404e-05 | AN50: =bint(AH50,AI50,AJ50,3) -> 0.9999563497
A51: 25 | B51: 40 | C51: 0.5 | D51: =bint(A51,B51,C51,0) -> 0.03658473821 | E51: =bint(A51,B51,C51,1) -> 0.9596547661 | F51: =bint(A51,B51,C51,2) -> 0.07692997208 | G51: =bint(A51,B51,C51,3) -> 0.9193095322 | H51: =binU(A51,B51,C51,3) -> 0.9193095322 | J51: 1 | K51: 13 | L51: 0.5 | M51: =binomt(J51,K51,L51,0) -> 0.001586914063 | N51: =binomt(J51,K51,L51,1) -> 0.001708984375 | O51: =binomt(J51,K51,L51,2) -> 0.9998779297 | R51: 38 | S51: 50 | T51: 0.5 | U51: =bint(R51,S51,T51,0) -> 0.0001078245503 | V51: =bint(R51,S51,T51,1) -> 0.9999548925 | W51: =bint(R51,S51,T51,2) -> 0.0001529320008 | X51: =bint(R51,S51,T51,3) -> 0.9999097851 | Z51: 38 | AA51: 100 | AB51: 0.5 | AC51: =bint(Z51,AA51,AB51,0) -> 0.004472879976 | AD51: =bint(Z51,AA51,AB51,1) -> 0.01048936784 | AE51: =bint(Z51,AA51,AB51,2) -> 0.9939835121 | AF51: =bint(Z51,AA51,AB51,3) -> 0.9879670243 | AH51: 38 | AI51: 100 | AJ51: 0.2 | AK51: =bint(AH51,AI51,AJ51,0) -> 1.528642183e-05 | AL51: =bint(AH51,AI51,AJ51,1) -> 0.9999903162 | AM51: =bint(AH51,AI51,AJ51,2) -> 2.497021472e-05 | AN51: =bint(AH51,AI51,AJ51,3) -> 0.9999716361
A52: 26 | B52: 40 | C52: 0.5 | D52: =bint(A52,B52,C52,0) -> 0.02110657973 | E52: =bint(A52,B52,C52,1) -> 0.9807613459 | F52: =bint(A52,B52,C52,2) -> 0.04034523388 | G52: =bint(A52,B52,C52,3) -> 0.9615226917 | H52: =binU(A52,B52,C52,3) -> 0.9615226917 | J52: 2 | K52: 13 | L52: 0.5 | M52: =binomt(J52,K52,L52,0) -> 0.009521484375 | N52: =binomt(J52,K52,L52,1) -> 0.01123046875 | O52: =binomt(J52,K52,L52,2) -> 0.9982910156 | R52: 39 | S52: 50 | T52: 0.5 | U52: =bint(R52,S52,T52,0) -> 3.31767847e-05 | V52: =bint(R52,S52,T52,1) -> 0.9999880693 | W52: =bint(R52,S52,T52,2) -> 4.510745054e-05 | X52: =bint(R52,S52,T52,3) -> 0.9999761387 | Z52: 39 | AA52: 100 | AB52: 0.5 | AC52: =bint(Z52,AA52,AB52,0) -> 0.00711073227 | AD52: =bint(Z52,AA52,AB52,1) -> 0.01760010011 | AE52: =bint(Z52,AA52,AB52,2) -> 0.9895106322 | AF52: =bint(Z52,AA52,AB52,3) -> 0.9790212643 | AH52: 39 | AI52: 100 | AJ52: 0.2 | AK52: =bint(AH52,AI52,AJ52,0) -> 6.075372778e-06 | AL52: =bint(AH52,AI52,AJ52,1) -> 0.9999963916 | AM52: =bint(AH52,AI52,AJ52,2) -> 9.683792892e-06 | AN52: =bint(AH52,AI52,AJ52,3) -> 0.9999926884
A53: 27 | B53: 40 | C53: 0.5 | D53: =bint(A53,B53,C53,0) -> 0.01094415245 | E53: =bint(A53,B53,C53,1) -> 0.9917054983 | F53: =bint(A53,B53,C53,2) -> 0.01923865414 | G53: =bint(A53,B53,C53,3) -> 0.9834109966 | H53: =binU(A53,B53,C53,3) -> 0.9834109966 | J53: 3 | K53: 13 | L53: 0.5 | M53: =binomt(J53,K53,L53,0) -> 0.03491210937 | N53: =binomt(J53,K53,L53,1) -> 0.04614257813 | O53: =binomt(J53,K53,L53,2) -> 0.9887695312 | R53: 40 | S53: 50 | T53: 0.5 | U53: =bint(R53,S53,T53,0) -> 9.123615792e-06 | V53: =bint(R53,S53,T53,1) -> 0.9999971929 | W53: =bint(R53,S53,T53,2) -> 1.193066584e-05 | X53: =bint(R53,S53,T53,3) -> 0.9999943859 | Z53: 40 | AA53: 100 | AB53: 0.5 | AC53: =bint(Z53,AA53,AB53,0) -> 0.01084386671 | AD53: =bint(Z53,AA53,AB53,1) -> 0.02844396682 | AE53: =bint(Z53,AA53,AB53,2) -> 0.9823998999 | AF53: =bint(Z53,AA53,AB53,3) -> 0.9647997998 | AH53: 40 | AI53: 100 | AJ53: 0.2 | AK53: =bint(AH53,AI53,AJ53,0) -> 2.316235872e-06 | AL53: =bint(AH53,AI53,AJ53,1) -> 0.9999987078 | AM53: =bint(AH53,AI53,AJ53,2) -> 3.608420115e-06 | AN53: =bint(AH53,AI53,AJ53,3) -> 0.9999981248
A54: 28 | B54: 40 | C54: 0.5 | D54: =bint(A54,B54,C54,0) -> 0.00508121364 | E54: =bint(A54,B54,C54,1) -> 0.996786712 | F54: =bint(A54,B54,C54,2) -> 0.008294501687 | G54: =bint(A54,B54,C54,3) -> 0.9935734239 | H54: =binU(A54,B54,C54,3) -> 0.9884922103 | J54: 4 | K54: 13 | L54: 0.5 | M54: =binomt(J54,K54,L54,0) -> 0.08728027344 | N54: =binomt(J54,K54,L54,1) -> 0.1334228516 | O54: =binomt(J54,K54,L54,2) -> 0.9538574219 | R54: 41 | S54: 50 | T54: 0.5 | U54: =bint(R54,S54,T54,0) -> 2.225272144e-06 | V54: =bint(R54,S54,T54,1) -> 0.9999994182 | W54: =bint(R54,S54,T54,2) -> 2.807050047e-06 | X54: =bint(R54,S54,T54,3) -> 0.9999988364 | Z54: 41 | AA54: 100 | AB54: 0.5 | AC54: =bint(Z54,AA54,AB54,0) -> 0.01586907324 | AD54: =bint(Z54,AA54,AB54,1) -> 0.04431304006 | AE54: =bint(Z54,AA54,AB54,2) -> 0.9715560332 | AF54: =bint(Z54,AA54,AB54,3) -> 0.9431120664 | AH54: 41 | AI54: 100 | AJ54: 0.2 | AK54: =bint(AH54,AI54,AJ54,0) -> 8.474033676e-07 | AL54: =bint(AH54,AI54,AJ54,1) -> 0.9999995552 | AM54: =bint(AH54,AI54,AJ54,2) -> 1.292184243e-06 | AN54: =bint(AH54,AI54,AJ54,3) -> 0.9999989722
A55: 29 | B55: 40 | C55: 0.5 | D55: =bint(A55,B55,C55,0) -> 0.002102571161 | E55: =bint(A55,B55,C55,1) -> 0.9988892831 | F55: =bint(A55,B55,C55,2) -> 0.003213288048 | G55: =bint(A55,B55,C55,3) -> 0.9977785662 | H55: =binU(A55,B55,C55,3) -> 0.9977785662 | J55: 5 | K55: 13 | L55: 0.5 | M55: =binomt(J55,K55,L55,0) -> 0.1571044922 | N55: =binomt(J55,K55,L55,1) -> 0.2905273438 | O55: =binomt(J55,K55,L55,2) -> 0.8665771484 | R55: 42 | S55: 50 | T55: 0.5 | U55: =bint(R55,S55,T55,0) -> 4.768440309e-07 | V55: =bint(R55,S55,T55,1) -> 0.9999998951 | W55: =bint(R55,S55,T55,2) -> 5.817779023e-07 | X55: =bint(R55,S55,T55,3) -> 0.9999997901 | Z55: 42 | AA55: 100 | AB55: 0.5 | AC55: =bint(Z55,AA55,AB55,0) -> 0.02229226955 | AD55: =bint(Z55,AA55,AB55,1) -> 0.0666053096 | AE55: =bint(Z55,AA55,AB55,2) -> 0.9556869599 | AF55: =bint(Z55,AA55,AB55,3) -> 0.9113739199 | AH55: 42 | AI55: 100 | AJ55: 0.2 | AK55: =bint(AH55,AI55,AJ55,0) -> 2.975999922e-07 | AL55: =bint(AH55,AI55,AJ55,1) -> 0.9999998528 | AM55: =bint(AH55,AI55,AJ55,2) -> 4.447808755e-07 | AN55: =bint(AH55,AI55,AJ55,3) -> 0.9999997845
A56: 30 | B56: 40 | C56: 0.5 | D56: =bint(A56,B56,C56,0) -> 0.0007709427591 | E56: =bint(A56,B56,C56,1) -> 0.9996602259 | F56: =bint(A56,B56,C56,2) -> 0.001110716887 | G56: =bint(A56,B56,C56,3) -> 0.9993204517 | H56: =binU(A56,B56,C56,3) -> 0.998549509 | J56: 6 | K56: 13 | L56: 0.5 | M56: =binomt(J56,K56,L56,0) -> 0.2094726562 | N56: =binomt(J56,K56,L56,1) -> 0.5 | O56: =binomt(J56,K56,L56,2) -> 0.7094726562 | R56: 43 | S56: 50 | T56: 0.5 | U56: =bint(R56,S56,T56,0) -> 8.871516854e-08 | V56: =bint(R56,S56,T56,1) -> 0.9999999838 | W56: =bint(R56,S56,T56,2) -> 1.049338714e-07 | X56: =bint(R56,S56,T56,3) -> 0.9999999838 | Z56: 43 | AA56: 100 | AB56: 0.5 | AC56: =bint(Z56,AA56,AB56,0) -> 0.03006864264 | AD56: =bint(Z56,AA56,AB56,1) -> 0.09667395225 | AE56: =bint(Z56,AA56,AB56,2) -> 0.9333946904 | AF56: =bint(Z56,AA56,AB56,3) -> 0.8667893808 | AH56: 43 | AI56: 100 | AJ56: 0.2 | AK56: =bint(AH56,AI56,AJ56,0) -> 1.003534857e-07 | AL56: =bint(AH56,AI56,AJ56,1) -> 0.9999999532 | AM56: =bint(AH56,AI56,AJ56,2) -> 1.471808833e-07 | AN56: =bint(AH56,AI56,AJ56,3) -> 0.9999998849
A57: 31 | B57: 40 | C57: 0.5 | D57: =bint(A57,B57,C57,0) -> 0.0002486912126 | E57: =bint(A57,B57,C57,1) -> 0.9999089171 | F57: =bint(A57,B57,C57,2) -> 0.0003397741275 | G57: =bint(A57,B57,C57,3) -> 0.9998178342 | H57: =binU(A57,B57,C57,3) -> 0.9998178342 | J57: 7 | K57: 13 | L57: 0.5 | M57: =binomt(J57,K57,L57,0) -> 0.2094726562 | N57: =binomt(J57,K57,L57,1) -> 0.7094726562 | O57: =binomt(J57,K57,L57,2) -> 0.5 | R57: 44 | S57: 50 | T57: 0.5 | U57: =bint(R57,S57,T57,0) -> 1.411377681e-08 | V57: =bint(R57,S57,T57,1) -> 0.9999999979 | W57: =bint(R57,S57,T57,2) -> 1.621870283e-08 | X57: =bint(R57,S57,T57,3) -> 0.9999999979 | Z57: 44 | AA57: 100 | AB57: 0.5 | AC57: =bint(Z57,AA57,AB57,0) -> 0.03895255979 | AD57: =bint(Z57,AA57,AB57,1) -> 0.135626512 | AE57: =bint(Z57,AA57,AB57,2) -> 0.9033260478 | AF57: =bint(Z57,AA57,AB57,3) -> 0.8066520955 | AH57: 44 | AI57: 100 | AJ57: 0.2 | AK57: =bint(AH57,AI57,AJ57,0) -> 3.250084481e-08 | AL57: =bint(AH57,AI57,AJ57,1) -> 0.9999999857 | AM57: =bint(AH57,AI57,AJ57,2) -> 4.682739753e-08 | AN57: =bint(AH57,AI57,AJ57,3) -> 0.9999999857
A58: 32 | B58: 40 | C58: 0.5 | D58: =bint(A58,B58,C58,0) -> 6.994440355e-05 | E58: =bint(A58,B58,C58,1) -> 0.9999788615 | F58: =bint(A58,B58,C58,2) -> 9.108291488e-05 | G58: =bint(A58,B58,C58,3) -> 0.999957723 | H58: =binU(A58,B58,C58,3) -> 0.9998877786 | J58: 8 | K58: 13 | L58: 0.5 | M58: =binomt(J58,K58,L58,0) -> 0.1571044922 | N58: =binomt(J58,K58,L58,1) -> 0.8665771484 | O58: =binomt(J58,K58,L58,2) -> 0.2905273438 | R58: 45 | S58: 50 | T58: 0.5 | U58: =bint(R58,S58,T58,0) -> 1.881836909e-09 | V58: =bint(R58,S58,T58,1) -> 0.9999999998 | W58: =bint(R58,S58,T58,2) -> 2.104926011e-09 | X58: =bint(R58,S58,T58,3) -> 0.9999999998 | Z58: 45 | AA58: 100 | AB58: 0.5 | AC58: =bint(Z58,AA58,AB58,0) -> 0.04847429663 | AD58: =bint(Z58,AA58,AB58,1) -> 0.1841008087 | AE58: =bint(Z58,AA58,AB58,2) -> 0.864373488 | AF58: =bint(Z58,AA58,AB58,3) -> 0.7287469759 | AH58: 45 | AI58: 100 | AJ58: 0.2 | AK58: =bint(AH58,AI58,AJ58,0) -> 1.011137394e-08 | AL58: =bint(AH58,AI58,AJ58,1) -> 0.9999999958 | AM58: =bint(AH58,AI58,AJ58,2) -> 1.432655271e-08 | AN58: =bint(AH58,AI58,AJ58,3) -> 0.9999999958
A59: 33 | B59: 40 | C59: 0.5 | D59: =bint(A59,B59,C59,0) -> 1.695621904e-05 | E59: =bint(A59,B59,C59,1) -> 0.9999958177 | F59: =bint(A59,B59,C59,2) -> 2.113851133e-05 | G59: =bint(A59,B59,C59,3) -> 0.9999916354 | H59: =binU(A59,B59,C59,3) -> 0.9999916354 | J59: 9 | K59: 13 | L59: 0.5 | M59: =binomt(J59,K59,L59,0) -> 0.08728027344 | N59: =binomt(J59,K59,L59,1) -> 0.9538574219 | O59: =binomt(J59,K59,L59,2) -> 0.1334228516 | R59: 46 | S59: 50 | T59: 0.5 | U59: =bint(R59,S59,T59,0) -> 2.045474901e-10 | V59: =bint(R59,S59,T59,1) -> 1 | W59: =bint(R59,S59,T59,2) -> 2.230891027e-10 | X59: =bint(R59,S59,T59,3) -> 1 | Z59: 46 | AA59: 100 | AB59: 0.5 | AC59: =bint(Z59,AA59,AB59,0) -> 0.05795839814 | AD59: =bint(Z59,AA59,AB59,1) -> 0.2420592068 | AE59: =bint(Z59,AA59,AB59,2) -> 0.8158991913 | AF59: =bint(Z59,AA59,AB59,3) -> 0.6317983827 | AH59: 46 | AI59: 100 | AJ59: 0.2 | AK59: =bint(AH59,AI59,AJ59,0) -> 3.022421559e-09 | AL59: =bint(AH59,AI59,AJ59,1) -> 0.9999999988 | AM59: =bint(AH59,AI59,AJ59,2) -> 4.215178771e-09 | AN59: =bint(AH59,AI59,AJ59,3) -> 0.9999999988
A60: 34 | B60: 40 | C60: 0.5 | D60: =bint(A60,B60,C60,0) -> 3.490986273e-06 | E60: =bint(A60,B60,C60,1) -> 0.9999993087 | F60: =bint(A60,B60,C60,2) -> 4.182292287e-06 | G60: =bint(A60,B60,C60,3) -> 0.9999986174 | H60: =binU(A60,B60,C60,3) -> 0.9999986174 | J60: 10 | K60: 13 | L60: 0.5 | M60: =binomt(J60,K60,L60,0) -> 0.03491210937 | N60: =binomt(J60,K60,L60,1) -> 0.9887695312 | O60: =binomt(J60,K60,L60,2) -> 0.04614257812 | R60: 47 | S60: 50 | T60: 0.5 | U60: =bint(R60,S60,T60,0) -> 1.740829703e-11 | V60: =bint(R60,S60,T60,1) -> 1 | W60: =bint(R60,S60,T60,2) -> 1.854161269e-11 | X60: =bint(R60,S60,T60,3) -> 1 | Z60: 47 | AA60: 100 | AB60: 0.5 | AC60: =bint(Z60,AA60,AB60,0) -> 0.06659049999 | AD60: =bint(Z60,AA60,AB60,1) -> 0.3086497068 | AE60: =bint(Z60,AA60,AB60,2) -> 0.7579407932 | AF60: =bint(Z60,AA60,AB60,3) -> 0.5158815864 | AH60: 47 | AI60: 100 | AJ60: 0.2 | AK60: =bint(AH60,AI60,AJ60,0) -> 8.681423626e-10 | AL60: =bint(AH60,AI60,AJ60,1) -> 0.9999999997 | AM60: =bint(AH60,AI60,AJ60,2) -> 1.192757212e-09 | AN60: =bint(AH60,AI60,AJ60,3) -> 0.9999999997
A61: 35 | B61: 40 | C61: 0.5 | D61: =bint(A61,B61,C61,0) -> 5.984547897e-07 | E61: =bint(A61,B61,C61,1) -> 0.9999999071 | F61: =bint(A61,B61,C61,2) -> 6.913060133e-07 | G61: =bint(A61,B61,C61,3) -> 0.9999998143 | H61: =binU(A61,B61,C61,3) -> 0.9999998143 | J61: 11 | K61: 13 | L61: 0.5 | M61: =binomt(J61,K61,L61,0) -> 0.009521484375 | N61: =binomt(J61,K61,L61,1) -> 0.9982910156 | O61: =binomt(J61,K61,L61,2) -> 0.01123046875 | R61: 48 | S61: 50 | T61: 0.5 | U61: =bint(R61,S61,T61,0) -> 1.088018564e-12 | V61: =bint(R61,S61,T61,1) -> 1 | W61: =bint(R61,S61,T61,2) -> 1.133315664e-12 | X61: =bint(R61,S61,T61,3) -> 1 | Z61: 48 | AA61: 100 | AB61: 0.5 | AC61: =bint(Z61,AA61,AB61,0) -> 0.07352701041 | AD61: =bint(Z61,AA61,AB61,1) -> 0.3821767172 | AE61: =bint(Z61,AA61,AB61,2) -> 0.6913502932 | AF61: =bint(Z61,AA61,AB61,3) -> 0.3827005864 | AH61: 48 | AI61: 100 | AJ61: 0.2 | AK61: =bint(AH61,AI61,AJ61,0) -> 2.396434647e-10 | AL61: =bint(AH61,AI61,AJ61,1) -> 0.9999999999 | AM61: =bint(AH61,AI61,AJ61,2) -> 3.246148497e-10 | AN61: =bint(AH61,AI61,AJ61,3) -> 0.9999999999
A62: 36 | B62: 40 | C62: 0.5 | D62: =bint(A62,B62,C62,0) -> 8.31187208e-08 | E62: =bint(A62,B62,C62,1) -> 0.9999999903 | F62: =bint(A62,B62,C62,2) -> 9.28512236e-08 | G62: =bint(A62,B62,C62,3) -> 0.9999999903 | H62: =binU(A62,B62,C62,3) -> 0.9999999805 | J62: 12 | K62: 13 | L62: 0.5 | M62: =binomt(J62,K62,L62,0) -> 0.001586914063 | N62: =binomt(J62,K62,L62,1) -> 0.9998779297 | O62: =binomt(J62,K62,L62,2) -> 0.001708984375 | R62: 49 | S62: 50 | T62: 0.5 | U62: =bint(R62,S62,T62,0) -> 4.440892099e-14 | V62: =bint(R62,S62,T62,1) -> 1 | W62: =bint(R62,S62,T62,2) -> 4.52970994e-14 | X62: =bint(R62,S62,T62,3) -> 1 | Z62: 49 | AA62: 100 | AB62: 0.5 | AC62: =bint(Z62,AA62,AB62,0) -> 0.07802866411 | AD62: =bint(Z62,AA62,AB62,1) -> 0.4602053813 | AE62: =bint(Z62,AA62,AB62,2) -> 0.6178232828 | AF62: =bint(Z62,AA62,AB62,3) -> 0.2356465656 | AH62: 49 | AI62: 100 | AJ62: 0.2 | AK62: =bint(AH62,AI62,AJ62,0) -> 6.357887839e-11 | AL62: =bint(AH62,AI62,AJ62,1) -> 1 | AM62: =bint(AH62,AI62,AJ62,2) -> 8.497138501e-11 | AN62: =bint(AH62,AI62,AJ62,3) -> 1
A63: 37 | B63: 40 | C63: 0.5 | D63: =bint(A63,B63,C63,0) -> 8.985807654e-09 | E63: =bint(A63,B63,C63,1) -> 0.9999999993 | F63: =bint(A63,B63,C63,2) -> 9.732502804e-09 | G63: =bint(A63,B63,C63,3) -> 0.9999999993 | H63: =binU(A63,B63,C63,3) -> 0.9999999985 | J63: 13 | K63: 13 | L63: 0.5 | M63: =binomt(J63,K63,L63,0) -> 0.0001220703125 | N63: =binomt(J63,K63,L63,1) -> 1 | O63: =binomt(J63,K63,L63,2) -> 0.0001220703125 | R63: 50 | S63: 50 | T63: 0.5 | U63: =bint(R63,S63,T63,0) -> 8.881784197e-16 | V63: =bint(R63,S63,T63,1) -> 1 | W63: =bint(R63,S63,T63,2) -> 8.881784197e-16 | X63: =bint(R63,S63,T63,3) -> 1 | Z63: 50 | AA63: 100 | AB63: 0.5 | AC63: =bint(Z63,AA63,AB63,0) -> 0.07958923739 | AD63: =bint(Z63,AA63,AB63,1) -> 0.5397946187 | AE63: =bint(Z63,AA63,AB63,2) -> 0.5397946187 | AF63: =bint(Z63,AA63,AB63,3) -> 0.07958923739 | AH63: 50 | AI63: 100 | AJ63: 0.2 | AK63: =bint(AH63,AI63,AJ63,0) -> 1.621261399e-11 | AL63: =bint(AH63,AI63,AJ63,1) -> 1 | AM63: =bint(AH63,AI63,AJ63,2) -> 2.139250663e-11 | AN63: =bint(AH63,AI63,AJ63,3) -> 1
A64: 38 | B64: 40 | C64: 0.5 | D64: =bint(A64,B64,C64,0) -> 7.094058674e-10 | E64: =bint(A64,B64,C64,1) -> 1 | F64: =bint(A64,B64,C64,2) -> 7.466951502e-10 | G64: =bint(A64,B64,C64,3) -> 1 | H64: =binU(A64,B64,C64,3) -> 0.9999999999 | Z64: 51 | AA64: 100 | AB64: 0.5 | AC64: =bint(Z64,AA64,AB64,0) -> 0.07802866411 | AD64: =bint(Z64,AA64,AB64,1) -> 0.6178232828 | AE64: =bint(Z64,AA64,AB64,2) -> 0.4602053813 | AF64: =bint(Z64,AA64,AB64,3) -> 0.2356465656 | AH64: 51 | AI64: 100 | AJ64: 0.2 | AK64: =bint(AH64,AI64,AJ64,0) -> 3.973679899e-12 | AL64: =bint(AH64,AI64,AJ64,1) -> 1 | AM64: =bint(AH64,AI64,AJ64,2) -> 5.179892638e-12 | AN64: =bint(AH64,AI64,AJ64,3) -> 1
A65: 39 | B65: 40 | C65: 0.5 | D65: =bint(A65,B65,C65,0) -> 3.637978807e-11 | E65: =bint(A65,B65,C65,1) -> 1 | F65: =bint(A65,B65,C65,2) -> 3.728928277e-11 | G65: =bint(A65,B65,C65,3) -> 1 | H65: =binU(A65,B65,C65,3) -> 1 | Z65: 52 | AA65: 100 | AB65: 0.5 | AC65: =bint(Z65,AA65,AB65,0) -> 0.07352701041 | AD65: =bint(Z65,AA65,AB65,1) -> 0.6913502932 | AE65: =bint(Z65,AA65,AB65,2) -> 0.3821767172 | AF65: =bint(Z65,AA65,AB65,3) -> 0.3827005864 | AH65: 52 | AI65: 100 | AJ65: 0.2 | AK65: =bint(AH65,AI65,AJ65,0) -> 9.361072839e-13 | AL65: =bint(AH65,AI65,AJ65,1) -> 1 | AM65: =bint(AH65,AI65,AJ65,2) -> 1.206212738e-12 | AN65: =bint(AH65,AI65,AJ65,3) -> 1
A66: 40 | B66: 40 | C66: 0.5 | D66: =bint(A66,B66,C66,0) -> 9.094947018e-13 | E66: =bint(A66,B66,C66,1) -> 1 | F66: =bint(A66,B66,C66,2) -> 9.094947018e-13 | G66: =bint(A66,B66,C66,3) -> 1 | H66: =binU(A66,B66,C66,3) -> 1 | Z66: 53 | AA66: 100 | AB66: 0.5 | AC66: =bint(Z66,AA66,AB66,0) -> 0.06659049999 | AD66: =bint(Z66,AA66,AB66,1) -> 0.7579407932 | AE66: =bint(Z66,AA66,AB66,2) -> 0.3086497068 | AF66: =bint(Z66,AA66,AB66,3) -> 0.5158815864 | AH66: 53 | AI66: 100 | AJ66: 0.2 | AK66: =bint(AH66,AI66,AJ66,0) -> 2.11948819e-13 | AL66: =bint(AH66,AI66,AJ66,1) -> 1 | AM66: =bint(AH66,AI66,AJ66,2) -> 2.701054544e-13 | AN66: =bint(AH66,AI66,AJ66,3) -> 1
Z67: 54 | AA67: 100 | AB67: 0.5 | AC67: =bint(Z67,AA67,AB67,0) -> 0.05795839814 | AD67: =bint(Z67,AA67,AB67,1) -> 0.8158991913 | AE67: =bint(Z67,AA67,AB67,2) -> 0.2420592068 | AF67: =bint(Z67,AA67,AB67,3) -> 0.6317983827 | AH67: 54 | AI67: 100 | AJ67: 0.2 | AK67: =bint(AH67,AI67,AJ67,0) -> 4.611849302e-14 | AL67: =bint(AH67,AI67,AJ67,1) -> 1 | AM67: =bint(AH67,AI67,AJ67,2) -> 5.815663539e-14 | AN67: =bint(AH67,AI67,AJ67,3) -> 1
D68: =1-BINOMDIST(51,100,0.4,1) -> 0.0100051432 | Z68: 55 | AA68: 100 | AB68: 0.5 | AC68: =bint(Z68,AA68,AB68,0) -> 0.04847429663 | AD68: =bint(Z68,AA68,AB68,1) -> 0.864373488 | AE68: =bint(Z68,AA68,AB68,2) -> 0.1841008087 | AF68: =bint(Z68,AA68,AB68,3) -> 0.7287469759 | AH68: 55 | AI68: 100 | AJ68: 0.2 | AK68: =bint(AH68,AI68,AJ68,0) -> 9.642957632e-15 | AL68: =bint(AH68,AI68,AJ68,1) -> 1 | AM68: =bint(AH68,AI68,AJ68,2) -> 1.203814237e-14 | AN68: =bint(AH68,AI68,AJ68,3) -> 1
D69: =POISSON(0,20000/7000,1) -> 0.05743261927 | Z69: 56 | AA69: 100 | AB69: 0.5 | AC69: =bint(Z69,AA69,AB69,0) -> 0.03895255979 | AD69: =bint(Z69,AA69,AB69,1) -> 0.9033260478 | AE69: =bint(Z69,AA69,AB69,2) -> 0.135626512 | AF69: =bint(Z69,AA69,AB69,3) -> 0.8066520955 | AH69: 56 | AI69: 100 | AJ69: 0.2 | AK69: =bint(AH69,AI69,AJ69,0) -> 1.93720131e-15 | AL69: =bint(AH69,AI69,AJ69,1) -> 1 | AM69: =bint(AH69,AI69,AJ69,2) -> 2.395184736e-15 | AN69: =bint(AH69,AI69,AJ69,3) -> 1
D70: =BINOMDIST(0,20000,1/7000,1) -> 0.0574208984 | Z70: 57 | AA70: 100 | AB70: 0.5 | AC70: =bint(Z70,AA70,AB70,0) -> 0.03006864264 | AD70: =bint(Z70,AA70,AB70,1) -> 0.9333946904 | AE70: =bint(Z70,AA70,AB70,2) -> 0.09667395225 | AF70: =bint(Z70,AA70,AB70,3) -> 0.8667893808 | AH70: 57 | AI70: 100 | AJ70: 0.2 | AK70: =bint(AH70,AI70,AJ70,0) -> 3.738458669e-16 | AL70: =bint(AH70,AI70,AJ70,1) -> 1 | AM70: =bint(AH70,AI70,AJ70,2) -> 4.579834258e-16 | AN70: =bint(AH70,AI70,AJ70,3) -> 1
Z71: 58 | AA71: 100 | AB71: 0.5 | AC71: =bint(Z71,AA71,AB71,0) -> 0.02229226955 | AD71: =bint(Z71,AA71,AB71,1) -> 0.9556869599 | AE71: =bint(Z71,AA71,AB71,2) -> 0.0666053096 | AF71: =bint(Z71,AA71,AB71,3) -> 0.9113739199 | AH71: 58 | AI71: 100 | AJ71: 0.2 | AK71: =bint(AH71,AI71,AJ71,0) -> 6.929039774e-17 | AL71: =bint(AH71,AI71,AJ71,1) -> 1 | AM71: =bint(AH71,AI71,AJ71,2) -> 8.413755891e-17 | AN71: =bint(AH71,AI71,AJ71,3) -> 1
Z72: 59 | AA72: 100 | AB72: 0.5 | AC72: =bint(Z72,AA72,AB72,0) -> 0.01586907324 | AD72: =bint(Z72,AA72,AB72,1) -> 0.9715560332 | AE72: =bint(Z72,AA72,AB72,2) -> 0.04431304006 | AF72: =bint(Z72,AA72,AB72,3) -> 0.9431120664 | AH72: 59 | AI72: 100 | AJ72: 0.2 | AK72: =bint(AH72,AI72,AJ72,0) -> 1.233134197e-17 | AL72: =bint(AH72,AI72,AJ72,1) -> 1 | AM72: =bint(AH72,AI72,AJ72,2) -> 1.484716117e-17 | AN72: =bint(AH72,AI72,AJ72,3) -> 1
Z73: 60 | AA73: 100 | AB73: 0.5 | AC73: =bint(Z73,AA73,AB73,0) -> 0.01084386671 | AD73: =bint(Z73,AA73,AB73,1) -> 0.9823998999 | AE73: =bint(Z73,AA73,AB73,2) -> 0.02844396682 | AF73: =bint(Z73,AA73,AB73,3) -> 0.9647997998 | AH73: 60 | AI73: 100 | AJ73: 0.2 | AK73: =bint(AH73,AI73,AJ73,0) -> 2.106604253e-18 | AL73: =bint(AH73,AI73,AJ73,1) -> 1 | AM73: =bint(AH73,AI73,AJ73,2) -> 2.5158192e-18 | AN73: =bint(AH73,AI73,AJ73,3) -> 1
Z74: 61 | AA74: 100 | AB74: 0.5 | AC74: =bint(Z74,AA74,AB74,0) -> 0.00711073227 | AD74: =bint(Z74,AA74,AB74,1) -> 0.9895106322 | AE74: =bint(Z74,AA74,AB74,2) -> 0.01760010011 | AF74: =bint(Z74,AA74,AB74,3) -> 0.9790212643 | AH74: 61 | AI74: 100 | AJ74: 0.2 | AK74: =bint(AH74,AI74,AJ74,0) -> 3.453449595e-19 | AL74: =bint(AH74,AI74,AJ74,1) -> 1 | AM74: =bint(AH74,AI74,AJ74,2) -> 4.092149463e-19 | AN74: =bint(AH74,AI74,AJ74,3) -> 1
Z75: 62 | AA75: 100 | AB75: 0.5 | AC75: =bint(Z75,AA75,AB75,0) -> 0.004472879976 | AD75: =bint(Z75,AA75,AB75,1) -> 0.9939835121 | AE75: =bint(Z75,AA75,AB75,2) -> 0.01048936784 | AF75: =bint(Z75,AA75,AB75,3) -> 0.9879670243 | AH75: 62 | AI75: 100 | AJ75: 0.2 | AK75: =bint(AH75,AI75,AJ75,0) -> 5.430827993e-20 | AL75: =bint(AH75,AI75,AJ75,1) -> 1 | AM75: =bint(AH75,AI75,AJ75,2) -> 6.386998678e-20 | AN75: =bint(AH75,AI75,AJ75,3) -> 1
Z76: 63 | AA76: 100 | AB76: 0.5 | AC76: =bint(Z76,AA76,AB76,0) -> 0.002697927605 | AD76: =bint(Z76,AA76,AB76,1) -> 0.9966814397 | AE76: =bint(Z76,AA76,AB76,2) -> 0.006016487863 | AF76: =bint(Z76,AA76,AB76,3) -> 0.9933628795 | AH76: 63 | AI76: 100 | AJ76: 0.2 | AK76: =bint(AH76,AI76,AJ76,0) -> 8.189343799e-21 | AL76: =bint(AH76,AI76,AJ76,1) -> 1 | AM76: =bint(AH76,AI76,AJ76,2) -> 9.561706848e-21 | AN76: =bint(AH76,AI76,AJ76,3) -> 1
Z77: 64 | AA77: 100 | AB77: 0.5 | AC77: =bint(Z77,AA77,AB77,0) -> 0.001559739396 | AD77: =bint(Z77,AA77,AB77,1) -> 0.9982411791 | AE77: =bint(Z77,AA77,AB77,2) -> 0.003318560258 | AF77: =bint(Z77,AA77,AB77,3) -> 0.9964823583 | AH77: 64 | AI77: 100 | AJ77: 0.2 | AK77: =bint(AH77,AI77,AJ77,0) -> 1.183616096e-21 | AL77: =bint(AH77,AI77,AJ77,1) -> 1 | AM77: =bint(AH77,AI77,AJ77,2) -> 1.372363049e-21 | AN77: =bint(AH77,AI77,AJ77,3) -> 1
Z78: 65 | AA78: 100 | AB78: 0.5 | AC78: =bint(Z78,AA78,AB78,0) -> 0.0008638556657 | AD78: =bint(Z78,AA78,AB78,1) -> 0.9991050348 | AE78: =bint(Z78,AA78,AB78,2) -> 0.001758820861 | AF78: =bint(Z78,AA78,AB78,3) -> 0.9982100696 | AH78: 65 | AI78: 100 | AJ78: 0.2 | AK78: =bint(AH78,AI78,AJ78,0) -> 1.638853056e-22 | AL78: =bint(AH78,AI78,AJ78,1) -> 1 | AM78: =bint(AH78,AI78,AJ78,2) -> 1.887469532e-22 | AN78: =bint(AH78,AI78,AJ78,3) -> 1
Z79: 66 | AA79: 100 | AB79: 0.5 | AC79: =bint(Z79,AA79,AB79,0) -> 0.0004581052773 | AD79: =bint(Z79,AA79,AB79,1) -> 0.9995631401 | AE79: =bint(Z79,AA79,AB79,2) -> 0.0008949651957 | AF79: =bint(Z79,AA79,AB79,3) -> 0.9991262802 | AH79: 66 | AI79: 100 | AJ79: 0.2 | AK79: =bint(AH79,AI79,AJ79,0) -> 2.172721854e-23 | AL79: =bint(AH79,AI79,AJ79,1) -> 1 | AM79: =bint(AH79,AI79,AJ79,2) -> 2.486164766e-23 | AN79: =bint(AH79,AI79,AJ79,3) -> 1
Z80: 67 | AA80: 100 | AB80: 0.5 | AC80: =bint(Z80,AA80,AB80,0) -> 0.0002324713347 | AD80: =bint(Z80,AA80,AB80,1) -> 0.9997956114 | AE80: =bint(Z80,AA80,AB80,2) -> 0.0004368599185 | AF80: =bint(Z80,AA80,AB80,3) -> 0.9995912228 | AH80: 67 | AI80: 100 | AJ80: 0.2 | AK80: =bint(AH80,AI80,AJ80,0) -> 2.756438173e-24 | AL80: =bint(AH80,AI80,AJ80,1) -> 1 | AM80: =bint(AH80,AI80,AJ80,2) -> 3.134429119e-24 | AN80: =bint(AH80,AI80,AJ80,3) -> 1
Z81: 68 | AA81: 100 | AB81: 0.5 | AC81: =bint(Z81,AA81,AB81,0) -> 0.0001128169713 | AD81: =bint(Z81,AA81,AB81,1) -> 0.9999084284 | AE81: =bint(Z81,AA81,AB81,2) -> 0.0002043885837 | AF81: =bint(Z81,AA81,AB81,3) -> 0.9998168568 | AH81: 68 | AI81: 100 | AJ81: 0.2 | AK81: =bint(AH81,AI81,AJ81,0) -> 3.344208078e-25 | AL81: =bint(AH81,AI81,AJ81,1) -> 1 | AM81: =bint(AH81,AI81,AJ81,2) -> 3.779909456e-25 | AN81: =bint(AH81,AI81,AJ81,3) -> 1
Z82: 69 | AA82: 100 | AB82: 0.5 | AC82: =bint(Z82,AA82,AB82,0) -> 5.232091421e-05 | AD82: =bint(Z82,AA82,AB82,1) -> 0.9999607493 | AE82: =bint(Z82,AA82,AB82,2) -> 9.157161244e-05 | AF82: =bint(Z82,AA82,AB82,3) -> 0.9999214986 | AH82: 69 | AI82: 100 | AJ82: 0.2 | AK82: =bint(AH82,AI82,AJ82,0) -> 3.877342699e-26 | AL82: =bint(AH82,AI82,AJ82,1) -> 1 | AM82: =bint(AH82,AI82,AJ82,2) -> 4.357013776e-26 | AN82: =bint(AH82,AI82,AJ82,3) -> 1
Z83: 70 | AA83: 100 | AB83: 0.5 | AC83: =bint(Z83,AA83,AB83,0) -> 2.317069058e-05 | AD83: =bint(Z83,AA83,AB83,1) -> 0.99998392 | AE83: =bint(Z83,AA83,AB83,2) -> 3.925069823e-05 | AF83: =bint(Z83,AA83,AB83,3) -> 0.99996784 | AH83: 70 | AI83: 100 | AJ83: 0.2 | AK83: =bint(AH83,AI83,AJ83,0) -> 4.292772274e-27 | AL83: =bint(AH83,AI83,AJ83,1) -> 1 | AM83: =bint(AH83,AI83,AJ83,2) -> 4.796710771e-27 | AN83: =bint(AH83,AI83,AJ83,3) -> 1
Z84: 71 | AA84: 100 | AB84: 0.5 | AC84: =bint(Z84,AA84,AB84,0) -> 9.790432639e-06 | AD84: =bint(Z84,AA84,AB84,1) -> 0.9999937104 | AE84: =bint(Z84,AA84,AB84,2) -> 1.608000765e-05 | AF84: =bint(Z84,AA84,AB84,3) -> 0.9999874209 | AH84: 71 | AI84: 100 | AJ84: 0.2 | AK84: =bint(AH84,AI84,AJ84,0) -> 4.534618599e-28 | AL84: =bint(AH84,AI84,AJ84,1) -> 1 | AM84: =bint(AH84,AI84,AJ84,2) -> 5.039384967e-28 | AN84: =bint(AH84,AI84,AJ84,3) -> 1
Z85: 72 | AA85: 100 | AB85: 0.5 | AC85: =bint(Z85,AA85,AB85,0) -> 3.943368702e-06 | AD85: =bint(Z85,AA85,AB85,1) -> 0.9999976538 | AE85: =bint(Z85,AA85,AB85,2) -> 6.289575008e-06 | AF85: =bint(Z85,AA85,AB85,3) -> 0.9999953076 | AH85: 72 | AI85: 100 | AJ85: 0.2 | AK85: =bint(AH85,AI85,AJ85,0) -> 4.566109006e-29 | AL85: =bint(AH85,AI85,AJ85,1) -> 1 | AM85: =bint(AH85,AI85,AJ85,2) -> 5.047663676e-29 | AN85: =bint(AH85,AI85,AJ85,3) -> 1
Z86: 73 | AA86: 100 | AB86: 0.5 | AC86: =bint(Z86,AA86,AB86,0) -> 1.512524982e-06 | AD86: =bint(Z86,AA86,AB86,1) -> 0.9999991663 | AE86: =bint(Z86,AA86,AB86,2) -> 2.346206306e-06 | AF86: =bint(Z86,AA86,AB86,3) -> 0.9999983326 | AH86: 73 | AI86: 100 | AJ86: 0.2 | AK86: =bint(AH86,AI86,AJ86,0) -> 4.378460691e-30 | AL86: =bint(AH86,AI86,AJ86,1) -> 1 | AM86: =bint(AH86,AI86,AJ86,2) -> 4.815546695e-30 | AN86: =bint(AH86,AI86,AJ86,3) -> 1
Z87: 74 | AA87: 100 | AB87: 0.5 | AC87: =bint(Z87,AA87,AB87,0) -> 5.51867223e-07 | AD87: =bint(Z87,AA87,AB87,1) -> 0.9999997182 | AE87: =bint(Z87,AA87,AB87,2) -> 8.336813247e-07 | AF87: =bint(Z87,AA87,AB87,3) -> 0.9999994364 | AH87: 74 | AI87: 100 | AJ87: 0.2 | AK87: =bint(AH87,AI87,AJ87,0) -> 3.993866171e-31 | AL87: =bint(AH87,AI87,AJ87,1) -> 1 | AM87: =bint(AH87,AI87,AJ87,2) -> 4.37086004e-31 | AN87: =bint(AH87,AI87,AJ87,3) -> 1
Z88: 75 | AA88: 100 | AB88: 0.5 | AC88: =bint(Z88,AA88,AB88,0) -> 1.913139706e-07 | AD88: =bint(Z88,AA88,AB88,1) -> 0.9999999095 | AE88: =bint(Z88,AA88,AB88,2) -> 2.818141017e-07 | AF88: =bint(Z88,AA88,AB88,3) -> 0.999999819 | AH88: 75 | AI88: 100 | AJ88: 0.2 | AK88: =bint(AH88,AI88,AJ88,0) -> 3.461350681e-32 | AL88: =bint(AH88,AI88,AJ88,1) -> 1 | AM88: =bint(AH88,AI88,AJ88,2) -> 3.769938695e-32 | AN88: =bint(AH88,AI88,AJ88,3) -> 1
Z89: 76 | AA89: 100 | AB89: 0.5 | AC89: =bint(Z89,AA89,AB89,0) -> 6.293222719e-08 | AD89: =bint(Z89,AA89,AB89,1) -> 0.9999999724 | AE89: =bint(Z89,AA89,AB89,2) -> 9.050013107e-08 | AF89: =bint(Z89,AA89,AB89,3) -> 0.9999999724 | AH89: 76 | AI89: 100 | AJ89: 0.2 | AK89: =bint(AH89,AI89,AJ89,0) -> 2.846505495e-33 | AL89: =bint(AH89,AI89,AJ89,1) -> 1 | AM89: =bint(AH89,AI89,AJ89,2) -> 3.085880137e-33 | AN89: =bint(AH89,AI89,AJ89,3) -> 1
Z90: 77 | AA90: 100 | AB90: 0.5 | AC90: =bint(Z90,AA90,AB90,0) -> 1.961523964e-08 | AD90: =bint(Z90,AA90,AB90,1) -> 0.999999992 | AE90: =bint(Z90,AA90,AB90,2) -> 2.756790388e-08 | AF90: =bint(Z90,AA90,AB90,3) -> 0.999999992 | AH90: 77 | AI90: 100 | AJ90: 0.2 | AK90: =bint(AH90,AI90,AJ90,0) -> 2.21805623e-34 | AL90: =bint(AH90,AI90,AJ90,1) -> 1 | AM90: =bint(AH90,AI90,AJ90,2) -> 2.393746421e-34 | AN90: =bint(AH90,AI90,AJ90,3) -> 1
Z91: 78 | AA91: 100 | AB91: 0.5 | AC91: =bint(Z91,AA91,AB91,0) -> 5.78398092e-09 | AD91: =bint(Z91,AA91,AB91,1) -> 0.9999999978 | AE91: =bint(Z91,AA91,AB91,2) -> 7.952664237e-09 | AF91: =bint(Z91,AA91,AB91,3) -> 0.9999999978 | AH91: 78 | AI91: 100 | AJ91: 0.2 | AK91: =bint(AH91,AI91,AJ91,0) -> 1.635105554e-35 | AL91: =bint(AH91,AI91,AJ91,1) -> 1 | AM91: =bint(AH91,AI91,AJ91,2) -> 1.756901915e-35 | AN91: =bint(AH91,AI91,AJ91,3) -> 1
Z92: 79 | AA92: 100 | AB92: 0.5 | AC92: =bint(Z92,AA92,AB92,0) -> 1.610728864e-09 | AD92: =bint(Z92,AA92,AB92,1) -> 0.9999999994 | AE92: =bint(Z92,AA92,AB92,2) -> 2.168683317e-09 | AF92: =bint(Z92,AA92,AB92,3) -> 0.9999999994 | AH92: 79 | AI92: 100 | AJ92: 0.2 | AK92: =bint(AH92,AI92,AJ92,0) -> 1.138364626e-36 | AL92: =bint(AH92,AI92,AJ92,1) -> 1 | AM92: =bint(AH92,AI92,AJ92,2) -> 1.217963613e-36 | AN92: =bint(AH92,AI92,AJ92,3) -> 1
Z93: 80 | AA93: 100 | AB93: 0.5 | AC93: =bint(Z93,AA93,AB93,0) -> 4.228163268e-10 | AD93: =bint(Z93,AA93,AB93,1) -> 0.9999999999 | AE93: =bint(Z93,AA93,AB93,2) -> 5.579544529e-10 | AF93: =bint(Z93,AA93,AB93,3) -> 0.9999999999 | AH93: 80 | AI93: 100 | AJ93: 0.2 | AK93: =bint(AH93,AI93,AJ93,0) -> 7.470517859e-38 | AL93: =bint(AH93,AI93,AJ93,1) -> 1 | AM93: =bint(AH93,AI93,AJ93,2) -> 7.959898644e-38 | AN93: =bint(AH93,AI93,AJ93,3) -> 1
Z94: 81 | AA94: 100 | AB94: 0.5 | AC94: =bint(Z94,AA94,AB94,0) -> 1.04399093e-10 | AD94: =bint(Z94,AA94,AB94,1) -> 1 | AE94: =bint(Z94,AA94,AB94,2) -> 1.351381261e-10 | AF94: =bint(Z94,AA94,AB94,3) -> 1 | AH94: 81 | AI94: 100 | AJ94: 0.2 | AK94: =bint(AH94,AI94,AJ94,0) -> 4.611430777e-39 | AL94: =bint(AH94,AI94,AJ94,1) -> 1 | AM94: =bint(AH94,AI94,AJ94,2) -> 4.893807857e-39 | AN94: =bint(AH94,AI94,AJ94,3) -> 1
Z95: 82 | AA95: 100 | AB95: 0.5 | AC95: =bint(Z95,AA95,AB95,0) -> 2.419003375e-11 | AD95: =bint(Z95,AA95,AB95,1) -> 1 | AE95: =bint(Z95,AA95,AB95,2) -> 3.073903308e-11 | AF95: =bint(Z95,AA95,AB95,3) -> 1 | AH95: 82 | AI95: 100 | AJ95: 0.2 | AK95: =bint(AH95,AI95,AJ95,0) -> 2.671255633e-40 | AL95: =bint(AH95,AI95,AJ95,1) -> 1 | AM95: =bint(AH95,AI95,AJ95,2) -> 2.823770798e-40 | AN95: =bint(AH95,AI95,AJ95,3) -> 1
Z96: 83 | AA96: 100 | AB96: 0.5 | AC96: =bint(Z96,AA96,AB96,0) -> 5.246031416e-12 | AD96: =bint(Z96,AA96,AB96,1) -> 1 | AE96: =bint(Z96,AA96,AB96,2) -> 6.548999325e-12 | AF96: =bint(Z96,AA96,AB96,3) -> 1 | AH96: 83 | AI96: 100 | AJ96: 0.2 | AK96: =bint(AH96,AI96,AJ96,0) -> 1.448271126e-41 | AL96: =bint(AH96,AI96,AJ96,1) -> 1 | AM96: =bint(AH96,AI96,AJ96,2) -> 1.525151654e-41 | AN96: =bint(AH96,AI96,AJ96,3) -> 1
Z97: 84 | AA97: 100 | AB97: 0.5 | AC97: =bint(Z97,AA97,AB97,0) -> 1.061696834e-12 | AD97: =bint(Z97,AA97,AB97,1) -> 1 | AE97: =bint(Z97,AA97,AB97,2) -> 1.302967909e-12 | AF97: =bint(Z97,AA97,AB97,3) -> 1 | AH97: 84 | AI97: 100 | AJ97: 0.2 | AK97: =bint(AH97,AI97,AJ97,0) -> 7.327562246e-43 | AL97: =bint(AH97,AI97,AJ97,1) -> 1 | AM97: =bint(AH97,AI97,AJ97,2) -> 7.688052757e-43 | AN97: =bint(AH97,AI97,AJ97,3) -> 1
Z98: 85 | AA98: 100 | AB98: 0.5 | AC98: =bint(Z98,AA98,AB98,0) -> 1.998488158e-13 | AD98: =bint(Z98,AA98,AB98,1) -> 1 | AE98: =bint(Z98,AA98,AB98,2) -> 2.412710752e-13 | AF98: =bint(Z98,AA98,AB98,3) -> 1 | AH98: 85 | AI98: 100 | AJ98: 0.2 | AK98: =bint(AH98,AI98,AJ98,0) -> 3.448264587e-44 | AL98: =bint(AH98,AI98,AJ98,1) -> 1 | AM98: =bint(AH98,AI98,AJ98,2) -> 3.604905108e-44 | AN98: =bint(AH98,AI98,AJ98,3) -> 1
Z99: 86 | AA99: 100 | AB99: 0.5 | AC99: =bint(Z99,AA99,AB99,0) -> 3.48573516e-14 | AD99: =bint(Z99,AA99,AB99,1) -> 1 | AE99: =bint(Z99,AA99,AB99,2) -> 4.142225936e-14 | AF99: =bint(Z99,AA99,AB99,3) -> 1 | AH99: 86 | AI99: 100 | AJ99: 0.2 | AK99: =bint(AH99,AI99,AJ99,0) -> 1.503603744e-45 | AL99: =bint(AH99,AI99,AJ99,1) -> 1 | AM99: =bint(AH99,AI99,AJ99,2) -> 1.566405217e-45 | AN99: =bint(AH99,AI99,AJ99,3) -> 1
Z100: 87 | AA100: 100 | AB100: 0.5 | AC100: =bint(Z100,AA100,AB100,0) -> 5.609228993e-15 | AD100: =bint(Z100,AA100,AB100,1) -> 1 | AE100: =bint(Z100,AA100,AB100,2) -> 6.564907761e-15 | AF100: =bint(Z100,AA100,AB100,3) -> 1 | AH100: 87 | AI100: 100 | AJ100: 0.2 | AK100: =bint(AH100,AI100,AJ100,0) -> 6.04898058e-47 | AL100: =bint(AH100,AI100,AJ100,1) -> 1 | AM100: =bint(AH100,AI100,AJ100,2) -> 6.280147336e-47 | AN100: =bint(AH100,AI100,AJ100,3) -> 1
Z101: 88 | AA101: 100 | AB101: 0.5 | AC101: =bint(Z101,AA101,AB101,0) -> 8.286361012e-16 | AD101: =bint(Z101,AA101,AB101,1) -> 1 | AE101: =bint(Z101,AA101,AB101,2) -> 9.55678768e-16 | AF101: =bint(Z101,AA101,AB101,3) -> 1 | AH101: 88 | AI101: 100 | AJ101: 0.2 | AK101: =bint(AH101,AI101,AJ101,0) -> 2.23399851e-48 | AL101: =bint(AH101,AI101,AJ101,1) -> 1 | AM101: =bint(AH101,AI101,AJ101,2) -> 2.311667557e-48 | AN101: =bint(AH101,AI101,AJ101,3) -> 1
Z102: 89 | AA102: 100 | AB102: 0.5 | AC102: =bint(Z102,AA102,AB102,0) -> 1.117262159e-16 | AD102: =bint(Z102,AA102,AB102,1) -> 1 | AE102: =bint(Z102,AA102,AB102,2) -> 1.270426668e-16 | AF102: =bint(Z102,AA102,AB102,3) -> 1 | AH102: 89 | AI102: 100 | AJ102: 0.2 | AK102: =bint(AH102,AI102,AJ102,0) -> 7.530332055e-50 | AL102: =bint(AH102,AI102,AJ102,1) -> 1 | AM102: =bint(AH102,AI102,AJ102,2) -> 7.766904767e-50 | AN102: =bint(AH102,AI102,AJ102,3) -> 1
Z103: 90 | AA103: 100 | AB103: 0.5 | AC103: =bint(Z103,AA103,AB103,0) -> 1.365542639e-17 | AD103: =bint(Z103,AA103,AB103,1) -> 1 | AE103: =bint(Z103,AA103,AB103,2) -> 1.531645088e-17 | AF103: =bint(Z103,AA103,AB103,3) -> 1 | AH103: 90 | AI103: 100 | AJ103: 0.2 | AK103: =bint(AH103,AI103,AJ103,0) -> 2.300934795e-51 | AL103: =bint(AH103,AI103,AJ103,1) -> 1 | AM103: =bint(AH103,AI103,AJ103,2) -> 2.365727122e-51 | AN103: =bint(AH103,AI103,AJ103,3) -> 1
Z104: 91 | AA104: 100 | AB104: 0.5 | AC104: =bint(Z104,AA104,AB104,0) -> 1.500596306e-18 | AD104: =bint(Z104,AA104,AB104,1) -> 1 | AE104: =bint(Z104,AA104,AB104,2) -> 1.66102449e-18 | AF104: =bint(Z104,AA104,AB104,3) -> 1 | AH104: 91 | AI104: 100 | AJ104: 0.2 | AK104: =bint(AH104,AI104,AJ104,0) -> 6.321249435e-53 | AL104: =bint(AH104,AI104,AJ104,1) -> 1 | AM104: =bint(AH104,AI104,AJ104,2) -> 6.479232735e-53 | AN104: =bint(AH104,AI104,AJ104,3) -> 1
Z105: 92 | AA105: 100 | AB105: 0.5 | AC105: =bint(Z105,AA105,AB105,0) -> 1.467974647e-19 | AD105: =bint(Z105,AA105,AB105,1) -> 1 | AE105: =bint(Z105,AA105,AB105,2) -> 1.604281834e-19 | AF105: =bint(Z105,AA105,AB105,3) -> 1 | AH105: 92 | AI105: 100 | AJ105: 0.2 | AK105: =bint(AH105,AI105,AJ105,0) -> 1.545957742e-54 | AL105: =bint(AH105,AI105,AJ105,1) -> 1 | AM105: =bint(AH105,AI105,AJ105,2) -> 1.579832996e-54 | AN105: =bint(AH105,AI105,AJ105,3) -> 1
Z106: 93 | AA106: 100 | AB106: 0.5 | AC106: =bint(Z106,AA106,AB106,0) -> 1.26277389e-20 | AD106: =bint(Z106,AA106,AB106,1) -> 1 | AE106: =bint(Z106,AA106,AB106,2) -> 1.363071866e-20 | AF106: =bint(Z106,AA106,AB106,3) -> 1 | AH106: 93 | AI106: 100 | AJ106: 0.2 | AK106: =bint(AH106,AI106,AJ106,0) -> 3.324640306e-56 | AL106: =bint(AH106,AI106,AJ106,1) -> 1 | AM106: =bint(AH106,AI106,AJ106,2) -> 3.387525351e-56 | AN106: =bint(AH106,AI106,AJ106,3) -> 1
Z107: 94 | AA107: 100 | AB107: 0.5 | AC107: =bint(Z107,AA107,AB107,0) -> 9.403635353e-22 | AD107: =bint(Z107,AA107,AB107,1) -> 1 | AE107: =bint(Z107,AA107,AB107,2) -> 1.002979761e-21 | AF107: =bint(Z107,AA107,AB107,3) -> 1 | AH107: 94 | AI107: 100 | AJ107: 0.2 | AK107: =bint(AH107,AI107,AJ107,0) -> 6.189489932e-58 | AL107: =bint(AH107,AI107,AJ107,1) -> 1 | AM107: =bint(AH107,AI107,AJ107,2) -> 6.28850445e-58 | AN107: =bint(AH107,AI107,AJ107,3) -> 1
Z108: 95 | AA108: 100 | AB108: 0.5 | AC108: =bint(Z108,AA108,AB108,0) -> 5.939138118e-23 | AD108: =bint(Z108,AA108,AB108,1) -> 1 | AE108: =bint(Z108,AA108,AB108,2) -> 6.261622563e-23 | AF108: =bint(Z108,AA108,AB108,3) -> 1 | AH108: 95 | AI108: 100 | AJ108: 0.2 | AK108: =bint(AH108,AI108,AJ108,0) -> 9.77287884e-60 | AL108: =bint(AH108,AI108,AJ108,1) -> 1 | AM108: =bint(AH108,AI108,AJ108,2) -> 9.901451823e-60 | AN108: =bint(AH108,AI108,AJ108,3) -> 1
Z109: 96 | AA109: 100 | AB109: 0.5 | AC109: =bint(Z109,AA109,AB109,0) -> 3.093301103e-24 | AD109: =bint(Z109,AA109,AB109,1) -> 1 | AE109: =bint(Z109,AA109,AB109,2) -> 3.224844448e-24 | AF109: =bint(Z109,AA109,AB109,3) -> 1 | AH109: 96 | AI109: 100 | AJ109: 0.2 | AK109: =bint(AH109,AI109,AJ109,0) -> 1.272510266e-61 | AL109: =bint(AH109,AI109,AJ109,1) -> 1 | AM109: =bint(AH109,AI109,AJ109,2) -> 1.285729834e-61 | AN109: =bint(AH109,AI109,AJ109,3) -> 1
Z110: 97 | AA110: 100 | AB110: 0.5 | AC110: =bint(Z110,AA110,AB110,0) -> 1.275588084e-25 | AD110: =bint(Z110,AA110,AB110,1) -> 1 | AE110: =bint(Z110,AA110,AB110,2) -> 1.315433448e-25 | AF110: =bint(Z110,AA110,AB110,3) -> 1 | AH110: 97 | AI110: 100 | AJ110: 0.2 | AK110: =bint(AH110,AI110,AJ110,0) -> 1.311866253e-63 | AL110: =bint(AH110,AI110,AJ110,1) -> 1 | AM110: =bint(AH110,AI110,AJ110,2) -> 1.321956879e-63 | AN110: =bint(AH110,AI110,AJ110,3) -> 1
Z111: 98 | AA111: 100 | AB111: 0.5 | AC111: =bint(Z111,AA111,AB111,0) -> 3.904861481e-27 | AD111: =bint(Z111,AA111,AB111,1) -> 1 | AE111: =bint(Z111,AA111,AB111,2) -> 3.984536432e-27 | AF111: =bint(Z111,AA111,AB111,3) -> 1 | AH111: 98 | AI111: 100 | AJ111: 0.2 | AK111: =bint(AH111,AI111,AJ111,0) -> 1.003979275e-65 | AL111: =bint(AH111,AI111,AJ111,1) -> 1 | AM111: =bint(AH111,AI111,AJ111,2) -> 1.009062554e-65 | AN111: =bint(AH111,AI111,AJ111,3) -> 1
Z112: 99 | AA112: 100 | AB112: 0.5 | AC112: =bint(Z112,AA112,AB112,0) -> 7.888609052e-29 | AD112: =bint(Z112,AA112,AB112,1) -> 1 | AE112: =bint(Z112,AA112,AB112,2) -> 7.967495143e-29 | AF112: =bint(Z112,AA112,AB112,3) -> 1 | AH112: 99 | AI112: 100 | AJ112: 0.2 | AK112: =bint(AH112,AI112,AJ112,0) -> 5.070602401e-68 | AL112: =bint(AH112,AI112,AJ112,1) -> 1 | AM112: =bint(AH112,AI112,AJ112,2) -> 5.083278907e-68 | AN112: =bint(AH112,AI112,AJ112,3) -> 1
Z113: 100 | AA113: 100 | AB113: 0.5 | AC113: =bint(Z113,AA113,AB113,0) -> 7.888609052e-31 | AD113: =bint(Z113,AA113,AB113,1) -> 1 | AE113: =bint(Z113,AA113,AB113,2) -> 7.888609052e-31 | AF113: =bint(Z113,AA113,AB113,3) -> 1 | AH113: 100 | AI113: 100 | AJ113: 0.2 | AK113: =bint(AH113,AI113,AJ113,0) -> 1.2676506e-70 | AL113: =bint(AH113,AI113,AJ113,1) -> 1 | AM113: =bint(AH113,AI113,AJ113,2) -> 1.2676506e-70 | AN113: =bint(AH113,AI113,AJ113,3) -> 1

Sheet V.Test
A1: Data | B1: x | D1: V-test (v:V). Data | G1: V-test (v:V). Result
A2: 1 | B2: 18 | D2: v | E2: 30 | G2: v | H2: 95
A3: 2 | B3: 22 | D3: sd | E3: =SQRT(E2) -> 5.477225575 | G3: sd | H3: =SQRT(H2) -> 9.746794345
A4: 3 | B4: 25 | D4: N | E4: =COUNT(B:B) -> 30 | G4: N | H4: 25
A5: 4 | B5: 12 | D5: V | E5: =VARP(B:B) -> 47.04555556 | G5: V | H5: 50
A6: 5 | B6: 22 | D6: SD | E6: =SQRT(E5) -> 6.858976276 | G6: SD | H6: =SQRT(H5) -> 7.071067812
A7: 6 | B7: 31 | D7: Significance level | E7: 0.05 | G7: Significance level | H7: 0.05
A8: 7 | B8: 32 | D8: Y-value | E8: =E4*E5/E2 -> 47.04555556 | G8: Y-value | H8: =H4*H5/H2 -> 13.15789474
A9: 8 | B9: 22 | D9: Lower probability | E9: =_xlfn.CHISQ.DIST(E8,E4-1,1) -> 0.981580354 | G9: Lower probability | H9: =_xlfn.CHISQ.DIST(H8,H4-1,1) -> 0.03655329692
A10: 9 | B10: 25 | D10: Lower critical value | E10: =_xlfn.CHISQ.INV.RT(E7,E4-1) -> 42.5569678 | G10: Lower critical value | H10: =_xlfn.CHISQ.INV.RT(H7,H4-1) -> 36.4150285
A11: 10 | B11: 18 | D11: Lower significance | E11: =IF(E9<E7,"S. (H1)", "NS (H0)") -> NS (H0) | G11: Lower significance | H11: =IF(H9<H7,"S. (H1)", "NS (H0)") -> S. (H1)
A12: 11 | B12: 20 | D12: Upper probability | E12: =_xlfn.CHISQ.DIST.RT(E8,E4-1) -> 0.018419646 | G12: Upper probability | H12: =_xlfn.CHISQ.DIST.RT(H8,H4-1) -> 0.9634467031
A13: 12 | B13: 30 | D13: Upper critical value | E13: =_xlfn.CHISQ.INV(E7,E4-1) -> 17.70836618 | G13: Upper critical value | H13: =_xlfn.CHISQ.INV(H7,H4-1) -> 13.84842503
A14: 13 | B14: 29 | D14: Upper significance | E14: =IF(E12<E7,"S. (H1)", "NS (H0)") -> S. (H1) | G14: Upper significance | H14: =IF(H12<H7,"S. (H1)", "NS (H0)") -> NS (H0)
A15: 14 | B15: 27 | D15: Lower 2-tailed critical v. | E15: =_xlfn.CHISQ.INV.RT(E7/2,E4-1) -> 45.7222858 | G15: Lower 2-tailed critical v. | H15: =_xlfn.CHISQ.INV.RT(H7/2,H4-1) -> 39.36407703
A16: 15 | B16: 25 | D16: Upper 2-tailed critical v. | E16: =_xlfn.CHISQ.INV(E7/2,E4-1) -> 16.0470717 | G16: Upper 2-tailed critical v. | H16: =_xlfn.CHISQ.INV(H7/2,H4-1) -> 12.40115022
A17: 16 | B17: 11 | D17: Two-tailed probability | E17: =MIN(E9,E12)*2 -> 0.036839292 | G17: Two-tailed probability | H17: =MIN(H9,H12)*2 -> 0.07310659385
A18: 17 | B18: 12 | D18: Two-tailed significance | E18: =IF(E17<E7,"S. (H1)", "NS (H0)") -> S. (H1) | G18: Two-tailed significance | H18: =IF(H17<H7,"S. (H1)", "NS (H0)") -> NS (H0)
A19: 18 | B19: 35
A20: 19 | B20: 22
A21: 20 | B21: 18
A22: 21 | B22: 23
A23: 22 | B23: 24
A24: 23 | B24: 22
A25: 24 | B25: 19
A26: 25 | B26: 12
A27: 26 | B27: 33
A28: 27 | B28: 25
A29: 28 | B29: 22
A30: 29 | B30: 21
A31: 30 | B31: 40

Sheet Z.1.Test
A1: Data | B1: x | D1: Z-test (m:M). Data | G1: Z-test (m:M). Result | J1: Data | K1: x | M1: Z-test (m:M). Data | P1: Z-test (m:M). Result
A2: 1 | B2: 18 | D2: m | E2: 21 | G2: m | H2: 1.9 | J2: 1 | K2: 18 | M2: m | N2: 20 | P2: m | Q2: 1.9
A3: 2 | B3: 22 | D3: v | E3: 45 | G3: v | H3: =(0.2)^2 -> 0.04 | J3: 2 | K3: 22 | M3: v | N3: =N2 -> 20 | P3: v | Q3: =(0.225)^2 -> 0.050625
A4: 3 | B4: 25 | D4: sd | E4: =SQRT(E3) -> 6.708203932 | G4: sd | H4: =SQRT(H3) -> 0.2 | J4: 3 | K4: 25 | M4: sd | N4: =SQRT(N3) -> 4.472135955 | P4: sd | Q4: =SQRT(Q3) -> 0.225
A5: 4 | B5: 12 | D5: N | E5: =COUNT(B:B) -> 30 | G5: N | H5: 10 | J5: 4 | K5: 12 | M5: N | N5: =COUNT(K:K) -> 11 | P5: N | Q5: 10
A6: 5 | B6: 22 | D6: M | E6: =AVERAGE(B:B) -> 23.23333333 | G6: M | H6: 2.002 | J6: 5 | K6: 22 | M6: M | N6: =AVERAGE(K:K) -> 24 | P6: M | Q6: 2.002
A7: 6 | B7: 31 | D7: Significance level | E7: 0.05 | G7: Significance level | H7: 0.05 | J7: 6 | K7: 31 | M7: Significance level | N7: 0.05 | P7: Significance level | Q7: 0.05
A8: 7 | B8: 32 | D8: Z-value | E8: =(E6-E2)/SQRT(E3/E5) -> 1.823509031 | G8: Z-value | H8: =(H6-H2)/SQRT(H3/H5) -> 1.612761607 | J8: 7 | K8: 32 | M8: Z-value | N8: =(N6-N2)/SQRT(N3/N5) -> 2.966479395 | P8: Z-value | Q8: =(Q6-Q2)/SQRT(Q3/Q5) -> 1.433565873
A9: 8 | B9: 22 | D9: Lower probability | E9: =NORMSDIST(E8) -> 0.9658868347 | G9: Lower probability | H9: =NORMSDIST(H8) -> 0.9466018449 | J9: 8 | K9: 22 | M9: Lower probability | N9: =NORMSDIST(N8) -> 0.9984938473 | P9: Lower probability | Q9: =NORMSDIST(Q8) -> 0.9241519059
A10: 9 | B10: 25 | D10: Lower critical value | E10: =NORMSINV(E7) -> -1.644853627 | G10: Lower critical value | H10: =NORMSINV(H7) -> -1.644853627 | J10: 9 | K10: 25 | M10: Lower critical value | N10: =NORMSINV(N7) -> -1.644853627 | P10: Lower critical value | Q10: =NORMSINV(Q7) -> -1.644853627
A11: 10 | B11: 18 | D11: Lower significance | E11: =IF(E9<E7,"S. (H1)", "NS (H0)") -> NS (H0) | G11: Lower significance | H11: =IF(H9<H7,"S. (H1)", "NS (H0)") -> NS (H0) | J11: 10 | K11: 22 | M11: Lower significance | N11: =IF(N9<N7,"S. (H1)", "NS (H0)") -> NS (H0) | P11: Lower significance | Q11: =IF(Q9<Q7,"S. (H1)", "NS (H0)") -> NS (H0)
A12: 11 | B12: 20 | D12: Upper probability | E12: =1-E9 -> 0.03411316528 | G12: Upper probability | H12: =1-H9 -> 0.05339815514 | J12: 11 | K12: 33 | M12: Upper probability | N12: =1-N9 -> 0.001506152725 | P12: Upper probability | Q12: =1-Q9 -> 0.07584809413
A13: 12 | B13: 30 | D13: Upper critical value | E13: =NORMSINV(1-E7) -> 1.644853627 | G13: Upper critical value | H13: =NORMSINV(1-H7) -> 1.644853627 | M13: Upper critical value | N13: =NORMSINV(1-N7) -> 1.644853627 | P13: Upper critical value | Q13: =NORMSINV(1-Q7) -> 1.644853627
A14: 13 | B14: 29 | D14: Upper significance | E14: =IF(E12<E7,"S. (H1)", "NS (H0)") -> S. (H1) | G14: Upper significance | H14: =IF(H12<H7,"S. (H1)", "NS (H0)") -> NS (H0) | M14: Upper significance | N14: =IF(N12<N7,"S. (H1)", "NS (H0)") -> S. (H1) | P14: Upper significance | Q14: =IF(Q12<Q7,"S. (H1)", "NS (H0)") -> NS (H0)
A15: 14 | B15: 27 | D15: Two-tailed probability | E15: =2*MIN(E9,E12) -> 0.06822633057 | G15: Two-tailed probability | H15: =2*MIN(H9,H12) -> 0.1067963103 | M15: Two-tailed probability | N15: =2*MIN(N9,N12) -> 0.003012305451 | P15: Two-tailed probability | Q15: =2*MIN(Q9,Q12) -> 0.1516961883
A16: 15 | B16: 25 | D16: Two-tailed critical value | E16: =NORMSINV(1-E7/2) -> 1.959963985 | G16: Two-tailed critical value | H16: =NORMSINV(1-H7/2) -> 1.959963985 | M16: Two-tailed critical value | N16: =ABS(NORMSINV(N7/2)) -> 1.959963985 | P16: Two-tailed critical value | Q16: =ABS(NORMSINV(Q7/2)) -> 1.959963985
A17: 16 | B17: 11 | D17: Two-tailed significance | E17: =IF(E15<E7,"S. (H1)", "NS (H0)") -> NS (H0) | G17: Two-tailed significance | H17: =IF(H15<H7,"S. (H1)", "NS (H0)") -> NS (H0) | M17: Two-tailed significance | N17: =IF(N15<N7,"S. (H1)", "NS (H0)") -> S. (H1) | P17: Two-tailed significance | Q17: =IF(Q15<Q7,"S. (H1)", "NS (H0)") -> NS (H0)
A18: 17 | B18: 12
A19: 18 | B19: 35
A20: 19 | B20: 22
A21: 20 | B21: 18
A22: 21 | B22: 23
A23: 22 | B23: 24
A24: 23 | B24: 22
A25: 24 | B25: 19
A26: 25 | B26: 12
A27: 26 | B27: 33
A28: 27 | B28: 25
A29: 28 | B29: 22
A30: 29 | B30: 21
A31: 30 | B31: 40

Sheet Z.2.Test
A1: 標本数 | B1: After | C1: Before | E1: Z.2-test (m:M). Data | F1: =B1 -> After | G1: =C1 -> Before | I1: z-検定: 2 標本による平均の検定
A2: 1 | B2: 19 | C2: 19 | E2: M | F2: =AVERAGE(B:B) -> 22.4 | G2: =AVERAGE(C:C) -> 19.03333333
A3: 2 | B3: 30 | C3: 20 | E3: u.V | F3: =VAR(B:B) -> 25.35172414 | G3: =VAR(C:C) -> 20.17126437 | J3: After | K3: Before
A4: 3 | B4: 29 | C4: 15 | E4: u.SD | F4: =STDEV(B:B) -> 5.035049567 | G4: =STDEV(C:C) -> 4.491243076 | I4: 平均 | J4: 22.4 | K4: 19.03333333
A5: 4 | B5: 27 | C5: 23 | E5: N | F5: =STDEV(B:B) -> 5.035049567 | G5: =COUNT(C:C) -> 30 | I5: 既知の分散 | J5: 25.3517 | K5: 20.1713
A6: 5 | B6: 18 | C6: 16 | E6: Significance level | F6: 0.05 | I6: 観測数 | J6: 30 | K6: 30
A7: 6 | B7: 20 | C7: 13 | E7: Z-value | F7: =(F2-G2)/SQRT(F3/F5+G3/G5) -> 1.409223935 | I7: 仮説平均との差異 | J7: 0
A8: 7 | B8: 35 | C8: 14 | E8: Lower probability | F8: =NORMSDIST(F7) -> 0.9206155187 | I8: z | J8: 2.733035728
A9: 8 | B9: 17 | C9: 27 | E9: Lower critical value | F9: =NORMSINV(F6) -> -1.644853627 | I9: P(Z<=z) 片側 | J9: 0.003137676238
A10: 9 | B10: 14 | C10: 24 | E10: Lower significance | F10: =IF(F8<F6,"S. (H1)", "NS (H0)") -> NS (H0) | I10: z 境界値 片側 | J10: 1.644853627
A11: 10 | B11: 24 | C11: 30 | E11: Upper probability | F11: =1-F8 -> 0.0793844813 | I11: P(Z<=z) 両側 | J11: 0.006275352476
A12: 11 | B12: 26 | C12: 12 | E12: Upper critical value | F12: =NORMSINV(1-F6) -> 1.644853627 | I12: z 境界値 両側 | J12: 1.959963985
A13: 12 | B13: 21 | C13: 16 | E13: Upper significance | F13: =IF(F11<F6,"S. (H1)", "NS (H0)") -> NS (H0)
A14: 13 | B14: 24 | C14: 20 | E14: Two-tailed probability | F14: =2*MIN(F8,F11) -> 0.1587689626
A15: 14 | B15: 24 | C15: 16 | E15: Two-tailed critical value | F15: =NORMSINV(1-F6/2) -> 1.959963985
A16: 15 | B16: 15 | C16: 22 | E16: Two-tailed significance | F16: =IF(F14<F6,"S. (H1)", "NS (H0)") -> NS (H0)
A17: 16 | B17: 14 | C17: 15
A18: 17 | B18: 24 | C18: 20 | E18: Z.2-test (m:M). Result | F18: =F1 -> After | G18: =G1 -> Before
A19: 18 | B19: 22 | C19: 13 | E19: M | F19: 22.4 | G19: 19.03333333
A20: 19 | B20: 16 | C20: 14 | E20: u.V | F20: 25.35172414 | G20: 20.17126437
A21: 20 | B21: 20 | C21: 17 | E21: u.SD | F21: 5.035049567 | G21: 4.491243076
A22: 21 | B22: 18 | C22: 16 | E22: N | F22: 30 | G22: 30
A23: 22 | B23: 19 | C23: 21 | E23: Significance level | F23: 0.05
A24: 23 | B24: 26 | C24: 24 | E24: Z-value | F24: =(F19-G19)/SQRT(F20/F22+G20/G22) -> 2.733036073
A25: 24 | B25: 25 | C25: 19 | E25: Lower probability | F25: =NORMSDIST(F24) -> 0.996862327
A26: 25 | B26: 24 | C26: 23 | E26: Lower critical value | F26: =NORMSINV(F23) -> -1.644853627
A27: 26 | B27: 28 | C27: 18 | E27: Lower significance | F27: =IF(F25<F23,"S. (H1)", "NS (H0)") -> NS (H0)
A28: 27 | B28: 21 | C28: 17 | E28: Upper probability | F28: =1-F25 -> 0.003137672951
A29: 28 | B29: 23 | C29: 20 | E29: Upper critical value | F29: =NORMSINV(1-F23) -> 1.644853627
A30: 29 | B30: 28 | C30: 21 | E30: Upper significance | F30: =IF(F28<F23,"S. (H1)", "NS (H0)") -> S. (H1)
A31: 30 | B31: 21 | C31: 26 | E31: Two-tailed probability | F31: =2*MIN(F25,F28) -> 0.006275345902
E32: Two-tailed critical value | F32: =NORMSINV(1-F23/2) -> 1.959963985
E33: Two-tailed significance | F33: =IF(F31<F23,"S. (H1)", "NS (H0)") -> S. (H1)
E35: Reference:
E36: http://www2.tbb.t-com.ne.jp/ohara/toukeikiso/EXCE%EF%BD%8C%E7%B5%B1%E8%A8%881.htm
E37: https://support.office.com/en-us/article/z-test-function-d633d5a3-2031-4614-a016-92180ad82bee
E38: https://www.youtube.com/watch?v=125lmmCB_SA
E39: エクスメディア『ＥＸＣＥＬ関数活用SUPER MASTER』

Sheet t.1.Test
A1: n | B1: x | D1: t-test.0 (M:m).Data | G1: t-test.0 (M:m).Result.V | J1: t-test.0 (M:m).Result.SD
A2: 1 | B2: 34 | D2: m | E2: 20 | G2: m | H2: 60 | J2: m | K2: 60
A3: 2 | B3: 18 | D3: N | E3: =COUNT(B:B) -> 15 | G3: N | H3: 10 | J3: N | K3: 20
A4: 3 | B4: 26 | D4: M | E4: =AVERAGE(B:B) -> 29.86666667 | G4: M | H4: 65 | J4: M | K4: 65
A5: 4 | B5: 40 | D5: u.V | E5: =VAR(B:B) -> 461.4095238 | G5: u.V | H5: 904.1666667 | J5: u.V | K5: =K6^2 -> 100
A6: 5 | B6: 22 | D6: u.SD | E6: =SQRT(E5) -> 21.48044515 | G6: u.SD | H6: =SQRT(H5) -> 30.06936425 | J6: u.SD | K6: 10
A7: 6 | B7: 99 | D7: Significance level | E7: 0.05 | G7: Significance level | H7: 0.05 | J7: Significance level | K7: 0.05
A8: 7 | B8: 10 | D8: Degree of freedom | E8: =E3-1 -> 14 | G8: Degree of freedom | H8: =H3-1 -> 9 | J8: Degree of freedom | K8: =K3-1 -> 19
A9: 8 | B9: 12 | D9: Standard error | E9: =SQRT(E5/E3) -> 5.546227089 | G9: Standard error | H9: =SQRT(H5/H3) -> 9.508767884 | J9: Standard error | K9: =SQRT(K5/K3) -> 2.236067977
A10: 9 | B10: 34 | D10: t-value | E10: =(E4-E2)/SQRT(E5/E3) -> 1.77898714 | G10: t-value | H10: =(H4-H2)/SQRT(H5/H3) -> 0.525830482 | J10: t-value | K10: =(K4-K2)/SQRT(K5/K3) -> 2.236067977
A11: 10 | B11: 22 | D11: Lower probability | E11: =_xlfn.T.DIST(E10,E8,1) -> 0.9515230322 | G11: Lower probability | H11: =_xlfn.T.DIST(H10,H8,1) -> 0.6941425512 | J11: Lower probability | K11: =_xlfn.T.DIST(K10,K8,1) -> 0.9812297252
A12: 11 | B12: 41 | D12: Lower critical value | E12: =_xlfn.T.INV(E7,E8) -> -1.761310136 | G12: Lower critical value | H12: =_xlfn.T.INV(H7,H8) -> -1.833112933 | J12: Lower critical value | K12: =_xlfn.T.INV(K7,K8) -> -1.729132812
A13: 12 | B13: 12 | D13: Lower significance | E13: =IF(E11<E7,"S. (H1)", "NS (H0)") -> NS (H0) | G13: Lower significance | H13: =IF(H11<H7,"S. (H1)", "NS (H0)") -> NS (H0) | J13: Lower significance | K13: =IF(K11<K7,"S. (H1)", "NS (H0)") -> NS (H0)
A14: 13 | B14: 32 | D14: Upper probability | E14: =1-E11 -> 0.04847696775 | G14: Upper probability | H14: =1-H11 -> 0.3058574488 | J14: Upper probability | K14: =1-K11 -> 0.01877027477
A15: 14 | B15: 25 | D15: Upper critical value | E15: =_xlfn.T.INV(1-E7,E8) -> 1.761310136 | G15: Upper critical value | H15: =_xlfn.T.INV(1-H7,H8) -> 1.833112933 | J15: Upper critical value | K15: =_xlfn.T.INV(1-K7,K8) -> 1.729132812
A16: 15 | B16: 21 | D16: Upper significance | E16: =IF(E14<E7,"S. (H1)", "NS (H0)") -> S. (H1) | G16: Upper significance | H16: =IF(H14<H7,"S. (H1)", "NS (H0)") -> NS (H0) | J16: Upper significance | K16: =IF(K14<K7,"S. (H1)", "NS (H0)") -> S. (H1)
D17: Two-tailed probability | E17: =TDIST(ABS(E10),E8,2) -> 0.0969539355 | G17: Two-tailed probability | H17: =TDIST(ABS(H10),H8,2) -> 0.6117148976 | J17: Two-tailed probability | K17: =TDIST(ABS(K10),K8,2) -> 0.03754054955
D18: Two-tailed critical value | E18: =ABS(_xlfn.T.INV(E7/2,E8)) -> 2.144786688 | G18: Two-tailed critical value | H18: =ABS(_xlfn.T.INV(H7/2,H8)) -> 2.262157163 | J18: Two-tailed critical value | K18: =ABS(_xlfn.T.INV(K7/2,K8)) -> 2.093024054
D19: Two-tailed significance | E19: =IF(E17<E7,"S. (H1)", "NS (H0)") -> NS (H0) | G19: Two-tailed significance | H19: =IF(H17<H7,"S. (H1)", "NS (H0)") -> NS (H0) | J19: Two-tailed significance | K19: =IF(K17<K7,"S. (H1)", "NS (H0)") -> S. (H1)
D21: t = (M-m) / √(u.V/N)
D22: Lower-prob. = T.DIST(t, df, 1)
D23: Upper-prob.=1-Lower.p

Sheet t.2.Test
A1: n | B1: x | C1: y | D1: x-y | F1: t-test.1 (M1-M2) paired test
A2: 1 | B2: 26 | C2: 15 | D2: =B2-C2 -> 11 | F2: M(X-Y) | G2: =AVERAGE(D:D) -> 4.833333333
A3: 2 | B3: 19 | C3: 16 | D3: 3 | F3: N | G3: =COUNT(D:D) -> 6
A4: 3 | B4: 21 | C4: 14 | D4: 7 | F4: u.V(X-Y) | G4: =VAR(D:D) -> 13.76666667
A5: 4 | B5: 16 | C5: 15 | D5: 1 | F5: u.SD(X-Y) | G5: =SQRT(G4) -> 3.710345896
A6: 5 | B6: 25 | C6: 20 | D6: 5 | F6: Significance level | G6: 0.05
A7: 6 | B7: 17 | C7: 15 | D7: 2 | F7: Degree of freedom | G7: =G3-1 -> 5
F8: t-value | G8: =G2/SQRT(G4/G3) -> 3.190861649
F9: Lower probability | G9: =_xlfn.T.DIST(G8,G7,1) -> 0.9878791976
F10: Lower critical value | G10: =_xlfn.T.INV(G6,G7) -> -2.015048373
F11: Lower significance | G11: =IF(G9<G6,"S. (H1)", "NS (H0)") -> NS (H0)
F12: Upper probability | G12: =1-G9 -> 0.01212080239
F13: Upper critical value | G13: =_xlfn.T.INV(1-G6,G7) -> 2.015048373
F14: Upper significance | G14: =IF(G12<G6,"S. (H1)", "NS (H0)") -> S. (H1)
F15: Two-tailed probability | G15: =TDIST(ABS(G8),G7,2) -> 0.02424160478
F16: Two-tailed critical value | G16: =TINV(G6,G7) -> 2.570581836
F17: Two-tailed significance | G17: =IF(G15<G6,"S. (H1)", "NS (H0)") -> S. (H1)
F20: t-検定: 一対の標本による平均の検定ツール
G22: x | H22: y
F23: 平均 | G23: 20.66666667 | H23: 15.83333333
F24: 分散 | G24: 17.06666667 | H24: 4.566666667
F25: 観測数 | G25: 6 | H25: 6
F26: ピアソン相関 | G26: 0.4455400438
F27: 仮説平均との差異 | G27: 0
F28: 自由度 | G28: 5
F29: t | G29: 3.190861649
F30: P(T<=t) 片側 | G30: 0.01212080239
F31: t 境界値 片側 | G31: 2.015048373
F32: P(T<=t) 両側 | G32: 0.02424160478
F33: t 境界値 両側 | G33: 2.570581836

Sheet t.3.Test
A1: N | B1: X | C1: Y | E1: t.3.test (same var.). Data | F1: X | G1: Y
A2: 1 | B2: 33 | C2: 30 | E2: N | F2: =COUNT(B:B) -> 5 | G2: =COUNT(C:C) -> 7
A3: 2 | B3: 37 | C3: 31 | E3: M | F3: =AVERAGE(B:B) -> 34.6 | G3: =AVERAGE(C:C) -> 33.14285714 | I3: t-検定: 等分散を仮定した２標本による検定
A4: 3 | B4: 35 | C4: 32 | E4: V | F4: =_xlfn.VAR.S(B:B) -> 4.3 | G4: =_xlfn.VAR.S(C:C) -> 5.142857143
A5: 4 | B5: 36 | C5: 35 | E5: Significance level | F5: 0.05 | J5: X | K5: Y
A6: 5 | B6: 32 | C6: 36 | E6: Degree of freedom | F6: =F2+G2-2 -> 10 | I6: 平均 | J6: 34.6 | K6: 33.14285714
A7: 6 | C7: 35 | E7: Standard deviation | F7: =SQRT(F4) -> 2.073644135 | G7: =SQRT(G4) -> 2.267786838 | I7: 分散 | J7: 4.3 | K7: 5.142857143
A8: 7 | C8: 33 | E8: Standard error | F8: =SQRT(F4/F2) -> 0.9273618495 | G8: =SQRT(G4/G2) -> 0.8571428571 | I8: 観測数 | J8: 5 | K8: 7
E9: t-value | F9: =(F3-G3)/SQRT((1/F2+1/G2)*(((F2-1)*F4+(G2-1)*G4)/(F6))) -> 1.135184774 | I9: プールされた分散 | J9: 4.805714286
E10: Lower probability | F10: =_xlfn.T.DIST(F9,F6,1) -> 0.8586130677 | I10: 仮説平均との差異 | J10: 0
E11: Lower critical value | F11: =_xlfn.T.INV(F5,F6) -> -1.812461123 | I11: 自由度 | J11: 10
E12: Lower significance | F12: =IF(F10<F5,"S. (H1)", "NS (H0)") -> NS (H0) | I12: t | J12: 1.135184774
E13: Upper probability | F13: =1-F10 -> 0.1413869323 | I13: P(T<=t) 片側 | J13: 0.1413869323
E14: Upper critical value | F14: =_xlfn.T.INV(1-F5,F6) -> 1.812461123 | I14: t 境界値 片側 | J14: 1.812461123
E15: Upper significance | F15: =IF(F13<F5,"S. (H1)", "NS (H0)") -> NS (H0) | I15: P(T<=t) 両側 | J15: 0.2827738646
E16: Two-tailed probability | F16: =TDIST(ABS(F9),F6,2) -> 0.2827738646 | I16: t 境界値 両側 | J16: 2.228138852
E17: Two-tailed critical value | F17: =TINV(F5,F6) -> 2.228138852
E18: Two-tailed significance | F18: =IF(F16<F5,"S. (H1)", "NS (H0)") -> NS (H0)
E21: t.3.test (same var.) Result | F21: X | G21: Y
E22: N | F22: 5 | G22: 7
E23: M | F23: 34.6 | G23: 33.1429
E24: V | F24: 4.3 | G24: 5.1429
E25: Significance level | F25: 0.05
E26: Degree of freedom | F26: =F22+G22-2 -> 10
E27: Standard deviation | F27: =SQRT(F24) -> 2.073644135 | G27: =SQRT(G24) -> 2.267796287
E28: Standard error | F28: =SQRT(F24/F22) -> 0.9273618495 | G28: =SQRT(G24/G22) -> 0.8571464286
E29: t-value | F29: =(F23-G23)/SQRT((1/F22+1/G22)*(((F22-1)*F24+(G22-1)*G24)/(F26))) -> 1.135148349
E30: Lower probability | F30: =_xlfn.T.DIST(F29,F26,1) -> 0.8586057908
E31: Lower critical value | F31: =_xlfn.T.INV(F25,F26) -> -1.812461123
E32: Lower significance | F32: =IF(F30<F25,"S. (H1)", "NS (H0)") -> NS (H0)
E33: Upper probability | F33: =1-F30 -> 0.1413942092
E34: Upper critical value | F34: =_xlfn.T.INV(1-F25,F26) -> 1.812461123
E35: Upper significance | F35: =IF(F33<F25,"S. (H1)", "NS (H0)") -> NS (H0)
E36: Two-tailed probability | F36: =TDIST(ABS(F29),F26,2) -> 0.2827884184
E37: Two-tailed critical value | F37: =TINV(F25,F26) -> 2.228138852
E38: Two-tailed significance | F38: =IF(F36<F25,"S. (H1)", "NS (H0)") -> NS (H0)

Sheet t.4.Test
A1: N | B1: X | C1: Y | E1: t-test.3 (diff. var.) Data | F1: X | G1: Y
A2: 1 | B2: 33 | C2: 30 | E2: N | F2: =COUNT(B:B) -> 5 | G2: =COUNT(C:C) -> 8 | I2: t-検定: 分散が等しくないと仮定した２標本による検定
A3: 2 | B3: 31 | C3: 31 | E3: M | F3: =AVERAGE(B:B) -> 33.2 | G3: =AVERAGE(C:C) -> 35.125
A4: 3 | B4: 35 | C4: 32 | E4: V | F4: =_xlfn.VAR.S(B:B) -> 5.2 | G4: =_xlfn.VAR.S(C:C) -> 21.26785714 | J4: X | K4: Y
A5: 4 | B5: 36 | C5: 39 | E5: Significance level | F5: 0.05 | I5: 平均 | J5: 33.2 | K5: 35.125
A6: 5 | B6: 31 | C6: 44 | E6: Degree of freedom | F6: =ROUND((F4/F2+G4/G2)^2/((F4/F2)^2/(F2-1)+(G4/G2)^2/(G2-1)),0) -> 11 | I6: 分散 | J6: 5.2 | K6: 21.26785714
A7: 6 | C7: 34 | E7: Standard deviation | F7: =SQRT(F4) -> 2.28035085 | G7: =SQRT(G4) -> 4.611708701 | I7: 観測数 | J7: 5 | K7: 8
A8: 7 | C8: 36 | E8: Standard error | F8: =SQRT(F4/F2) -> 1.019803903 | G8: =SQRT(G4/G2) -> 1.630485248 | I8: 仮説平均との差異 | J8: 0
A9: 8 | C9: 35 | E9: t-value | F9: =(F3-G3)/SQRT(F4/F2+G4/G2) -> -1.000965181 | I9: 自由度 | J9: 11
E10: Lower probability | F10: =_xlfn.T.DIST(F9,F6,1) -> 0.1691771343 | I10: t | J10: -1.000965181
E11: Lower critical value | F11: =_xlfn.T.INV(F5,F6) -> -1.795884819 | I11: P(T<=t) 片側 | J11: 0.1691771343
E12: Lower significance | F12: =IF(F10<F5,"S. (H1)", "NS (H0)") -> NS (H0) | I12: t 境界値 片側 | J12: 1.795884819
E13: Upper probability | F13: =1-F10 -> 0.8308228657 | I13: P(T<=t) 両側 | J13: 0.3383542685
E14: Upper critical value | F14: =_xlfn.T.INV(1-F5,F6) -> 1.795884819 | I14: t 境界値 両側 | J14: 2.20098516
E15: Upper significance | F15: =IF(F13<F5,"S. (H1)", "NS (H0)") -> NS (H0)
E16: Two-tailed probability | F16: =TDIST(ABS(F9),F6,2) -> 0.3383542685
E17: Two-tailed critical value | F17: =TINV(F5,F6) -> 2.20098516
E18: Two-tailed significance | F18: =IF(F16<F5/2,"S. (H1)", "NS (H0)") -> NS (H0)
E20: t-test.3 (diff. var.) Result | F20: X | G20: Y
E21: N | F21: 20 | G21: 20
E22: M | F22: 390.75 | G22: 371.75
E23: V | F23: 2239.461 | G23: 914.9342
E24: Significance level | F24: 0.05
E25: Degree of freedom | F25: =ROUND((F23/F21+G23/G21)^2/((F23/F21)^2/(F21-1)+(G23/G21)^2/(G21-1)),0) -> 32
E26: Standard deviation | F26: =SQRT(F23) -> 47.3229437 | G26: =SQRT(G23) -> 30.24787926
E27: Standard error | F27: =SQRT(F23/F21) -> 10.5817319 | G27: =SQRT(G23/G21) -> 6.763631421
E28: t-value | F28: =(F22-G22)/SQRT(F23/F21+G23/G21) -> 1.51290113
E29: Lower probability | F29: =_xlfn.T.DIST(F28,F25,1) -> 0.9299402906
E30: Lower critical value | F30: =_xlfn.T.INV(F24,F25) -> -1.693888748
E31: Lower significance | F31: =IF(F29<F24,"S. (H1)", "NS (H0)") -> NS (H0)
E32: Upper probability | F32: =1-F29 -> 0.07005970944
E33: Upper critical value | F33: =_xlfn.T.INV(1-F24,F25) -> 1.693888748
E34: Upper significance | F34: =IF(F32<F24,"S. (H1)", "NS (H0)") -> NS (H0)
E35: Two-tailed probability | F35: =TDIST(ABS(F28),F25,2) -> 0.1401194189
E36: Two-tailed critical value | F36: =TINV(F24,F25) -> 2.036933343
E37: Two-tailed significance | F37: =IF(F35<F24/2,"S. (H1)", "NS (H0)") -> NS (H0)

Sheet F.Test
A1: N | B1: X | C1: Y | E1: F-test. Data | F1: X | G1: Y | I1: F-検定: 2 標本を使った分散の検定
A2: 1 | B2: 33 | C2: 30 | E2: N | F2: =COUNT(B:B) -> 5 | G2: =COUNT(C:C) -> 8
A3: 2 | B3: 31 | C3: 31 | E3: M | F3: =AVERAGE(B:B) -> 33.2 | G3: =AVERAGE(C:C) -> 35.125 | J3: X | K3: Y
A4: 3 | B4: 35 | C4: 32 | E4: V | F4: =_xlfn.VAR.S(B:B) -> 5.2 | G4: =_xlfn.VAR.S(C:C) -> 21.26785714 | I4: 平均 | J4: 33.2 | K4: 35.125
A5: 4 | B5: 36 | C5: 39 | E5: Significance level | F5: 0.05 | I5: 分散 | J5: 5.2 | K5: 21.26785714
A6: 5 | B6: 31 | C6: 44 | E6: Degree of freedom | F6: =F2-1 -> 4 | G6: =G2-1 -> 7 | I6: 観測数 | J6: 5 | K6: 8
A7: 6 | C7: 34 | E7: F-value | F7: =F4/G4 -> 0.2445004198 | I7: 自由度 | J7: 4 | K7: 7
A8: 7 | C8: 36 | E8: Upper probability | F8: =IF(F4>G4, FDIST(F4/G4,F6,G6), FDIST(G4/F4,G6,F6)) -> 0.09580350683 | I8: 観測された分散比 | J8: 0.2445004198
A9: 8 | C9: 35 | E9: Upper critical value | F9: =_xlfn.F.INV(F5,F6,G6) -> 0.1640901525 | I9: P(F<=f) 片側 | J9: 0.09580350683
A10: 9 | E10: Upper significance | F10: =IF(F8<F5,"S. (H1)", "NS (H0)") -> NS (H0) | I10: F 境界値 片側 | J10: 0.1640901525
E13: F-test. Result | F13: X | G13: Y
E14: N | F14: 5 | G14: 8
E15: M | F15: 33.2 | G15: 35.125
E16: V | F16: 5.2 | G16: 21.26785714
E17: Significance level | F17: 0.05
E18: Degree of freedom | F18: =F14-1 -> 4 | G18: =G14-1 -> 7
E19: F-value | F19: =F16/G16 -> 0.2445004198
E20: Upper probability | F20: =IF(F16>G16, FDIST(F16/G16,F18,G18), FDIST(G16/F16,G18,F18)) -> 0.09580350683
E21: Upper critical value | F21: =_xlfn.F.INV(F17,F14-1,G14-1) -> 0.1640901525
E22: Upper significance | F22: =IF(F20<F17,"S. (H1)", "NS (H0)") -> NS (H0)

Sheet Chi^2.Test
A1: Chi^2 test: 2 x 2 | E1: 1 | G1: Chi^2 test: 2 x 3 | L1: 1 | N1: Chi^2 test: 2 x 4 | T1: 1
A2: Data: | B2: 1 | C2: 2 | D2: Sum | E2: 2 | G2: Data: | H2: 1 | I2: 2 | J2: 3 | K2: Sum | L2: 2 | N2: Data: | O2: 1 | P2: 2 | Q2: 3 | R2: 4 | S2: Sum | T2: 2
A3: 1 | B3: 20 | C3: 12 | D3: =SUM(B3:C3) -> 32 | E3: 3 | G3: 1 | H3: 20 | I3: 15 | J3: 5 | K3: =SUM(H3:J3) -> 40 | L3: 3 | N3: 1 | O3: 20 | P3: 15 | Q3: 5 | R3: 6 | S3: =SUM(O3:R3) -> 46 | T3: 3
A4: 2 | B4: 15 | C4: 25 | D4: =SUM(B4:C4) -> 40 | E4: 4 | G4: 2 | H4: 25 | I4: 30 | J4: 40 | K4: =SUM(H4:J4) -> 95 | L4: 4 | N4: 2 | O4: 25 | P4: 30 | Q4: 40 | R4: 22 | S4: =SUM(O4:R4) -> 117 | T4: 4
A5: Sum | B5: =SUM(B3:B4) -> 35 | C5: =SUM(C3:C4) -> 37 | D5: =SUM(B5:C5) -> 72 | E5: 5 | G5: Sum | H5: =SUM(H3:H4) -> 45 | I5: =SUM(I3:I4) -> 45 | J5: =SUM(J3:J4) -> 45 | K5: =SUM(H5:J5) -> 135 | L5: 5 | N5: Sum | O5: =SUM(O3:O4) -> 45 | P5: =SUM(P3:P4) -> 45 | Q5: =SUM(Q3:Q4) -> 45 | R5: =SUM(R3:R4) -> 28 | S5: =SUM(O5:R5) -> 163 | T5: 5
A6: Significance level | B6: 0.05 | E6: 6 | G6: Significance level | H6: 0.05 | L6: 6 | N6: Significance level | O6: 0.05 | T6: 6
A7: Chi^2 | B7: =D5*(B3^2/D3/B5+C3^2/D3/C5+B4^2/D4/B5+C4^2/D4/C5-1) -> 4.447876448 | E7: 7 | G7: Chi^2 | H7: =K5*(H3^2/K3/H5+I3^2/K3/I5+J3^2/K3/J5+H4^2/K4/H5+I4^2/K4/I5+J4^2/K4/J5-1) -> 12.43421053 | L7: 7 | N7: Chi^2 | O7: =S5*(O3^2/S3/O5+P3^2/S3/P5+Q3^2/S3/Q5+R3^2/S3/R5+O4^2/S4/O5+P4^2/S4/P5+Q4^2/S4/Q5+R4^2/S4/R5-1) -> 13.568671 | T7: 7
A8: Upper probability | B8: =1-_xlfn.CHISQ.DIST(B7,1,1) -> 0.03494467479 | C8: =CHIDIST(B7,1) -> 0.03494467479 | E8: 8 | G8: Upper probability | H8: =1-_xlfn.CHISQ.DIST(H7,2,1) -> 0.001995011901 | L8: 8 | N8: Upper probability | O8: =1-_xlfn.CHISQ.DIST(O7,2,1) -> 0.001131359244 | T8: 8
A9: Upper critical value | B9: =CHIINV(B6,1) -> 3.841458821 | E9: 9 | G9: Upper critical value | H9: =CHIINV(H6,2) -> 5.991464547 | L9: 9 | N9: Upper critical value | O9: =CHIINV(O6,2) -> 5.991464547 | T9: 9
A10: Upper significance | B10: =IF(B8<B6,"S. (H1)", "NS (H0)") -> S. (H1) | E10: 10 | G10: Upper significance | H10: =IF(H8<H6,"S. (H1)", "NS (H0)") -> S. (H1) | L10: 10 | N10: Upper significance | O10: =IF(O8<O6,"S. (H1)", "NS (H0)") -> S. (H1) | T10: 10
A12: Chi^2 test: 3 x 2 | E12: 12 | G12: Chi^2 test: 3 x 3 | L12: 12 | N12: Chi^2 test: 3 x 4 | T12: 12
A13: Data: | B13: 1 | C13: 2 | D13: Sum | E13: 13 | G13: Data: | H13: 1 | I13: 2 | J13: 3 | K13: Sum | L13: 13 | N13: Data: | O13: 1 | P13: 2 | Q13: 3 | R13: 4 | S13: Sum | T13: 13
A14: 1 | B14: 40 | C14: 30 | D14: =SUM(B14:C14) -> 70 | E14: 14 | G14: 1 | H14: 40 | I14: 30 | J14: 28 | K14: =SUM(H14:J14) -> 98 | L14: 14 | N14: 1 | O14: 40 | P14: 30 | Q14: 28 | R14: 6 | S14: =SUM(O14:R14) -> 104 | T14: 14
A15: 2 | B15: 44 | C15: 22 | D15: =SUM(B15:C15) -> 66 | E15: 15 | G15: 2 | H15: 44 | I15: 22 | J15: 16 | K15: =SUM(H15:J15) -> 82 | L15: 15 | N15: 2 | O15: 44 | P15: 22 | Q15: 16 | R15: 22 | S15: =SUM(O15:R15) -> 104 | T15: 15
A16: 3 | B16: 110 | C16: 62 | D16: =SUM(B16:C16) -> 172 | E16: 16 | G16: 3 | H16: 110 | I16: 62 | J16: 98 | K16: =SUM(H16:J16) -> 270 | L16: 16 | N16: 3 | O16: 110 | P16: 62 | Q16: 98 | R16: 52 | S16: =SUM(O16:R16) -> 322 | T16: 16
A17: Sum | B17: =SUM(B14:B16) -> 194 | C17: =SUM(C14:C16) -> 114 | D17: =SUM(B17:C17) -> 308 | E17: 17 | G17: Sum | H17: =SUM(H14:H16) -> 194 | I17: =SUM(I14:I16) -> 114 | J17: =SUM(J14:J16) -> 142 | K17: =SUM(H17:J17) -> 450 | L17: 17 | N17: Sum | O17: =SUM(O14:O16) -> 194 | P17: =SUM(P14:P16) -> 114 | Q17: =SUM(Q14:Q16) -> 142 | R17: =SUM(R14:R16) -> 80 | S17: =SUM(O17:R17) -> 530 | T17: 17
A18: Significance level | B18: 0.05 | E18: 18 | G18: Significance level | H18: 0.05 | L18: 18 | N18: Significance level | O18: 0.05 | T18: 18
A19: Chi^2 | B19: =D17*(B14^2/D14/B17+C14^2/D14/C17+B15^2/D15/B17+C15^2/D15/C17+B16^2/D16/B17+C16^2/D16/C17-1) -> 1.477727725 | E19: 19 | G19: Chi^2 | H19: =K17*(H14^2/K14/H17+I14^2/K14/I17+J14^2/K14/J17+H15^2/K15/H17+I15^2/K15/I17+J15^2/K15/J17+H16^2/K16/H17+I16^2/K16/I17+J16^2/K16/J17-1) -> 10.30550585 | L19: 19 | N19: Chi^2 | O19: =S17*(O14^2/S14/O17+P14^2/S14/P17+Q14^2/S14/Q17+R14^2/S14/R17+O15^2/S15/O17+P15^2/S15/P17+Q15^2/S15/Q17+R15^2/S15/R17+O16^2/S16/O17+P16^2/S16/P17+Q16^2/S16/Q17+R16^2/S16/R17-1) -> 20.32216721 | T19: 19
A20: Upper probability | B20: =1-_xlfn.CHISQ.DIST(B19,2,1) -> 0.4776562907 | E20: 20 | G20: Upper probability | H20: =1-_xlfn.CHISQ.DIST(H19,2,1) -> 0.005783461357 | L20: 20 | N20: Upper probability | O20: =1-_xlfn.CHISQ.DIST(O19,2,1) -> 3.864536912e-05 | T20: 20
A21: Upper critical value | B21: =CHIINV(B18,4) -> 9.487729037 | E21: 21 | G21: Upper critical value | H21: =CHIINV(H18,4) -> 9.487729037 | L21: 21 | N21: Upper critical value | O21: =CHIINV(O18,4) -> 9.487729037 | T21: 21
A22: Upper significance | B22: =IF(B20<B18,"S. (H1)", "NS (H0)") -> NS (H0) | E22: 22 | G22: Upper significance | H22: =IF(H20<H18,"S. (H1)", "NS (H0)") -> S. (H1) | L22: 22 | N22: Upper significance | O22: =IF(O20<O18,"S. (H1)", "NS (H0)") -> S. (H1) | T22: 22
A24: Expectation | B24: 1 | C24: 2
A25: 1 | B25: =$D3*B$5/$D$5 -> 15.55555556 | C25: =$D3*C$5/$D$5 -> 16.44444444
A26: 2 | B26: =$D4*B$5/$D$5 -> 19.44444444 | C26: =$D4*C$5/$D$5 -> 20.55555556
A27: Chi^2 | B27: 1 | C27: 2
A28: 1 | B28: =(B3-B25)^2/B25 -> 1.26984127 | C28: =(C3-C25)^2/C25 -> 1.201201201
A29: 2 | B29: =(B4-B26)^2/B26 -> 1.015873016 | C29: =(C4-C26)^2/C26 -> 0.960960961
A31: Sum | B31: =SUM(B28:C29) -> 4.447876448
A33: =D5*(B3^2/D3/B5+C3^2/D3/C5+B4^2/D4/B5+C4^2/D4/C5-1)
A34: =N*(a^2/ab/ac+b^2/ab/bd+c^2/cd/ab+d^2/cd/bd-1)
A36: Data: | B36: 1 | C36: 2 | D36: Sum | G36: Data: | H36: 1 | I36: 2 | J36: Sum
A37: 1 | B37: 25 | C37: 12 | D37: 37 | G37: 1 | H37: 20 | I37: 12 | J37: 32
A38: 2 | B38: 15 | C38: 20 | D38: 35 | G38: 2 | H38: 15 | I38: 25 | J38: 40
A39: Sum | B39: 40 | C39: 32 | D39: 72 | G39: Sum | H39: 35 | I39: 37 | J39: 72
A40: Significance level | B40: 0.05 | G40: Significance level | H40: 0.05
A41: Chi^2 | B41: 4.447876448 | G41: Chi^2 | H41: 4.447876448
A42: Upper probability | B42: 0.03494467479 | G42: Upper probability | H42: 0.03494467479
A43: Upper critical value | B43: 3.841458821 | G43: Upper critical value | H43: 3.841458821
A44: Upper significance | B44: S. (H1) | G44: Upper significance | H44: S. (H1)

Sheet Fisher.test
A1: L.T. | B1: T.1 | C1: T.2 | D1: 計 | F1: L.T. | G1: T.1 | H1: T.2 | I1: 計 | K1: 当該確率(t) | L1: =Fishert(G2,H2,G3,H3,0) -> 0.0286695362 | M1: =FisherU(G2,H2,G3,H3,0) -> 0.0286695362
A2: L(+) | B2: a | C2: b | D2: 19 | F2: L(+) | G2: 10 | H2: 5 | I2: =SUM(G2:H2) -> 15 | K2: 下側累積確率(p) | L2: =Fishert(G2,H2,G3,H3,1) -> 0.9942141832 | M2: =FisherU(G2,H2,G3,H3,1) -> 0.9942141832
A3: L(-) | B3: c | C3: d | D3: 20 | F3: L(-) | G3: 6 | H3: 14 | I3: =SUM(G3:H3) -> 20 | K3: 上側累積確率(ｑ) | L3: =Fishert(G2,H2,G3,H3,2) -> 0.03445535297 | M3: =FisherU(G2,H2,G3,H3,2) -> 0.03445535297
A4: 計 | B4: 21 | C4: 18 | D4: 39 | F4: 計 | G4: =SUM(G2:G3) -> 16 | H4: =SUM(H2:H3) -> 19 | I4: =SUM(G4:H4) -> 35 | K4: 両側累積確率(r) | L4: =Fishert(G2,H2,G3,H3,3) -> 0.04420399771 | M4: =FisherU(G2,H2,G3,H3,3) -> 0.04420399771
L5: FisherT | M5: Excel
A6: a | B6: b | C6: c | D6: d | E6: N | F6: P | G6: Lower ac. p. | H6: Upper ac. p.
A7: 0 | B7: 15 | C7: 16 | D7: 4 | E7: 35 | F7: 1.193370638e-06 | G7: 1.193370638e-06 | H7: 1
A8: 1 | B8: 14 | C8: 15 | D8: 5 | E8: 35 | F8: 5.728179061e-05 | G8: 5.847516125e-05 | H8: 0.9999988066
A9: 2 | B9: 13 | C9: 14 | D9: 6 | E9: 35 | F9: 0.001002431336 | G9: 0.001060906497 | H9: 0.9999415248
A10: 3 | B10: 12 | C10: 13 | D10: 7 | E10: 35 | F10: 0.008687738242 | G10: 0.009748644739 | H10: 0.9989390935
A11: 4 | B11: 11 | C11: 12 | D11: 8 | E11: 35 | F11: 0.04235272393 | G11: 0.05210136867 | H11: 0.9902513553
A12: 5 | B12: 10 | C12: 11 | D12: 9 | E12: 35 | F12: 0.1242346569 | G12: 0.1763360255 | H12: 0.9478986313
A13: 6 | B13: 9 | C13: 10 | D13: 10 | E13: 35 | F13: 0.2277635376 | G13: 0.4040995631 | H13: 0.8236639745
A14: 7 | B14: 8 | C14: 9 | D14: 11 | E14: 35 | F14: 0.2662171219 | G14: 0.670316685 | H14: 0.5959004369
A15: 8 | B15: 7 | C15: 8 | D15: 12 | E15: 35 | F15: 0.1996628414 | G15: 0.8699795264 | H15: 0.329683315
A16: 9 | B16: 6 | C16: 7 | D16: 13 | E16: 35 | F16: 0.09556512067 | G16: 0.965544647 | H16: 0.1300204736
A17: 10 | B17: 5 | C17: 6 | D17: 14 | E17: 35 | F17: 0.0286695362 | G17: 0.9942141832 | H17: 0.03445535297
A18: 11 | B18: 4 | C18: 5 | D18: 15 | E18: 35 | F18: 0.005212642945 | G18: 0.9994268262 | H18: 0.005785816769
A19: 12 | B19: 3 | C19: 4 | D19: 16 | E19: 35 | F19: 0.0005429836401 | G19: 0.9999698098 | H19: 0.0005731738237
A20: 13 | B20: 2 | C20: 3 | D20: 17 | E20: 35 | F20: 2.948327458e-05 | G20: 0.9999992931 | H20: 3.019018352e-05
A21: 14 | B21: 1 | C21: 2 | D21: 18 | E21: 35 | F21: 7.01982728e-07 | G21: 0.9999999951 | H21: 7.06908941e-07
A22: 15 | B22: 0 | C22: 1 | D22: 19 | E22: 35 | F22: 4.926194583e-09 | G22: 1 | H22: 4.926213012e-09
A24: a | B24: b | C24: c | D24: d | E24: N | F24: P | G24: Lower ac. p. | H24: Upper ac. p. | I24: Two-sided
A25: 0 | B25: 15 | C25: 16 | D25: 4 | E25: 35 | F25: =Fishert(A25,B25,C25,D25,0) -> 1.193370638e-06 | G25: =Fishert(A25,B25,C25,D25,1) -> 1.193370638e-06 | H25: =Fishert(A25,B25,C25,D25,2) -> 1 | I25: =Fishert(A25,B25,C25,D25,3) -> 1.90027956e-06
A26: 1 | B26: 14 | C26: 15 | D26: 5 | E26: 35 | F26: =Fishert(A26,B26,C26,D26,0) -> 5.728179061e-05 | G26: =Fishert(A26,B26,C26,D26,1) -> 5.847516125e-05 | H26: =Fishert(A26,B26,C26,D26,2) -> 0.9999988066 | I26: =Fishert(A26,B26,C26,D26,3) -> 8.866534475e-05
A27: 2 | B27: 13 | C27: 14 | D27: 6 | E27: 35 | F27: =Fishert(A27,B27,C27,D27,0) -> 0.001002431336 | G27: =Fishert(A27,B27,C27,D27,1) -> 0.001060906497 | H27: =Fishert(A27,B27,C27,D27,2) -> 0.9999415248 | I27: =Fishert(A27,B27,C27,D27,3) -> 0.001634080321
A28: 3 | B28: 12 | C28: 13 | D28: 7 | E28: 35 | F28: =Fishert(A28,B28,C28,D28,0) -> 0.008687738242 | G28: =Fishert(A28,B28,C28,D28,1) -> 0.009748644739 | H28: =Fishert(A28,B28,C28,D28,2) -> 0.9989390935 | I28: =Fishert(A28,B28,C28,D28,3) -> 0.01553446151
A29: 4 | B29: 11 | C29: 12 | D29: 8 | E29: 35 | F29: =Fishert(A29,B29,C29,D29,0) -> 0.04235272393 | G29: =Fishert(A29,B29,C29,D29,1) -> 0.05210136867 | H29: =Fishert(A29,B29,C29,D29,2) -> 0.9902513553 | I29: =Fishert(A29,B29,C29,D29,3) -> 0.08655672164
A30: 5 | B30: 10 | C30: 11 | D30: 9 | E30: 35 | F30: =Fishert(A30,B30,C30,D30,0) -> 0.1242346569 | G30: =Fishert(A30,B30,C30,D30,1) -> 0.1763360255 | H30: =Fishert(A30,B30,C30,D30,2) -> 0.9478986313 | I30: =Fishert(A30,B30,C30,D30,3) -> 0.3063564992
A31: 6 | B31: 9 | C31: 10 | D31: 10 | E31: 35 | F31: =Fishert(A31,B31,C31,D31,0) -> 0.2277635376 | G31: =Fishert(A31,B31,C31,D31,1) -> 0.4040995631 | H31: =Fishert(A31,B31,C31,D31,2) -> 0.8236639745 | I31: =Fishert(A31,B31,C31,D31,3) -> 0.7337828781
A32: 7 | B32: 8 | C32: 9 | D32: 11 | E32: 35 | F32: =Fishert(A32,B32,C32,D32,0) -> 0.2662171219 | G32: =Fishert(A32,B32,C32,D32,1) -> 0.670316685 | H32: =Fishert(A32,B32,C32,D32,2) -> 0.5959004369 | I32: =Fishert(A32,B32,C32,D32,3) -> 1
A33: 8 | B33: 7 | C33: 8 | D33: 12 | E33: 35 | F33: =Fishert(A33,B33,C33,D33,0) -> 0.1996628414 | G33: =Fishert(A33,B33,C33,D33,1) -> 0.8699795264 | H33: =Fishert(A33,B33,C33,D33,2) -> 0.329683315 | I33: =Fishert(A33,B33,C33,D33,3) -> 0.5060193406
A34: 9 | B34: 6 | C34: 7 | D34: 13 | E34: 35 | F34: =Fishert(A34,B34,C34,D34,0) -> 0.09556512067 | G34: =Fishert(A34,B34,C34,D34,1) -> 0.965544647 | H34: =Fishert(A34,B34,C34,D34,2) -> 0.1300204736 | I34: =Fishert(A34,B34,C34,D34,3) -> 0.1821218423
A35: 10 | B35: 5 | C35: 6 | D35: 14 | E35: 35 | F35: =Fishert(A35,B35,C35,D35,0) -> 0.0286695362 | G35: =Fishert(A35,B35,C35,D35,1) -> 0.9942141832 | H35: =Fishert(A35,B35,C35,D35,2) -> 0.03445535297 | I35: =Fishert(A35,B35,C35,D35,3) -> 0.04420399771
A36: 11 | B36: 4 | C36: 5 | D36: 15 | E36: 35 | F36: =Fishert(A36,B36,C36,D36,0) -> 0.005212642945 | G36: =Fishert(A36,B36,C36,D36,1) -> 0.9994268262 | H36: =Fishert(A36,B36,C36,D36,2) -> 0.005785816769 | I36: =Fishert(A36,B36,C36,D36,3) -> 0.006846723266
A37: 12 | B37: 3 | C37: 4 | D37: 16 | E37: 35 | F37: =Fishert(A37,B37,C37,D37,0) -> 0.0005429836401 | G37: =Fishert(A37,B37,C37,D37,1) -> 0.9999698098 | H37: =Fishert(A37,B37,C37,D37,2) -> 0.0005731738236 | I37: =Fishert(A37,B37,C37,D37,3) -> 0.0006316489849
A38: 13 | B38: 2 | C38: 3 | D38: 17 | E38: 35 | F38: =Fishert(A38,B38,C38,D38,0) -> 2.948327458e-05 | G38: =Fishert(A38,B38,C38,D38,1) -> 0.9999992931 | H38: =Fishert(A38,B38,C38,D38,2) -> 3.01901835e-05 | I38: =Fishert(A38,B38,C38,D38,3) -> 3.138355414e-05
A39: 14 | B39: 1 | C39: 2 | D39: 18 | E39: 35 | F39: =Fishert(A39,B39,C39,D39,0) -> 7.01982728e-07 | G39: =Fishert(A39,B39,C39,D39,1) -> 0.9999999951 | H39: =Fishert(A39,B39,C39,D39,2) -> 7.069089226e-07 | I39: =Fishert(A39,B39,C39,D39,3) -> 7.069089226e-07
A40: 15 | B40: 0 | C40: 1 | D40: 19 | E40: 35 | F40: =Fishert(A40,B40,C40,D40,0) -> 4.926194583e-09 | G40: =Fishert(A40,B40,C40,D40,1) -> 1 | H40: =Fishert(A40,B40,C40,D40,2) -> 4.926194583e-09 | I40: =Fishert(A40,B40,C40,D40,3) -> 4.926194583e-09
A42: a | B42: b | C42: c | D42: d | E42: N | F42: F.P | G42: Lower ac. p. | H42: Upper ac. p. | I42: F.Two-sided | J42: Chi^2 | K42: Chi^2.Y
A43: 0 | B43: 10 | C43: 10 | D43: 0 | E43: =SUM(A43:D43) -> 20 | F43: =Fishert(A43,B43,C43,D43,0) -> 5.412544112e-06 | G43: =Fishert(A43,B43,C43,D43,1) -> 5.412544112e-06 | H43: =Fishert(A43,B43,C43,D43,2) -> 1 | I43: =Fishert(A43,B43,C43,D43,3) -> 1.082508822e-05 | J43: =Chi(A43,B43,C43,D43,1) -> 7.744216431e-06 | K43: =chiY(A43,B43,C43,D43,1) -> 5.699411623e-05
A44: 1 | B44: 9 | C44: 9 | D44: 1 | E44: =SUM(A44:D44) -> 20 | F44: =Fishert(A44,B44,C44,D44,0) -> 0.0005412544112 | G44: =Fishert(A44,B44,C44,D44,1) -> 0.0005466669553 | H44: =Fishert(A44,B44,C44,D44,2) -> 0.9999945875 | I44: =Fishert(A44,B44,C44,D44,3) -> 0.001093333911 | J44: =Chi(A44,B44,C44,D44,1) -> 0.0003466193511 | K44: =chiY(A44,B44,C44,D44,1) -> 0.0017451187
A45: 2 | B45: 8 | C45: 8 | D45: 2 | E45: 20 | F45: =Fishert(A45,B45,C45,D45,0) -> 0.01096040183 | G45: =Fishert(A45,B45,C45,D45,1) -> 0.01150706878 | H45: =Fishert(A45,B45,C45,D45,2) -> 0.999453333 | I45: =Fishert(A45,B45,C45,D45,3) -> 0.02301413757 | J45: =Chi(A45,B45,C45,D45,1) -> 0.007290358092 | K45: =chiY(A45,B45,C45,D45,1) -> 0.02534731868
A46: 3 | B46: 7 | C46: 7 | D46: 3 | E46: 20 | F46: =Fishert(A46,B46,C46,D46,0) -> 0.07794063522 | G46: =Fishert(A46,B46,C46,D46,1) -> 0.089447704 | H46: =Fishert(A46,B46,C46,D46,2) -> 0.9884929312 | I46: =Fishert(A46,B46,C46,D46,3) -> 0.178895408 | J46: =Chi(A46,B46,C46,D46,1) -> 0.07363827012 | K46: =chiY(A46,B46,C46,D46,1) -> 0.1797124949
A47: 4 | B47: 6 | C47: 6 | D47: 4 | E47: 20 | F47: =Fishert(A47,B47,C47,D47,0) -> 0.2386931953 | G47: =Fishert(A47,B47,C47,D47,1) -> 0.3281408993 | H47: =Fishert(A47,B47,C47,D47,2) -> 0.910552296 | I47: =Fishert(A47,B47,C47,D47,3) -> 0.6562817987 | J47: =Chi(A47,B47,C47,D47,1) -> 0.3710933695 | K47: =chiY(A47,B47,C47,D47,1) -> 0.654720846
A48: 5 | B48: 5 | C48: 5 | D48: 5 | E48: 20 | F48: =Fishert(A48,B48,C48,D48,0) -> 0.3437182013 | G48: =Fishert(A48,B48,C48,D48,1) -> 0.6718591007 | H48: =Fishert(A48,B48,C48,D48,2) -> 0.6718591007 | I48: =Fishert(A48,B48,C48,D48,3) -> 1 | J48: =Chi(A48,B48,C48,D48,1) -> 1 | K48: =chiY(A48,B48,C48,D48,1) -> 0.654720846
A49: 6 | B49: 4 | C49: 4 | D49: 6 | E49: 20 | F49: =Fishert(A49,B49,C49,D49,0) -> 0.2386931953 | G49: =Fishert(A49,B49,C49,D49,1) -> 0.910552296 | H49: =Fishert(A49,B49,C49,D49,2) -> 0.3281408993 | I49: =Fishert(A49,B49,C49,D49,3) -> 0.6562817987 | J49: =Chi(A49,B49,C49,D49,1) -> 0.3710933695 | K49: =chiY(A49,B49,C49,D49,1) -> 0.654720846
A50: 7 | B50: 3 | C50: 3 | D50: 7 | E50: 20 | F50: =Fishert(A50,B50,C50,D50,0) -> 0.07794063522 | G50: =Fishert(A50,B50,C50,D50,1) -> 0.9884929312 | H50: =Fishert(A50,B50,C50,D50,2) -> 0.089447704 | I50: =Fishert(A50,B50,C50,D50,3) -> 0.178895408 | J50: =Chi(A50,B50,C50,D50,1) -> 0.07363827012 | K50: =chiY(A50,B50,C50,D50,1) -> 0.1797124949
A51: 8 | B51: 2 | C51: 2 | D51: 8 | E51: 20 | F51: =Fishert(A51,B51,C51,D51,0) -> 0.01096040183 | G51: =Fishert(A51,B51,C51,D51,1) -> 0.999453333 | H51: =Fishert(A51,B51,C51,D51,2) -> 0.01150706878 | I51: =Fishert(A51,B51,C51,D51,3) -> 0.02301413757 | J51: =Chi(A51,B51,C51,D51,1) -> 0.007290358092 | K51: =chiY(A51,B51,C51,D51,1) -> 0.02534731868
A52: 9 | B52: 1 | C52: 1 | D52: 9 | E52: 20 | F52: =Fishert(A52,B52,C52,D52,0) -> 0.0005412544112 | G52: =Fishert(A52,B52,C52,D52,1) -> 0.9999945875 | H52: =Fishert(A52,B52,C52,D52,2) -> 0.0005466669553 | I52: =Fishert(A52,B52,C52,D52,3) -> 0.001093333911 | J52: =Chi(A52,B52,C52,D52,1) -> 0.0003466193511 | K52: =chiY(A52,B52,C52,D52,1) -> 0.0017451187
A53: 10 | B53: 0 | C53: 0 | D53: 10 | E53: 20 | F53: =Fishert(A53,B53,C53,D53,0) -> 5.412544112e-06 | G53: =Fishert(A53,B53,C53,D53,1) -> 1 | H53: =Fishert(A53,B53,C53,D53,2) -> 5.412544112e-06 | I53: =Fishert(A53,B53,C53,D53,3) -> 1.082508822e-05 | J53: =Chi(A53,B53,C53,D53,1) -> 7.744216431e-06 | K53: =chiY(A53,B53,C53,D53,1) -> 5.699411623e-05
A66: Word | B66: a | C66: b | D66: c | E66: d | F66: N | G66: F.P | H66: Lower ac. p. | I66: Upper ac. p. | J66: F.Two-sided | K66: Chi^2 | L66: Chi^2.Y
A67: w1 | B67: 10 | C67: 10 | D67: 10 | E67: 10 | F67: =SUM(B67:E67) -> 40 | G67: =Fishert(B67,C67,D67,E67,0) -> 0.2476288654 | H67: =Fishert(B67,C67,D67,E67,1) -> 0.6238144327 | I67: =Fishert(B67,C67,D67,E67,2) -> 0.6238144327 | J67: =Fishert(B67,C67,D67,E67,3) -> 1 | K67: =Chi(B67,C67,D67,E67,1) -> 1 | L67: =chiY(B67,C67,D67,E67,1) -> 0.751829634
A68: w2 | B68: 12 | C68: 10 | D68: 10 | E68: 10 | F68: =SUM(B68:E68) -> 42 | G68: =Fishert(B68,C68,D68,E68,0) -> 0.2325295444 | H68: =Fishert(B68,C68,D68,E68,1) -> 0.7267643491 | I68: =Fishert(B68,C68,D68,E68,2) -> 0.5057651953 | J68: =Fishert(B68,C68,D68,E68,3) -> 1 | K68: =Chi(B68,C68,D68,E68,1) -> 0.7683154125 | L68: =chiY(B68,C68,D68,E68,1) -> 0.9882484182
A69: w3 | B69: 14 | C69: 10 | D69: 10 | E69: 10 | F69: 44 | G69: =Fishert(B69,C69,D69,E69,0) -> 0.2057613383 | H69: =Fishert(B69,C69,D69,E69,1) -> 0.8040842177 | I69: =Fishert(B69,C69,D69,E69,2) -> 0.4016771207 | J69: =Fishert(B69,C69,D69,E69,3) -> 0.76192903 | K69: =Chi(B69,C69,D69,E69,1) -> 0.5804203668 | L69: =chiY(B69,C69,D69,E69,1) -> 0.8035565993
A70: w4 | B70: 16 | C70: 10 | D70: 10 | E70: 10 | F70: 46 | G70: =Fishert(B70,C70,D70,E70,0) -> 0.1749882557 | H70: =Fishert(B70,C70,D70,E70,1) -> 0.8604532155 | I70: =Fishert(B70,C70,D70,E70,2) -> 0.3145350402 | J70: =Fishert(B70,C70,D70,E70,3) -> 0.5516829812 | K70: =Chi(B70,C70,D70,E70,1) -> 0.4338758244 | L70: =chiY(B70,C70,D70,E70,1) -> 0.6293876875
A71: w5 | B71: 18 | C71: 10 | D71: 10 | E71: 10 | F71: 48 | G71: =Fishert(B71,C71,D71,E71,0) -> 0.1448745071 | H71: =Fishert(B71,C71,D71,E71,1) -> 0.9008330148 | I71: =Fishert(B71,C71,D71,E71,2) -> 0.2440414922 | J71: =Fishert(B71,C71,D71,E71,3) -> 0.3820658418 | K71: =Chi(B71,C71,D71,E71,1) -> 0.3222995959 | L71: =chiY(B71,C71,D71,E71,1) -> 0.4884223166
A72: w6 | B72: 20 | C72: 10 | D72: 10 | E72: 10 | F72: 50 | G72: =Fishert(B72,C72,D72,E72,0) -> 0.1177825074 | H72: =Fishert(B72,C72,D72,E72,1) -> 0.9294811317 | I72: =Fishert(B72,C72,D72,E72,2) -> 0.1883013758 | J72: =Fishert(B72,C72,D72,E72,3) -> 0.2575492428 | K72: =Chi(B72,C72,D72,E72,1) -> 0.2385928293 | L72: =chiY(B72,C72,D72,E72,1) -> 0.3767591178
A73: w7 | B73: 22 | C73: 10 | D73: 10 | E73: 10 | F73: 52 | G73: =Fishert(B73,C73,D73,E73,0) -> 0.09459945724 | H73: =Fishert(B73,C73,D73,E73,1) -> 0.9497167929 | I73: =Fishert(B73,C73,D73,E73,2) -> 0.1448826643 | J73: =Fishert(B73,C73,D73,E73,3) -> 0.243496944 | K73: =Chi(B73,C73,D73,E73,1) -> 0.1763491718 | L73: =chiY(B73,C73,D73,E73,1) -> 0.2895402661
A74: w8 | B74: 24 | C74: 10 | D74: 10 | E74: 10 | F74: 54 | G74: =Fishert(B74,C74,D74,E74,0) -> 0.07538165208 | H74: =Fishert(B74,C74,D74,E74,1) -> 0.9639981119 | I74: =Fishert(B74,C74,D74,E74,2) -> 0.1113835402 | J74: =Fishert(B74,C74,D74,E74,3) -> 0.1543092107 | K74: =Chi(B74,C74,D74,E74,1) -> 0.1302999466 | L74: =chiY(B74,C74,D74,E74,1) -> 0.2220320022
A75: w9 | B75: 26 | C75: 10 | D75: 10 | E75: 10 | F75: 56 | G75: =Fishert(B75,C75,D75,E75,0) -> 0.05977817725 | H75: =Fishert(B75,C75,D75,E75,1) -> 0.9740929276 | I75: =Fishert(B75,C75,D75,E75,2) -> 0.08568524967 | J75: =Fishert(B75,C75,D75,E75,3) -> 0.145652799 | K75: =Chi(B75,C75,D75,E75,1) -> 0.09632067516 | L75: =chiY(B75,C75,D75,E75,1) -> 0.1700817925
A76: w10 | B76: 28 | C76: 10 | D76: 10 | E76: 10 | F76: 58 | G76: =Fishert(B76,C76,D76,E76,0) -> 0.04728121901 | H76: =Fishert(B76,C76,D76,E76,1) -> 0.9812514723 | I76: =Fishert(B76,C76,D76,E76,2) -> 0.06602974674 | J76: =Fishert(B76,C76,D76,E76,3) -> 0.08764605799 | K76: =Chi(B76,C76,D76,E76,1) -> 0.07127274457 | L76: =chiY(B76,C76,D76,E76,1) -> 0.1302456585
A77: 3*3
A78: A:B | B78: B1 | C78: B2 | D78: B3
A79: A1 | B79: 1 | C79: 2 | D79: 3
A80: A2 | B80: 4 | C80: 5 | D80: 6
A81: A3 | B81: 7 | C81: 8 | D81: 9
A82: ↓
A83: A1 | B83: B1 | C83: B2 | D83: B3
A84: a | B84: =B79 -> 1 | C84: =C79 -> 2 | D84: =D79 -> 3
A85: b | B85: =C79+D79 -> 5 | C85: =B79+D79 -> 4 | D85: =B79+C79 -> 3
A86: c | B86: =B80+B81 -> 11 | C86: =C80+C81 -> 13 | D86: =D80+D81 -> 15
A87: d | B87: =SUM(C80:D81) -> 28 | C87: =SUM(B80:B81,D80:D81) -> 26 | D87: =SUM(B80:C81) -> 24 | E87: =Fishert(B84,B85,B86,B87,2) -> 0.8640196635 | F87: =Fishert(C84,C85,C86,C87,2) -> 0.6646599288 | G87: =Fishert(D84,D85,D86,D87,2) -> 0.4555841209
A88: A2 | B88: B1 | C88: B2 | D88: B3
A89: a | B89: =B80 -> 4 | C89: =C80 -> 5 | D89: =D80 -> 6
A90: b | B90: =SUM(C80:D80) -> 11 | C90: =SUM(B80,D80) -> 10 | D90: =SUM(B80:C80) -> 9
A91: c | B91: =SUM(B79,B81) -> 8 | C91: =SUM(C79,C81) -> 10 | D91: =SUM(D79,D81) -> 12
A92: d | B92: =SUM(C79:D79,C81:D81) -> 22 | C92: =SUM(B79,D79,B81,D81) -> 20 | D92: =SUM(B79:C79,B81,C81) -> 18 | E92: =Fishert(B89,B90,B91,B92,2) -> 0.6324626371 | F92: =Fishert(C89,C90,C91,C92,2) -> 0.6264305811 | G92: =Fishert(D89,D90,D91,D92,2) -> 0.6235926566
A93: A3 | B93: B1 | C93: B2 | D93: B3
A94: a | B94: =B81 -> 7 | C94: =C81 -> 8 | D94: =D81 -> 9
A95: b | B95: =SUM(C81:D81) -> 17 | C95: =SUM(B81,D81) -> 16 | D95: =SUM(B81:C81) -> 15
A96: c | B96: =SUM(B79:B80) -> 5 | C96: =SUM(C79:C80) -> 7 | D96: =SUM(D79:D80) -> 9
A97: d | B97: =SUM(C79:D80) -> 16 | C97: =SUM(B79:B80,D79:D80) -> 14 | D97: =SUM(B79:C80) -> 12 | E97: =Fishert(B94,B95,B96,B97,2) -> 0.4746391227 | F97: =Fishert(C94,C95,C96,C97,2) -> 0.6248290814 | G97: =Fishert(D94,D95,D96,D97,2) -> 0.748787909
A99: Fisher | B99: B1 | C99: B2 | D99: B3
A100: A1 | B100: =E87 -> 0.8640196635 | C100: =F87 -> 0.6646599288 | D100: 0.4555841209
A101: A2 | B101: =E92 -> 0.6324626371 | C101: =F92 -> 0.6264305811 | D101: 0.6235926566
A102: A3 | B102: =E97 -> 0.4746391227 | C102: =F97 -> 0.6248290814 | D102: 0.748787909

Sheet Yates
B1: 周辺度数を固定 | K1: Expect. | O1: (o-e)^2/e
A2: Word | B2: a | C2: b | D2: c | E2: d | F2: a+b | G2: c+d | H2: a+c | I2: b+d | J2: N | K2: E.a | L2: E.b | M2: E.c | N2: E.d | O2: Chi^2.a | P2: Chi^2.b | Q2: Chi^2.c | R2: Chi^2.d | S2: chi^2 | T2: Chi.P | U2: Chi.Y.P | V2: Fis.P
A3: w1 | B3: 10 | C3: =F3-B3 -> 10 | D3: =H3-B3 -> 10 | E3: =I3-C3 -> 10 | F3: 20 | G3: 20 | H3: 20 | I3: 20 | J3: =SUM(B3:E3) -> 40 | K3: =F3*H3/J3 -> 10 | L3: =F3*I3/J3 -> 10 | M3: =G3*H3/J3 -> 10 | N3: =G3*I3/J3 -> 10 | O3: =(B3-K3)^2/K3 -> 0 | P3: =(C3-L3)^2/L3 -> 0 | Q3: =(D3-M3)^2/M3 -> 0 | R3: =(E3-N3)^2/N3 -> 0 | S3: =SUM(O3:R3) -> 0 | T3: =Chi(B3,C3,D3,E3,1) -> 1 | U3: =chiY(B3,C3,D3,E3,1) -> 0.751829634 | V3: =Fishert(B3,C3,D3,E3,3) -> 1
A4: w2 | B4: 11 | C4: =F4-B4 -> 9 | D4: =H4-B4 -> 9 | E4: =I4-C4 -> 11 | F4: 20 | G4: 20 | H4: 20 | I4: 20 | J4: =SUM(B4:E4) -> 40 | K4: 10 | L4: 10 | M4: 10 | N4: 10 | O4: 0.1 | P4: 0.1 | Q4: 0.1 | R4: 0.1 | S4: =SUM(O4:R4) -> 0.4 | T4: =Chi(B4,C4,D4,E4,1) -> 0.5270892569 | U4: =chiY(B4,C4,D4,E4,1) -> 0.751829634 | V4: =Fishert(B4,C4,D4,E4,3) -> 0.7523711346
A5: w3 | B5: 12 | C5: 8 | D5: 8 | E5: 12 | F5: 20 | G5: 20 | H5: 20 | I5: 20 | J5: 40 | K5: 10 | L5: 10 | M5: 10 | N5: 10 | O5: 0.4 | P5: 0.4 | Q5: 0.4 | R5: 0.4 | S5: =SUM(O5:R5) -> 1.6 | T5: =Chi(B5,C5,D5,E5,1) -> 0.2059032107 | U5: =chiY(B5,C5,D5,E5,1) -> 0.3427817111 | V5: =Fishert(B5,C5,D5,E5,3) -> 0.3430672248
A6: w4 | B6: 13 | C6: 7 | D6: 7 | E6: 13 | F6: 20 | G6: 20 | H6: 20 | I6: 20 | J6: 40 | K6: 10 | L6: 10 | M6: 10 | N6: 10 | O6: 0.9 | P6: 0.9 | Q6: 0.9 | R6: 0.9 | S6: 3.6 | T6: =Chi(B6,C6,D6,E6,1) -> 0.05777957112 | U6: =chiY(B6,C6,D6,E6,1) -> 0.113846298 | V6: =Fishert(B6,C6,D6,E6,3) -> 0.1128337755
A7: w5 | B7: 14 | C7: 6 | D7: 6 | E7: 14 | F7: 20 | G7: 20 | H7: 20 | I7: 20 | J7: 40 | K7: 10 | L7: 10 | M7: 10 | N7: 10 | O7: 1.6 | P7: 1.6 | Q7: 1.6 | R7: 1.6 | S7: 6.4 | T7: =Chi(B7,C7,D7,E7,1) -> 0.01141203639 | U7: =chiY(B7,C7,D7,E7,1) -> 0.02685669551 | V7: =Fishert(B7,C7,D7,E7,3) -> 0.02564477694
A8: w6 | B8: 15 | C8: 5 | D8: 5 | E8: 15 | F8: 20 | G8: 20 | H8: 20 | I8: 20 | J8: 40 | K8: 10 | L8: 10 | M8: 10 | N8: 10 | O8: 2.5 | P8: 2.5 | Q8: 2.5 | R8: 2.5 | S8: 10 | T8: =Chi(B8,C8,D8,E8,1) -> 0.001565402258 | U8: =chiY(B8,C8,D8,E8,1) -> 0.004426525858 | V8: =Fishert(B8,C8,D8,E8,3) -> 0.003847527308
A9: w7 | B9: 16 | C9: 4 | D9: 4 | E9: 16 | F9: 20 | G9: 20 | H9: 20 | I9: 20 | J9: 40 | K9: 10 | L9: 10 | M9: 10 | N9: 10 | O9: 3.6 | P9: 3.6 | Q9: 3.6 | R9: 3.6 | S9: 14.4 | T9: =Chi(B9,C9,D9,E9,1) -> 0.0001478023103 | U9: =chiY(B9,C9,D9,E9,1) -> 0.0005042182294 | V9: =Fishert(B9,C9,D9,E9,3) -> 0.0003599673668
A10: w8 | B10: 17 | C10: 3 | D10: 3 | E10: 17 | F10: 20 | G10: 20 | H10: 20 | I10: 20 | J10: 40 | K10: 10 | L10: 10 | M10: 10 | N10: 10 | O10: 4.9 | P10: 4.9 | Q10: 4.9 | R10: 4.9 | S10: 19.6 | T10: =Chi(B10,C10,D10,E10,1) -> 9.546919845e-06 | U10: =chiY(B10,C10,D10,E10,1) -> 3.940158273e-05 | V10: =Fishert(B10,C10,D10,E10,3) -> 1.938534124e-05
A11: w9 | B11: 18 | C11: 2 | D11: 2 | E11: 18 | F11: 20 | G11: 20 | H11: 20 | I11: 20 | J11: 40 | K11: 10 | L11: 10 | M11: 10 | N11: 10 | O11: 6.4 | P11: 6.4 | Q11: 6.4 | R11: 6.4 | S11: 25.6 | T11: =Chi(B11,C11,D11,E11,1) -> 4.200393976e-07 | U11: =chiY(B11,C11,D11,E11,1) -> 2.101435956e-06 | V11: =Fishert(B11,C11,D11,E11,3) -> 5.295889612e-07
A12: w10 | B12: 19 | C12: 1 | D12: 1 | E12: 19 | F12: 20 | G12: 20 | H12: 20 | I12: 20 | J12: 40 | K12: 10 | L12: 10 | M12: 10 | N12: 10 | O12: 8.1 | P12: 8.1 | Q12: 8.1 | R12: 8.1 | S12: 32.4 | T12: =Chi(B12,C12,D12,E12,1) -> 1.25486475e-08 | U12: =chiY(B12,C12,D12,E12,1) -> 7.621291296e-08 | V12: =Fishert(B12,C12,D12,E12,3) -> 5.818064531e-09
B14: 周辺度数を固定 | K14: Expect. | O14: (o-e)^2/e | T14: |o-e-.5|^2/e.Y
A15: Word | B15: a | C15: b | D15: c | E15: d | F15: a+b | G15: c+d | H15: a+c | I15: b+d | J15: N | K15: E.a | L15: E.b | M15: E.c | N15: E.d | O15: Chi^2.a | P15: Chi^2.b | Q15: Chi^2.c | R15: Chi^2.d | S15: chi^2 | T15: Chi^2.Y.a | U15: Chi^2.Y.b | V15: Chi^2.Y.c | W15: Chi^2.Y.d | X15: Chi^2.Y | Y15: Chi.P | Z15: Chi.Y.P | AA15: Fis.P.one | AB15: Fis.P.two
A16: w1 | B16: 10 | C16: =F16-B16 -> 10 | D16: =H16-B16 -> 10 | E16: =I16-C16 -> 10 | F16: 20 | G16: 20 | H16: 20 | I16: 20 | J16: =SUM(B16:E16) -> 40 | K16: =F16*H16/J16 -> 10 | L16: =F16*I16/J16 -> 10 | M16: =G16*H16/J16 -> 10 | N16: =G16*I16/J16 -> 10 | O16: =(B16-K16)^2/K16 -> 0 | P16: =(C16-L16)^2/L16 -> 0 | Q16: =(D16-M16)^2/M16 -> 0 | R16: =(E16-N16)^2/N16 -> 0 | S16: =SUM(O16:R16) -> 0 | T16: =(ABS(B16-K16)-0.5)^2/K16 -> 0.025 | U16: =(ABS(C16-L16)-0.5)^2/L16 -> 0.025 | V16: =(ABS(D16-M16)-0.5)^2/M16 -> 0.025 | W16: =(ABS(E16-N16)-0.5)^2/N16 -> 0.025 | X16: =SUM(T16:W16) -> 0.1 | Y16: =Chi(B16,C16,D16,E16,1) -> 1 | Z16: =chiY(B16,C16,D16,E16,1) -> 0.751829634 | AA16: =Fishert(B16,C16,D16,E16,2) -> 0.6238144327 | AB16: =Fishert(B16,C16,D16,E16,3) -> 1
A17: w2 | B17: 11 | C17: =F17-B17 -> 9 | D17: =H17-B17 -> 9 | E17: =I17-C17 -> 11 | F17: 20 | G17: 20 | H17: 20 | I17: 20 | J17: =SUM(B17:E17) -> 40 | K17: 10 | L17: 10 | M17: 10 | N17: 10 | O17: 0.1 | P17: 0.1 | Q17: 0.1 | R17: 0.1 | S17: =SUM(O17:R17) -> 0.4 | T17: 0.025 | U17: 0.025 | V17: 0.025 | W17: 0.025 | X17: =SUM(T17:W17) -> 0.1 | Y17: =Chi(B17,C17,D17,E17,1) -> 0.5270892569 | Z17: =chiY(B17,C17,D17,E17,1) -> 0.751829634 | AA17: =Fishert(B17,C17,D17,E17,2) -> 0.3761855673 | AB17: =Fishert(B17,C17,D17,E17,3) -> 0.7523711346
A18: w3 | B18: 12 | C18: 8 | D18: 8 | E18: 12 | F18: 20 | G18: 20 | H18: 20 | I18: 20 | J18: 40 | K18: 10 | L18: 10 | M18: 10 | N18: 10 | O18: 0.4 | P18: 0.4 | Q18: 0.4 | R18: 0.4 | S18: =SUM(O18:R18) -> 1.6 | T18: 0.225 | U18: 0.225 | V18: 0.225 | W18: 0.225 | X18: 0.9 | Y18: =Chi(B18,C18,D18,E18,1) -> 0.2059032107 | Z18: =chiY(B18,C18,D18,E18,1) -> 0.3427817111 | AA18: =Fishert(B18,C18,D18,E18,2) -> 0.1715336124 | AB18: =Fishert(B18,C18,D18,E18,3) -> 0.3430672248
A19: w4 | B19: 13 | C19: 7 | D19: 7 | E19: 13 | F19: 20 | G19: 20 | H19: 20 | I19: 20 | J19: 40 | K19: 10 | L19: 10 | M19: 10 | N19: 10 | O19: 0.9 | P19: 0.9 | Q19: 0.9 | R19: 0.9 | S19: 3.6 | T19: 0.625 | U19: 0.625 | V19: 0.625 | W19: 0.625 | X19: 2.5 | Y19: =Chi(B19,C19,D19,E19,1) -> 0.05777957112 | Z19: =chiY(B19,C19,D19,E19,1) -> 0.113846298 | AA19: =Fishert(B19,C19,D19,E19,2) -> 0.05641688774 | AB19: =Fishert(B19,C19,D19,E19,3) -> 0.1128337755
A20: w5 | B20: 14 | C20: 6 | D20: 6 | E20: 14 | F20: 20 | G20: 20 | H20: 20 | I20: 20 | J20: 40 | K20: 10 | L20: 10 | M20: 10 | N20: 10 | O20: 1.6 | P20: 1.6 | Q20: 1.6 | R20: 1.6 | S20: 6.4 | T20: 1.225 | U20: 1.225 | V20: 1.225 | W20: 1.225 | X20: 4.9 | Y20: =Chi(B20,C20,D20,E20,1) -> 0.01141203639 | Z20: =chiY(B20,C20,D20,E20,1) -> 0.02685669551 | AA20: =Fishert(B20,C20,D20,E20,2) -> 0.01282238847 | AB20: =Fishert(B20,C20,D20,E20,3) -> 0.02564477694
A21: w6 | B21: 15 | C21: 5 | D21: 5 | E21: 15 | F21: 20 | G21: 20 | H21: 20 | I21: 20 | J21: 40 | K21: 10 | L21: 10 | M21: 10 | N21: 10 | O21: 2.5 | P21: 2.5 | Q21: 2.5 | R21: 2.5 | S21: 10 | T21: 2.025 | U21: 2.025 | V21: 2.025 | W21: 2.025 | X21: 8.1 | Y21: =Chi(B21,C21,D21,E21,1) -> 0.001565402258 | Z21: =chiY(B21,C21,D21,E21,1) -> 0.004426525858 | AA21: =Fishert(B21,C21,D21,E21,2) -> 0.001923763654 | AB21: =Fishert(B21,C21,D21,E21,3) -> 0.003847527308
A22: w7 | B22: 16 | C22: 4 | D22: 4 | E22: 16 | F22: 20 | G22: 20 | H22: 20 | I22: 20 | J22: 40 | K22: 10 | L22: 10 | M22: 10 | N22: 10 | O22: 3.6 | P22: 3.6 | Q22: 3.6 | R22: 3.6 | S22: 14.4 | T22: 3.025 | U22: 3.025 | V22: 3.025 | W22: 3.025 | X22: 12.1 | Y22: =Chi(B22,C22,D22,E22,1) -> 0.0001478023103 | Z22: =chiY(B22,C22,D22,E22,1) -> 0.0005042182294 | AA22: =Fishert(B22,C22,D22,E22,2) -> 0.0001799836834 | AB22: =Fishert(B22,C22,D22,E22,3) -> 0.0003599673668
A23: w8 | B23: 17 | C23: 3 | D23: 3 | E23: 17 | F23: 20 | G23: 20 | H23: 20 | I23: 20 | J23: 40 | K23: 10 | L23: 10 | M23: 10 | N23: 10 | O23: 4.9 | P23: 4.9 | Q23: 4.9 | R23: 4.9 | S23: 19.6 | T23: 4.225 | U23: 4.225 | V23: 4.225 | W23: 4.225 | X23: 16.9 | Y23: =Chi(B23,C23,D23,E23,1) -> 9.546919845e-06 | Z23: =chiY(B23,C23,D23,E23,1) -> 3.940158273e-05 | AA23: =Fishert(B23,C23,D23,E23,2) -> 9.69267062e-06 | AB23: =Fishert(B23,C23,D23,E23,3) -> 1.938534124e-05
A24: w9 | B24: 18 | C24: 2 | D24: 2 | E24: 18 | F24: 20 | G24: 20 | H24: 20 | I24: 20 | J24: 40 | K24: 10 | L24: 10 | M24: 10 | N24: 10 | O24: 6.4 | P24: 6.4 | Q24: 6.4 | R24: 6.4 | S24: 25.6 | T24: 5.625 | U24: 5.625 | V24: 5.625 | W24: 5.625 | X24: 22.5 | Y24: =Chi(B24,C24,D24,E24,1) -> 4.200393976e-07 | Z24: =chiY(B24,C24,D24,E24,1) -> 2.101435956e-06 | AA24: =Fishert(B24,C24,D24,E24,2) -> 2.647944806e-07 | AB24: =Fishert(B24,C24,D24,E24,3) -> 5.295889612e-07
A25: w10 | B25: 19 | C25: 1 | D25: 1 | E25: 19 | F25: 20 | G25: 20 | H25: 20 | I25: 20 | J25: 40 | K25: 10 | L25: 10 | M25: 10 | N25: 10 | O25: 8.1 | P25: 8.1 | Q25: 8.1 | R25: 8.1 | S25: 32.4 | T25: 7.225 | U25: 7.225 | V25: 7.225 | W25: 7.225 | X25: 28.9 | Y25: =Chi(B25,C25,D25,E25,1) -> 1.25486475e-08 | Z25: =chiY(B25,C25,D25,E25,1) -> 7.621291296e-08 | AA25: =Fishert(B25,C25,D25,E25,2) -> 2.909032265e-09 | AB25: =Fishert(B25,C25,D25,E25,3) -> 5.818064531e-09
B27: 周辺度数を自由に | K27: Expect. | O27: (o-e)^2/e | T27: |o-e-.5|^2/e.Y
A28: Word | B28: a | C28: b | D28: c | E28: d | F28: a+b | G28: c+d | H28: a+c | I28: b+d | J28: N | K28: E.a | L28: E.b | M28: E.c | N28: E.d | O28: Chi^2.a | P28: Chi^2.b | Q28: Chi^2.c | R28: Chi^2.d | S28: chi^2 | T28: Chi^2.Y.a | U28: Chi^2.Y.b | V28: Chi^2.Y.c | W28: Chi^2.Y.d | X28: Chi^2.Y | Y28: Chi.P | Z28: Chi.Y.P | AA28: Fis.P.one | AB28: Fis.P.two
A29: w1 | B29: 10 | C29: 10 | D29: 10 | E29: 10 | F29: =B29+C29 -> 20 | G29: =D29+E29 -> 20 | H29: =B29+D29 -> 20 | I29: =C29+E29 -> 20 | J29: =SUM(B29:E29) -> 40 | K29: =F29*H29/J29 -> 10 | L29: =F29*I29/J29 -> 10 | M29: =G29*H29/J29 -> 10 | N29: =G29*I29/J29 -> 10 | O29: =(B29-K29)^2/K29 -> 0 | P29: =(C29-L29)^2/L29 -> 0 | Q29: =(D29-M29)^2/M29 -> 0 | R29: =(E29-N29)^2/N29 -> 0 | S29: =SUM(O29:R29) -> 0 | T29: =(ABS(B29-K29)-0.5)^2/K29 -> 0.025 | U29: =(ABS(C29-L29)-0.5)^2/L29 -> 0.025 | V29: =(ABS(D29-M29)-0.5)^2/M29 -> 0.025 | W29: =(ABS(E29-N29)-0.5)^2/N29 -> 0.025 | X29: =SUM(T29:W29) -> 0.1 | Y29: =Chi(B29,C29,D29,E29,1) -> 1 | Z29: =chiY(B29,C29,D29,E29,1) -> 0.751829634 | AA29: =Fishert(B29,C29,D29,E29,2) -> 0.6238144327 | AB29: =Fishert(B29,C29,D29,E29,3) -> 1
A30: w2 | B30: 12 | C30: 10 | D30: 10 | E30: 10 | F30: =B30+C30 -> 22 | G30: =D30+E30 -> 20 | H30: =B30+D30 -> 22 | I30: =C30+E30 -> 20 | J30: =SUM(B30:E30) -> 42 | K30: 11.52380952 | L30: 10.47619048 | M30: 10.47619048 | N30: 9.523809524 | O30: 0.0196772924 | P30: 0.02164502165 | Q30: 0.02164502165 | R30: 0.02380952381 | S30: =SUM(O30:R30) -> 0.0867768595 | T30: =(ABS(B30-K30)-0.5)^2/K30 -> 4.919323101e-05 | U30: 5.411255411e-05 | V30: 5.411255411e-05 | W30: 5.952380952e-05 | X30: =SUM(T30:W30) -> 0.0002169421488 | Y30: =Chi(B30,C30,D30,E30,1) -> 0.7683154125 | Z30: =chiY(B30,C30,D30,E30,1) -> 0.9882484182 | AA30: =Fishert(B30,C30,D30,E30,2) -> 0.5057651953 | AB30: =Fishert(B30,C30,D30,E30,3) -> 1
A31: w3 | B31: 14 | C31: 10 | D31: 10 | E31: 10 | F31: 24 | G31: 20 | H31: 24 | I31: 20 | J31: 44 | K31: 13.09090909 | L31: 10.90909091 | M31: 10.90909091 | N31: 9.090909091 | O31: 0.06313131313 | P31: 0.07575757576 | Q31: 0.07575757576 | R31: 0.09090909091 | S31: =SUM(O31:R31) -> 0.3055555556 | T31: 0.01278409091 | U31: 0.01534090909 | V31: 0.01534090909 | W31: 0.01840909091 | X31: 0.061875 | Y31: =Chi(B31,C31,D31,E31,1) -> 0.5804203668 | Z31: =chiY(B31,C31,D31,E31,1) -> 0.8035565993 | AA31: =Fishert(B31,C31,D31,E31,2) -> 0.4016771207 | AB31: =Fishert(B31,C31,D31,E31,3) -> 0.76192903
A32: w4 | B32: 16 | C32: 10 | D32: 10 | E32: 10 | F32: 26 | G32: 20 | H32: 26 | I32: 20 | J32: 46 | K32: 14.69565217 | L32: 11.30434783 | M32: 11.30434783 | N32: 8.695652174 | O32: 0.1157705171 | P32: 0.1505016722 | Q32: 0.1505016722 | R32: 0.1956521739 | S32: =SUM(O32:R32) -> 0.6124260355 | T32: 0.04402495498 | U32: 0.05723244147 | V32: 0.05723244147 | W32: 0.07440217391 | X32: 0.2328920118 | Y32: =Chi(B32,C32,D32,E32,1) -> 0.4338758244 | Z32: =chiY(B32,C32,D32,E32,1) -> 0.6293876875 | AA32: =Fishert(B32,C32,D32,E32,2) -> 0.3145350402 | AB32: =Fishert(B32,C32,D32,E32,3) -> 0.5516829812
A33: w5 | B33: 18 | C33: 10 | D33: 10 | E33: 10 | F33: 28 | G33: 20 | H33: 28 | I33: 20 | J33: 48 | K33: 16.33333333 | L33: 11.66666667 | M33: 11.66666667 | N33: 8.333333333 | O33: 0.1700680272 | P33: 0.2380952381 | Q33: 0.2380952381 | R33: 0.3333333333 | S33: 0.9795918367 | T33: 0.08333333333 | U33: 0.1166666667 | V33: 0.1166666667 | W33: 0.1633333333 | X33: 0.48 | Y33: =Chi(B33,C33,D33,E33,1) -> 0.3222995959 | Z33: =chiY(B33,C33,D33,E33,1) -> 0.4884223166 | AA33: =Fishert(B33,C33,D33,E33,2) -> 0.2440414922 | AB33: =Fishert(B33,C33,D33,E33,3) -> 0.3820658418
A34: w6 | B34: 20 | C34: 10 | D34: 10 | E34: 10 | F34: 30 | G34: 20 | H34: 30 | I34: 20 | J34: 50 | K34: 18 | L34: 12 | M34: 12 | N34: 8 | O34: 0.2222222222 | P34: 0.3333333333 | Q34: 0.3333333333 | R34: 0.5 | S34: 1.388888889 | T34: 0.125 | U34: 0.1875 | V34: 0.1875 | W34: 0.28125 | X34: 0.78125 | Y34: =Chi(B34,C34,D34,E34,1) -> 0.2385928293 | Z34: =chiY(B34,C34,D34,E34,1) -> 0.3767591178 | AA34: =Fishert(B34,C34,D34,E34,2) -> 0.1883013758 | AB34: =Fishert(B34,C34,D34,E34,3) -> 0.2575492428
A35: w7 | B35: 22 | C35: 10 | D35: 10 | E35: 10 | F35: 32 | G35: 20 | H35: 32 | I35: 20 | J35: 52 | K35: 19.69230769 | L35: 12.30769231 | M35: 12.30769231 | N35: 7.692307692 | O35: 0.2704326923 | P35: 0.4326923077 | Q35: 0.4326923077 | R35: 0.6923076923 | S35: 1.828125 | T35: 0.1659405048 | U35: 0.2655048077 | V35: 0.2655048077 | W35: 0.4248076923 | X35: 1.121757813 | Y35: =Chi(B35,C35,D35,E35,1) -> 0.1763491718 | Z35: =chiY(B35,C35,D35,E35,1) -> 0.2895402661 | AA35: =Fishert(B35,C35,D35,E35,2) -> 0.1448826643 | AB35: =Fishert(B35,C35,D35,E35,3) -> 0.243496944
A36: w8 | B36: 24 | C36: 10 | D36: 10 | E36: 10 | F36: 34 | G36: 20 | H36: 34 | I36: 20 | J36: 54 | K36: 21.40740741 | L36: 12.59259259 | M36: 12.59259259 | N36: 7.407407407 | O36: 0.3139818019 | P36: 0.5337690632 | Q36: 0.5337690632 | R36: 0.9074074074 | S36: 2.288927336 | T36: 0.2045527361 | U36: 0.3477396514 | V36: 0.3477396514 | W36: 0.5911574074 | X36: 1.491189446 | Y36: =Chi(B36,C36,D36,E36,1) -> 0.1302999466 | Z36: =chiY(B36,C36,D36,E36,1) -> 0.2220320022 | AA36: =Fishert(B36,C36,D36,E36,2) -> 0.1113835402 | AB36: =Fishert(B36,C36,D36,E36,3) -> 0.1543092107
A37: w9 | B37: 26 | C37: 10 | D37: 10 | E37: 10 | F37: 36 | G37: 20 | H37: 36 | I37: 20 | J37: 56 | K37: 23.14285714 | L37: 12.85714286 | M37: 12.85714286 | N37: 7.142857143 | O37: 0.3527336861 | P37: 0.6349206349 | Q37: 0.6349206349 | R37: 1.142857143 | S37: 2.765432099 | T37: 0.2400793651 | U37: 0.4321428571 | V37: 0.4321428571 | W37: 0.7778571429 | X37: 1.882222222 | Y37: =Chi(B37,C37,D37,E37,1) -> 0.09632067516 | Z37: =chiY(B37,C37,D37,E37,1) -> 0.1700817925 | AA37: =Fishert(B37,C37,D37,E37,2) -> 0.08568524967 | AB37: =Fishert(B37,C37,D37,E37,3) -> 0.145652799
A38: w10 | B38: 28 | C38: 10 | D38: 10 | E38: 10 | F38: 38 | G38: 20 | H38: 38 | I38: 20 | J38: 58 | K38: 24.89655172 | L38: 13.10344828 | M38: 13.10344828 | N38: 6.896551724 | O38: 0.3868564333 | P38: 0.7350272232 | Q38: 0.7350272232 | R38: 1.396551724 | S38: 3.253462604 | T38: 0.2722442449 | U38: 0.5172640653 | V38: 0.5172640653 | W38: 0.9828017241 | X38: 2.2895741 | Y38: =Chi(B38,C38,D38,E38,1) -> 0.07127274457 | Z38: =chiY(B38,C38,D38,E38,1) -> 0.1302456585 | AA38: =Fishert(B38,C38,D38,E38,2) -> 0.06602974674 | AB38: =Fishert(B38,C38,D38,E38,3) -> 0.08764605799

Sheet Yates(2)
B1: 周辺度数を固定 | K1: Expect. | O1: (o-e)^2/e | T1: |o-e-.5|^2/e.Y
A2: Word | B2: a | C2: b | D2: c | E2: d | F2: a+b | G2: c+d | H2: a+c | I2: b+d | J2: N | K2: E.a | L2: E.b | M2: E.c | N2: E.d | O2: Chi^2.a | P2: Chi^2.b | Q2: Chi^2.c | R2: Chi^2.d | S2: chi^2 | T2: Chi^2.Y.a | U2: Chi^2.Y.b | V2: Chi^2.Y.c | W2: Chi^2.Y.d | X2: Chi^2.Y | Y2: Chi.P | Z2: Chi.Y.P | AA2: Fis.P.one | AB2: Fis.P.two
A3: w1 | B3: 5 | C3: 5 | D3: 5 | E3: 5 | F3: 10 | G3: 10 | H3: 10 | I3: 10 | J3: =SUM(B3:E3) -> 20 | K3: =F3*H3/J3 -> 5 | L3: =F3*I3/J3 -> 5 | M3: =G3*H3/J3 -> 5 | N3: =G3*I3/J3 -> 5 | O3: =(B3-K3)^2/K3 -> 0 | P3: 0 | Q3: 0 | R3: 0 | S3: =SUM(O3:R3) -> 0 | T3: =(ABS(B3-K3)-0.5)^2/K3 -> 0.05 | U3: 0.05 | V3: 0.05 | W3: 0.05 | X3: =SUM(T3:W3) -> 0.2 | Y3: =Chi(B3,C3,D3,E3,1) -> 1 | Z3: =chiY(B3,C3,D3,E3,1) -> 0.654720846 | AA3: =Fishert(B3,C3,D3,E3,2) -> 0.6718591007 | AB3: =Fishert(B3,C3,D3,E3,3) -> 1
A4: w2 | B4: 6 | C4: 4 | D4: 4 | E4: 6 | F4: 10 | G4: 10 | H4: 10 | I4: 10 | J4: 20 | K4: 5 | L4: 5 | M4: 5 | N4: 5 | O4: 0.2 | P4: 0.2 | Q4: 0.2 | R4: 0.2 | S4: 0.8 | T4: 0.05 | U4: 0.05 | V4: 0.05 | W4: 0.05 | X4: 0.2 | Y4: =Chi(B4,C4,D4,E4,1) -> 0.3710933695 | Z4: =chiY(B4,C4,D4,E4,1) -> 0.654720846 | AA4: =Fishert(B4,C4,D4,E4,2) -> 0.3281408993 | AB4: =Fishert(B4,C4,D4,E4,3) -> 0.6562817987
A5: w3 | B5: 7 | C5: 3 | D5: 3 | E5: 7 | F5: 10 | G5: 10 | H5: 10 | I5: 10 | J5: 20 | K5: 5 | L5: 5 | M5: 5 | N5: 5 | O5: 0.8 | P5: 0.8 | Q5: 0.8 | R5: 0.8 | S5: 3.2 | T5: 0.45 | U5: 0.45 | V5: 0.45 | W5: 0.45 | X5: 1.8 | Y5: =Chi(B5,C5,D5,E5,1) -> 0.07363827012 | Z5: =chiY(B5,C5,D5,E5,1) -> 0.1797124949 | AA5: =Fishert(B5,C5,D5,E5,2) -> 0.089447704 | AB5: =Fishert(B5,C5,D5,E5,3) -> 0.178895408
A6: w4 | B6: 8 | C6: 2 | D6: 2 | E6: 8 | F6: 10 | G6: 10 | H6: 10 | I6: 10 | J6: 20 | K6: 5 | L6: 5 | M6: 5 | N6: 5 | O6: 1.8 | P6: 1.8 | Q6: 1.8 | R6: 1.8 | S6: 7.2 | T6: 1.25 | U6: 1.25 | V6: 1.25 | W6: 1.25 | X6: 5 | Y6: =Chi(B6,C6,D6,E6,1) -> 0.007290358092 | Z6: =chiY(B6,C6,D6,E6,1) -> 0.02534731868 | AA6: =Fishert(B6,C6,D6,E6,2) -> 0.01150706878 | AB6: =Fishert(B6,C6,D6,E6,3) -> 0.02301413757
A7: w5 | B7: 9 | C7: 1 | D7: 1 | E7: 9 | F7: 10 | G7: 10 | H7: 10 | I7: 10 | J7: 20 | K7: 5 | L7: 5 | M7: 5 | N7: 5 | O7: 3.2 | P7: 3.2 | Q7: 3.2 | R7: 3.2 | S7: 12.8 | T7: 2.45 | U7: 2.45 | V7: 2.45 | W7: 2.45 | X7: 9.8 | Y7: =Chi(B7,C7,D7,E7,1) -> 0.0003466193511 | Z7: =chiY(B7,C7,D7,E7,1) -> 0.0017451187 | AA7: =Fishert(B7,C7,D7,E7,2) -> 0.0005466669553 | AB7: =Fishert(B7,C7,D7,E7,3) -> 0.001093333911
A8: w6 | B8: 10 | C8: 5 | D8: 0 | E8: 10 | F8: 10 | G8: 10 | H8: 10 | I8: 10 | J8: 25 | K8: 4 | L8: 4 | M8: 4 | N8: 4 | O8: 9 | P8: 0.25 | Q8: 4 | R8: 9 | S8: 22.25 | T8: 7.5625 | U8: 0.0625 | V8: 3.0625 | W8: 7.5625 | X8: 18.25 | Y8: =Chi(B8,C8,D8,E8,1) -> 0.0008581206664 | Z8: =chiY(B8,C8,D8,E8,1) -> 0.003537936478 | AA8: =Fishert(B8,C8,D8,E8,2) -> 0.0009186969983 | AB8: =Fishert(B8,C8,D8,E8,3) -> 0.0009648918856
B10: 周辺度数を自由に | K10: Expect. | O10: (o-e)^2/e | T10: |o-e-.5|^2/e.Y
A11: Word | B11: a | C11: b | D11: c | E11: d | F11: a+b | G11: c+d | H11: a+c | I11: b+d | J11: N | K11: E.a | L11: E.b | M11: E.c | N11: E.d | O11: Chi^2.a | P11: Chi^2.b | Q11: Chi^2.c | R11: Chi^2.d | S11: chi^2 | T11: Chi^2.Y.a | U11: Chi^2.Y.b | V11: Chi^2.Y.c | W11: Chi^2.Y.d | X11: Chi^2.Y | Y11: Chi.P | Z11: Chi.Y.P | AA11: Fis.P.one | AB11: Fis.P.two
A12: w1 | B12: 5 | C12: 5 | D12: 5 | E12: 5 | F12: =B12+C12 -> 10 | G12: =D12+E12 -> 10 | H12: =B12+D12 -> 10 | I12: =C12+E12 -> 10 | J12: =SUM(B12:E12) -> 20 | K12: =F12*H12/J12 -> 5 | L12: =F12*I12/J12 -> 5 | M12: =G12*H12/J12 -> 5 | N12: =G12*I12/J12 -> 5 | O12: =(B12-K12)^2/K12 -> 0 | P12: 0 | Q12: 0 | R12: 0 | S12: =SUM(O12:R12) -> 0 | T12: =(ABS(B12-K12)-0.5)^2/K12 -> 0.05 | U12: 0.05 | V12: 0.05 | W12: 0.05 | X12: =SUM(T12:W12) -> 0.2 | Y12: =Chi(B12,C12,D12,E12,1) -> 1 | Z12: =chiY(B12,C12,D12,E12,1) -> 0.654720846 | AA12: =Fishert(B12,C12,D12,E12,2) -> 0.6718591007 | AB12: =Fishert(B12,C12,D12,E12,3) -> 1
A13: w2 | B13: 6 | C13: 5 | D13: 5 | E13: 5 | F13: 11 | G13: 10 | H13: =B13+D13 -> 11 | I13: 10 | J13: 21 | K13: 5.761904762 | L13: 5.238095238 | M13: 5.238095238 | N13: 4.761904762 | O13: 0.009838646202 | P13: 0.01082251082 | Q13: 0.01082251082 | R13: 0.0119047619 | S13: 0.04338842975 | T13: 0.0119047619 | U13: 0.0130952381 | V13: 0.0130952381 | W13: 0.0144047619 | X13: 0.0525 | Y13: =Chi(B13,C13,D13,E13,1) -> 0.8349955942 | Z13: =chiY(B13,C13,D13,E13,1) -> 0.8187688215 | AA13: =Fishert(B13,C13,D13,E13,2) -> 0.5900214337 | AB13: =Fishert(B13,C13,D13,E13,3) -> 1
A14: w3 | B14: 7 | C14: 5 | D14: 5 | E14: 5 | F14: 12 | G14: 10 | H14: 12 | I14: 10 | J14: 22 | K14: 6.545454545 | L14: 5.454545455 | M14: 5.454545455 | N14: 4.545454545 | O14: 0.03156565657 | P14: 0.03787878788 | Q14: 0.03787878788 | R14: 0.04545454545 | S14: 0.1527777778 | T14: 0.0003156565657 | U14: 0.0003787878788 | V14: 0.0003787878788 | W14: 0.0004545454545 | X14: 0.001527777778 | Y14: =Chi(B14,C14,D14,E14,1) -> 0.6958948232 | Z14: =chiY(B14,C14,D14,E14,1) -> 0.9688211866 | AA14: =Fishert(B14,C14,D14,E14,2) -> 0.5150035723 | AB14: =Fishert(B14,C14,D14,E14,3) -> 1
A15: w4 | B15: 8 | C15: 5 | D15: 5 | E15: 5 | F15: 13 | G15: 10 | H15: 13 | I15: 10 | J15: 23 | K15: 7.347826087 | L15: 5.652173913 | M15: 5.652173913 | N15: 4.347826087 | O15: 0.05788525855 | P15: 0.07525083612 | Q15: 0.07525083612 | R15: 0.09782608696 | S15: 0.3062130178 | T15: 0.003151530744 | U15: 0.004096989967 | V15: 0.004096989967 | W15: 0.005326086957 | X15: 0.01667159763 | Y15: =Chi(B15,C15,D15,E15,1) -> 0.5800133799 | Z15: =chiY(B15,C15,D15,E15,1) -> 0.8972638512 | AA15: =Fishert(B15,C15,D15,E15,2) -> 0.4479068515 | AB15: =Fishert(B15,C15,D15,E15,3) -> 0.685018172
A16: w5 | B16: 9 | C16: 5 | D16: 5 | E16: 5 | F16: 14 | G16: 10 | H16: 14 | I16: 10 | J16: 24 | K16: 8.166666667 | L16: 5.833333333 | M16: 5.833333333 | N16: 4.166666667 | O16: 0.08503401361 | P16: 0.119047619 | Q16: 0.119047619 | R16: 0.1666666667 | S16: 0.4897959184 | T16: 0.01360544218 | U16: 0.01904761905 | V16: 0.01904761905 | W16: 0.02666666667 | X16: 0.07836734694 | Y16: =Chi(B16,C16,D16,E16,1) -> 0.4840183547 | Z16: =chiY(B16,C16,D16,E16,1) -> 0.7795222453 | AA16: =Fishert(B16,C16,D16,E16,2) -> 0.3888477588 | AB16: =Fishert(B16,C16,D16,E16,3) -> 0.6784560506
A17: w6 | B17: 10 | C17: 5 | D17: 5 | E17: 5 | F17: 15 | G17: 10 | H17: 15 | I17: 10 | J17: 25 | K17: 9 | L17: 6 | M17: 6 | N17: 4 | O17: 0.1111111111 | P17: 0.1666666667 | Q17: 0.1666666667 | R17: 0.25 | S17: 0.6944444444 | T17: 0.02777777778 | U17: 0.04166666667 | V17: 0.04166666667 | W17: 0.0625 | X17: 0.1736111111 | Y17: =Chi(B17,C17,D17,E17,1) -> 0.4046567619 | Z17: =chiY(B17,C17,D17,E17,1) -> 0.676922239 | AA17: =Fishert(B17,C17,D17,E17,2) -> 0.3374007269 | AB17: =Fishert(B17,C17,D17,E17,3) -> 0.4422196796
